Workbook

Sheet BrewReport
A1: Bryggeri: | D1: Hulebækkens bryghus
A2: Bryg navn: | D2: Forårsvelsignelse
A3: Bryg nr.: | D3: 29 | F3: Type: | G3: Weizenbock | I3: =IF($G$3="","",CONCATENATE(VLOOKUP($G$3,Typer!$C$4:$P$125,2,FALSE),VLOOKUP($G$3,Typer!$C$4:$P$125,3,FALSE))) -> 10C | J3: Dato: | K3: 2017-04-17
A4: Typiske data: | D4: EBC | E4: =IF($G$3="","",CONCATENATE(VLOOKUP($G$3,Typer!$C$4:$P$125,10,FALSE)," - ",VLOOKUP($G$3,Typer!$C$4:$P$125,11,FALSE))) -> 10 - 12 | F4: OG | G4: =IF($G$3="","",CONCATENATE(VLOOKUP($G$3,Typer!$C$3:$T$125,4,FALSE)," - ",VLOOKUP($G$3,Typer!$C$3:$T$125,5,FALSE))) -> 1090 - 1064 | I4: IBU | J4: =IFERROR(IF($G$3="","",CONCATENATE(VLOOKUP($G$3,Typer!$C$4:$P$125,12,FALSE)," - ",VLOOKUP($G$3,Typer!$C$4:$P$125,13,FALSE))),"") -> 30 - 15 | L4: RBR | M4: =IFERROR(IF($G$3="","",VLOOKUP($G$3,Typer!$C$4:$P$125,14,FALSE)),"") -> 0.29
A6: Dette brygs data: | E6: =IF(Data!G26=0,"",Data!G26) -> 9.9 | F6: OG | G6: =IF(D19=0,"",IF(D50="",IF(K3="",Data!I26,D49),IF(K3="",Data!I26,D50))) -> 1085 | I6: IBU | J6: =IF(Data!I55=0,"",Data!I55) -> 12.368 | L6: RBR | M6: =IF(AND(J50="",J51=""),"",IF(D52="",IF(J6="","",(Data!I55/(G6-1000)*(1+((MAX(Data!G29:G30)/100)-0.7655)))),(Data!I55/(G6-1000)*(1+((D53/100)-0.7655))))) -> 0.03412112941
A7: Ingredienser | E7: fra: | F7: Hjemmebryggeren | H7: Mæskning
A8: Malttype | C8: EBC | D8: Vægt | E8: Enhed | F8: Priser | H8: Proces | J8: Tid | L8: Temp. | M8: Starttider (tt:mm)
A9: Pale Ale | C9: =IF(A9="","",VLOOKUP(A9,Malt!$A$3:$C$75,3,FALSE)) -> 8 | D9: 3 | E9: kg | F9: =IFERROR(VLOOKUP($A9,Malt!$A$3:$K$75,COLUMN(INDIRECT(CONCATENATE(HLOOKUP($F$7,Malt!$G$1:$K$2,2,FALSE),2))),FALSE),"") -> 60 | J9: =SUM(J10:J19)+L10 -> 143 | K9: min | L9: °C | M9: 11:30:00
A10: Wheat | C10: =IF(A10="","",VLOOKUP(A10,Malt!$A$3:$C$75,3,FALSE)) -> 3 | D10: 2.5 | E10: kg | F10: =IFERROR(VLOOKUP($A10,Malt!$A$3:$K$75,COLUMN(INDIRECT(CONCATENATE(HLOOKUP($F$7,Malt!$G$1:$K$2,2,FALSE),2))),FALSE),"") -> 50 | H10: Syre pause | J10: 10 | K10: min | L10: 45 | M10: =IF(AND($M$9>0,J9>0,J10>0),M9+TIME(,L10*Data!E7,),IF(AND($M$9>0,J8>0,J10>0),M8+TIME(,J8,),IF(AND($M$9>0,J7>0,J10>0),M7+TIME(,J7,),IF(AND($M$9>0,J6>0,J10>0),M6+TIME(,J6,),"")))) -> 12:15:00
A11: Wheat Flaked | C11: =IF(A11="","",VLOOKUP(A11,Malt!$A$3:$C$75,3,FALSE)) -> 5 | D11: 0.5 | E11: kg | F11: =IFERROR(VLOOKUP($A11,Malt!$A$3:$K$75,COLUMN(INDIRECT(CONCATENATE(HLOOKUP($F$7,Malt!$G$1:$K$2,2,FALSE),2))),FALSE),"") -> 10 | H11: Indmæskning | J11: 12 | K11: min | L11: =IF(J11=0,"",CONCATENATE(L10," - ",L12)) -> 45 - 57 | M11: =IF(AND($M$9>0,J10>0,J11>0),M10+TIME(,J10,),IF(AND($M$9>0,J9>0,J11>0),M9+TIME(,J9,),IF(AND($M$9>0,J8>0,J11>0),M8+TIME(,J8,),IF(AND($M$9>0,J7>0,J11>0),M7+TIME(,J7,),"")))) -> 12:25:00
C12: =IF(A12="","",VLOOKUP(A12,Malt!$A$3:$C$75,3,FALSE)) ->  | E12: kg | F12: =IFERROR(VLOOKUP($A12,Malt!$A$3:$K$75,COLUMN(INDIRECT(CONCATENATE(HLOOKUP($F$7,Malt!$G$1:$K$2,2,FALSE),2))),FALSE),"") ->  | H12: Proteinpause ( 57°C ) | J12: 10 | K12: min | L12: 57 | M12: =IF(AND($M$9>0,J11>0,J12>0),M11+TIME(,J11,),IF(AND($M$9>0,J10>0,J12>0),M10+TIME(,J10,)+TIME(,L12-L10,),IF(AND($M$9>0,J9>0,J12>0),M9+TIME(,J9,)+TIME(,L12-L19,),IF(AND($M$9>0,J8>0,J12>0),M8+TIME(,J8,)+TIME(,L12-L8,),"")))) -> 12:37:00
C13: =IF(A13="","",VLOOKUP(A13,Malt!$A$3:$C$75,3,FALSE)) ->  | E13: kg | F13: =IFERROR(VLOOKUP($A13,Malt!$A$3:$K$75,COLUMN(INDIRECT(CONCATENATE(HLOOKUP($F$7,Malt!$G$1:$K$2,2,FALSE),2))),FALSE),"") ->  | H13: Mæskning 1 | J13: 30 | K13: min | L13: 62 | M13: =IF(AND($M$9>0,J12>0,J13>0),M12+TIME(,J12,)+TIME(,L13-L12,),IF(AND($M$9>0,J11>0,J13>0),M11+TIME(,J11,)+TIME(,L12-L11,),IF(AND($M$9>0,J10>0,J13>0),M10+TIME(,J10,)+TIME(,L13-L20,),IF(AND($M$9>0,J9>0,J13>0),M9+TIME(,J9,)+TIME(,L13-L9,),"")))) -> 12:52:00
C14: =IF(A14="","",VLOOKUP(A14,Malt!$A$3:$C$75,3,FALSE)) ->  | E14: kg | F14: =IFERROR(VLOOKUP($A14,Malt!$A$3:$K$75,COLUMN(INDIRECT(CONCATENATE(HLOOKUP($F$7,Malt!$G$1:$K$2,2,FALSE),2))),FALSE),"") ->  | H14: Mæskning 2 | K14: min | M14: =IF(AND($M$9>0,J13>0,J14>0),M13+TIME(,J13,)+TIME(,L14-L13,),IF(AND($M$9>0,J12>0,J14>0),M12+TIME(,J12,)+TIME(,L14-L12,),IF(AND($M$9>0,J11>0,J14>0),M11+TIME(,J11,)+TIME(,L14-L11,),IF(AND($M$9>0,J10>0,J14>0),M10+TIME(,J10,)+TIME(,L14-L10,),"")))) -> 
C15: =IF(A15="","",VLOOKUP(A15,Malt!$A$3:$C$75,3,FALSE)) ->  | E15: kg | F15: =IFERROR(VLOOKUP($A15,Malt!$A$3:$K$75,COLUMN(INDIRECT(CONCATENATE(HLOOKUP($F$7,Malt!$G$1:$K$2,2,FALSE),2))),FALSE),"") ->  | H15: Mæskning 3 | K15: min | M15: =IF(AND($M$9>0,J14>0,J15>0),M14+TIME(,J14,)+TIME(,L15-L14,),IF(AND($M$9>0,J13>0,J15>0),M13+TIME(,J13,)+TIME(,L15-L13,),IF(AND($M$9>0,J12>0,J15>0),M12+TIME(,J12,)+TIME(,L15-L22,),IF(AND($M$9>0,J11>0,J15>0),M11+TIME(,J11,)+TIME(,L15-L11,),"")))) -> 
C16: =IF(A16="","",VLOOKUP(A16,Malt!$A$3:$C$75,3,FALSE)) ->  | E16: kg | F16: =IFERROR(VLOOKUP($A16,Malt!$A$3:$K$75,COLUMN(INDIRECT(CONCATENATE(HLOOKUP($F$7,Malt!$G$1:$K$2,2,FALSE),2))),FALSE),"") ->  | H16: Forsukring | J16: 30 | K16: min | L16: 72 | M16: =IF(AND($M$9>0,J15>0,J16>0),M15+TIME(,J15,)+TIME(,L16-L15,),IF(AND($M$9>0,J14>0,J16>0),M14+TIME(,J14,)+TIME(,L16-L14,),IF(AND($M$9>0,J13>0,J16>0),M13+TIME(,J13,)+TIME(,L16-L13,),IF(AND($M$9>0,J12>0,J16>0),M12+TIME(,J12,)+TIME(,L16-L12,),IF(AND($M$9>0,J11>0,J16>0),M11+TIME(,J11,)+TIME(,L16-L10,),""))))) -> 13:32:00
C17: =IF(A17="","",VLOOKUP(A17,Malt!$A$3:$C$75,3,FALSE)) ->  | E17: kg | F17: =IFERROR(VLOOKUP($A17,Malt!$A$3:$K$75,COLUMN(INDIRECT(CONCATENATE(HLOOKUP($F$7,Malt!$G$1:$K$2,2,FALSE),2))),FALSE),"") ->  | H17: Afmæskning | J17: 5 | K17: min | L17: 78 | M17: =IF(AND($M$9>0,J16>0,J17>0),M16+TIME(,J16,)+TIME(,L17-L16,),IF(AND($M$9>0,J15>0,J17>0),M15+TIME(,J15,)+TIME(,L17-L15,),IF(AND($M$9>0,J14>0,J17>0),M14+TIME(,J14,)+TIME(,L17-L14,),IF(AND($M$9>0,J13>0,J17>0),M13+TIME(,J13,)+TIME(,L17-L13,),"")))) -> 14:08:00
C18: =IF(A18="","",VLOOKUP(A18,Malt!$A$3:$C$75,3,FALSE)) ->  | E18: kg | F18: =IFERROR(VLOOKUP($A18,Malt!$A$3:$K$75,COLUMN(INDIRECT(CONCATENATE(HLOOKUP($F$7,Malt!$G$1:$K$2,2,FALSE),2))),FALSE),"") ->  | M18: =IF(AND($M$9>0,J17>0,J18>0),M17+TIME(,J17,)+TIME(,L18-L17,),IF(AND($M$9>0,J16>0,J18>0),M16+TIME(,J16,)+TIME(,L18-L16,),IF(AND($M$9>0,J15>0,J18>0),M15+TIME(,J15,)+TIME(,L18-L15,),IF(AND($M$9>0,J14>0,J18>0),M14+TIME(,J14,)+TIME(,L18-L14,),"")))) -> 
A19: Total | D19: =SUM(D9:D18) -> 6 | E19: kg | F19: =IF(SUM(F9:F18)=0,"",SUM(F9:F18)) -> 120 | H19: Fraløb | J19: 1 | K19: min | L19: 78 | M19: =IF(AND($M$9>0,J18>0,J19>0),M18+TIME(,J18,)+TIME(,L19-L18,),IF(AND($M$9>0,J17>0,J19>0),M17+TIME(,J17,)+TIME(,L19-L17,),IF(AND($M$9>0,J16>0,J19>0),M16+TIME(,J16,)+TIME(,L19-L16,),IF(AND($M$9>0,J15>0,J19>0),M15+TIME(,J15,)+TIME(,L19-L15,),"")))) -> 14:13:00
A21: Humletype | B21: B/P | C21: % og Anv. | D21: Vægt | E21: Enhed | H21: Kogning | J21: Tid før slut | L21: Enhed | M21: Starttider (tt:mm)
A22: Bitterhumle | D22: =SUM(D23:D33) -> 50 | H22: I alt | J22: 90 | L22: min | M22: =IF(M19<>"",M19+TIME(,J19+5,),"") -> 14:19:00
A23: Perle | B23: Pellet | C23: =IF(A23="","",CONCATENATE(Data!G42,"% - ",VLOOKUP(A23,Humle!$A$2:$I$41,8,FALSE))) -> 4% - BA | D23: 30 | E23: gram | F23: Justeres evt. | H23: =IF(A23="","",A23) -> Perle | J23: 60 | L23: min. | M23: =IF(AND($M$22>0,$J$22>0,J23<>""),$M$22+(TIME(,$J$22,)-TIME(,J23,)),"") -> 14:49:00
C24: =IF(A24="","",CONCATENATE(Data!G43,"% - ",VLOOKUP(A24,Humle!$A$2:$I$41,8,FALSE))) ->  | E24: gram | H24: =IF(A24="","",A24) ->  | L24: min. | M24: =IF(AND($M$22>0,$J$22>0,J24<>""),$M$22+(TIME(,$J$22,)-TIME(,J24,)),"") -> 
C25: =IF(A25="","",CONCATENATE(Data!G44,"% - ",VLOOKUP(A25,Humle!$A$2:$I$41,8,FALSE))) ->  | E25: gram | H25: =IF(A25="","",A25) ->  | L25: min.
A26: Smagshumle
C27: =IF(A27="","",CONCATENATE(Data!G46,"% - ",VLOOKUP(A27,Humle!$A$2:$I$41,8,FALSE))) ->  | E27: gram | H27: =IF(A27="","",A27) ->  | L27: min
C28: =IF(A28="","",CONCATENATE(Data!G47,"% - ",VLOOKUP(A28,Humle!$A$2:$I$41,8,FALSE))) ->  | E28: gram | H28: =IF(A28="","",A28) ->  | L28: min
C29: =IF(A29="","",CONCATENATE(Data!G48,"% - ",VLOOKUP(A29,Humle!$A$2:$I$41,8,FALSE))) ->  | E29: gram | H29: =IF(A29="","",A29) ->  | L29: min
A30: Aromahumle
A31: Perle | B31: Pellet | C31: =IF(A31="","",CONCATENATE(Data!G50,"% - ",VLOOKUP(A31,Humle!$A$2:$I$41,8,FALSE))) -> 4% - BA | D31: 20 | E31: gram | H31: =IF(A31="","",A31) -> Perle | J31: 10 | L31: min | M31: 15:39:00
C32: =IF(A32="","",CONCATENATE(Data!G51,"% - ",VLOOKUP(A32,Humle!$A$2:$I$41,8,FALSE))) ->  | E32: gram | H32: =IF(A32="","",A32) ->  | L32: min
C33: =IF(A33="","",CONCATENATE(Data!G52,"% - ",VLOOKUP(A33,Humle!$A$2:$I$41,8,FALSE))) ->  | E33: gram | H33: =IF(A33="","",A33) ->  | L33: min
A34: Andet | F34: Manuel indtast
E35: gram | H35: =IF($A$35="","",$A$35) ->  | L35: min
A36: Rørsukker | D36: 1000 | E36: gram | H36: =IF($A$36="","",$A$36) -> Rørsukker | J36: 0 | L36: min | M36: 15:49:00
E37: gram | H37: =IF($A$37="","",$A$37) ->  | L37: min
E38: gram | H38: =IF($A$38="","",$A$38) ->  | L38: min
E39: gram | H39: =IF($A$39="","",$A$39) ->  | L39: min
A40: Appelsinskal | D40: 30 | E40: gram | H40: =IF($A$40="","",$A$40) -> Appelsinskal | J40: 0 | L40: min | M40: 15:49:00
A41: Klar Urt | D41: 0 | E41: gram | H41: =IF($A$41="","",$A$41) -> Klar Urt | J41: 0 | L41: min | M41: =IF($M$22="","",IF(AND($M$22>0,$J$22>0,J41<>""),$M$22+(TIME(,$J$22,)-TIME(,J41,)),"")) -> 15:49:00
A43: Målinger | H43: Køling
D44: Målt | E44: Enhed | L44: Enhed
A45: Udbytte efter mæskning | D45: 19 | E45: liter | F45: 1069 | H45: Tid | J45: 30 | L45: min
A46: Udbytte efter tilsætning af sukker m.m. | D46: 18 | E46: liter | F46: 1085 | H46: Nedkøling til | J46: 25 | L46: °C
A47: Udbytte efter gæring og omstikning | D47: 15 | E47: liter
A48: Bryggedato: | D48: =IF(K3="","",K3) -> 2017-04-17 | F48: =IF(M9<>"",CONCATENATE("Færdig ca. kl.: ",TEXT(CEILING(M22+TIME(,J22,)+TIME(,J45,),"0:15"),"tt:mm")),"Færdig ca. kl.: ") -> Færdig ca. kl.: 16:30 | H48: Gæring - 1. ferm.
A49: Vægtfylde efter mæskning | D49: 1069 | E49: Oeschle | F49: =IF(D49="","",CONCATENATE("Effektivitet: ",ROUND((Data!D24*100),0)," %")) -> Effektivitet: 72 % | H49: Kommentar
A50: Vægtfylde før gæring | D50: 1085 | E50: Oeschle | F50: =IF(D50="","",CONCATENATE("Effektivitet: ",ROUND((Data!D25*100),0)," %")) -> Effektivitet: 68 % | H50: Tilsat gær type (2 mulige): | J50: Brewolution Wheat Beer
A51: Flaskedato: | D51: =IF(J71="","",J71) -> 
A52: Vægtfylde efter gæring | D52: 1012 | E52: Oeschle | H52: Gæringstemperatur °C | I52: 23 | J52: Dato | L52: Gærer i spand
A53: Forgæringsgrad | E53: % | F53: =IF(Data!I29="","",CONCATENATE("Estimeret: ",ROUND((Data!I29),1)," %")) -> Estimeret: 6,5 % | H53: Gæring i gang | L53: ?
A54: Alkohol indhold | D54: =IF(D50=0,"",IF(D52=0,"",ROUND(((D50-D52)/7.5)+(IF(J69=0,0,(((ROUND(J69/(IF(D47=0,IF(D46=0,D45,D46),D47)),1))-2)/10))),1))) -> 9.7 | E54: % Vol. | F54: =IF(D54="",CONCATENATE("Genstande: ",Data!I36),CONCATENATE("Genstande: ",Data!I37)) -> Genstande: 3,2 | H54: Gæring færdig
H55: Tid | J55: =IF(J54=0,0,(J54-J53)) -> 0 | L55: dage
A56: Tapning - fordelt på flaskestørrelse
A57: Label Farve / Kapsel | H57: Modning - 2. ferm.
A58: Flasker | B58: à | C58: 2 liter | E58: =D58*2 -> 0 | F58: Liter | H58: Kommentar
A59: Flasker | B59: à | C59: 1 liter | E59: =D59 -> 0 | F59: Liter | H59: Tilsat gær type (2 mulige):
A60: Flasker | B60: à | C60: 0,75 liter | D60: 3 | E60: =D60*0.75 -> 2.25 | F60: Liter
A61: Flasker | B61: à | C61: 0,66 liter | E61: =D61*0.66 -> 0 | F61: Liter | H61: Modningstemperatur °C | I61: 23 | J61: Dato | L61: Modner i spand
A62: Flasker | B62: à | C62: 0,5 liter | D62: 24 | E62: =D62*0.5 -> 12 | F62: Liter | H62: Modning fra | L62: ?
A63: Flasker | B63: à | C63: 0,33 liter | D63: 1 | E63: =D63*0.33 -> 0.33 | F63: Liter | H63: Modning til
A64: Flasker | B64: à | C64: 0,25 liter | E64: =D64*0.25 -> 0 | F64: Liter | H64: Tid | J64: =IF(J63=0,0,(J63-J62)) -> 0 | L64: dage
A65: Antal flasker i alt | D65: =SUM(D58:D64) -> 28 | E65: =CONCATENATE("= ",SUM(E58:E64)) -> = 14,58 | F65: Liter på flaske
H66: Karbonering - 3. ferm.
A67: Brygnoter: | B67: Inspiration: | H67: Tilsat gær type:
A68: Det meget spild ved flaskning skyldtes de mæsnings problemer vi havde, Kornet var for fint malet | H68: Anbefalet mængde sukker til karbonering: | J68: =IFERROR((IF(G3="","",ROUND((((VLOOKUP(G3,Typer!C3:V125,17,FALSE)-VLOOKUP(I52,Gær!I2:J29,2,FALSE))*4)*(IF(D47="",IF(D46=0,D45,D46),D47))),0))),"") -> 205 | L68: =CONCATENATE("gram = ",IF(D46=0,"?",IF(J68="",0,(ROUND(J68/(IF(D47="",IF(D46=0,D45,D46),D47)),1))))," g/ltr.") -> gram = 13,7 g/ltr.
H69: Tilsat sukker | L69: =CONCATENATE("gram = ",IF(D46=0,"?",(ROUND(J69/(IF(D47="",IF(D46=0,D45,D46),D47)),1)))," g/ltr.") -> gram = 0 g/ltr.
J70: Dato | L70: Karbonerer i
H71: Karbonering fra | L71: Flaske
H72: Karbonering til
H73: Tid | J73: =IF(J72=0,0,(J72-J71)) -> 0 | L73: dage
A75: Vurderinger: | C75: Skumkrone | E75: Duft | H75: Smag | K75: Farve
A76: Ved brygning | B76: - | E76: super lækker
A77: Ved omstikning | B77: -
A78: Ved flaskning | B78: - | E78: lidt sært
A79: Ved første åbning
A80: Efter nogen tid
A81: Brygget af: | B81: Pierre & Lasse | H81: Godkendt til servering d.:

Sheet INFO
B2: Brew like a Monk - essentials | G2: Temperature steps in Beer Brewing
G3: Temperature | H3: Name | I3: Function | J3: Good for
C4: Malts and Sugars | D4: Limit malts darker than 100 EBC to 7%
D5: Use sugar for 10 - 20% of grist | G5: 35°C | H5: Acid Rest | I5: For undermodified malts; | J5: Bohemian Pilsners
D6: Sucrose adds alcohol and lightens the beer
D7: Caramelized sugars add rumminess and complexity | G7: 45°C | H7: Acid Rest | I7: For better flow during mashing | J7: All beers
C9: Mash | D9: Single infusion mash between 63°C and 65°C or step mash. | G9: 46-53°C | H9: Protein Rest | I9: For clarity – too much degrades head retention | J9: All beers
D10: - Remember protein rest (45 - 60°C) may degrade body and head - see next table ->
G11: 55-58°C | H11: Protein Rest | I11: For head retention | J11: All beers
C12: Boil | D12: Use noble hops
D13: Let bittering hops account for two thirds of hop mass | G13: 60-65°C | H13: Low Temp. saccharification | I13: For high fermentability; gives a dry finish | J13: German Pilsners
D14: Aim for BU:GU ratio of about 3 : 8 (RBR = 0,37 - 0,38)
D15: - a little higher for tripels and lower for strong darks | G15: 66-68°C | H15: High Temp. saccharification | I15: For less fermentability; gives a sweet finish | J15: Oktoberfest
D16: If a drinker can name the spice, you have used too much
G17: 77°C | H17: Mash Out | I17: Stops all enzyme action and allows sparging | J17: All beers
C18: Fermentation | D18: Blending yeast strains adds complexity | I18: to be more efficient.
D19: Start fermenting at low temperatures and let the temperature rise
D20: Allow for longer fermentation and longer cool maturation before bottling. | G20: 80°C ++ | H20: MAX. Limit | I20: Mash out above 80°C is not recommended as | J20: All beers
I21: unwanted substances are washed from the mash.
A24: Herunder kan man f.eks. kopiere inspiration, originale opskrifter eller artikler ind.

Sheet Labels
B1: FLASKE-ETIKETTER
D2: Udfyldes automatisk fra BrewReport til denne Label
D6: =IF(BrewReport!D2<>"",CONCATENATE(BrewReport!D2," - ",BrewReport!G3),IF(BrewReport!G3="","",BrewReport!G3)) -> Forårsvelsignelse - Weizenbock | P6: =$D$6 -> Forårsvelsignelse - Weizenbock
D9: Brygget: | E9: =IF(BrewReport!K3="","",BrewReport!K3) -> 2017-04-17 | G9: Tappet: | H9: =IF(BrewReport!D51="","",BrewReport!D51) ->  | I9: Bryg # | J9: =IF(BrewReport!D3="","",BrewReport!D3) -> 29 | P9: Brygget: | Q9: =$E$9 -> 2017-04-17 | S9: Tappet: | T9: =$H$9 ->  | U9: =$I$9 -> Bryg # | V9: =$J$9 -> 29
D11: Malt: | E11: =CONCATENATE(IF(BrewReport!A9="","",BrewReport!A9),IF(BrewReport!A10="","",CONCATENATE(", ",BrewReport!A10)),IF(BrewReport!A11="","",CONCATENATE(", ",BrewReport!A11)),IF(BrewReport!A12="","",CONCATENATE(", ",BrewReport!A12)),IF(BrewReport!A13="","",CONCATENATE(", ",BrewReport!A13)),IF(BrewReport!A14="","",CONCATENATE(", ",BrewReport!A14)),IF(BrewReport!A15="","",CONCATENATE(", ",BrewReport!A15))) -> Pale Ale, Wheat, Wheat Flaked | P11: =$D$11 -> Malt: | Q11: =$E$11 -> Pale Ale, Wheat, Wheat Flaked
D13: Humle: | E13: =CONCATENATE(IF(BrewReport!A23="","",BrewReport!A23),IF(BrewReport!A24="","",CONCATENATE(", ",BrewReport!A24)),IF(BrewReport!A25="","",CONCATENATE(", ",BrewReport!A25)),IF(BrewReport!A27="","",CONCATENATE(", ",BrewReport!A27)),IF(BrewReport!A28="","",CONCATENATE(", ",BrewReport!A28)),IF(BrewReport!A29="","",CONCATENATE(", ",BrewReport!A29)),IF(BrewReport!A31="","",CONCATENATE(", ",BrewReport!A31)),IF(BrewReport!A32="","",CONCATENATE(", ",BrewReport!A32)),IF(BrewReport!A33="","",CONCATENATE(", ",BrewReport!A33))) -> Perle, Perle | P13: =$D$13 -> Humle: | Q13: =$E$13 -> Perle, Perle
E14: =CONCATENATE(IF(BrewReport!J50="","",IF(BrewReport!J51="",BrewReport!J50,CONCATENATE(BrewReport!J50,", ",CHAR(10)))),IF(BrewReport!J51="","",BrewReport!J51)) -> Brewolution Wheat Beer | Q14: =$E$14 -> Brewolution Wheat Beer
D15: Gær: | P15: =$D$15 -> Gær:
D17: Tilsætning: | E17: =CONCATENATE(IF(BrewReport!A36="","",BrewReport!A36),IF(BrewReport!A37="","",CONCATENATE(", ",BrewReport!A37)),IF(BrewReport!A38="","",CONCATENATE(", ",BrewReport!A38)),IF(BrewReport!A39="","",CONCATENATE(", ",BrewReport!A39)),IF(BrewReport!A40="","",CONCATENATE(", ",BrewReport!A40)),IF(OR((BrewReport!A41="Klar Urt"),(BrewReport!A41="")),"",CONCATENATE(", ",BrewReport!A41)),IF(BrewReport!A35="","",CONCATENATE(", ",BrewReport!A35))) -> Rørsukker, Appelsinskal | P17: =$D$17 -> Tilsætning: | Q17: =$E$17 -> Rørsukker, Appelsinskal
D19: Alc. Vol.: | E19: =IF(BrewReport!$D$54="",IF(Data!I29="","",Data!I29/100),BrewReport!$D$54/100) -> 0.097 | G19: EBC: | H19: =BrewReport!$E$6 -> 9.9 | I19: IBU: | J19: =BrewReport!$J$6 -> 12.368 | P19: =$D$19 -> Alc. Vol.: | Q19: =$E$19 -> 0.097 | S19: =$G$19 -> EBC: | T19: =$H$19 -> 9.9 | U19: =$I$19 -> IBU: | V19: =$J$19 -> 12.368
D21: Brygget af: | E21: =IF(BrewReport!B81="","",BrewReport!B81) -> Pierre & Lasse | G21: =IF(Data!I36="","",CONCATENATE("Indhold: ",Data!E6," liter; svarer til ",IF(Data!I37="",Data!I36,Data!I37)," genstande")) -> Indhold: 0,5 liter; svarer til 3,2 genstande | P21: =$D$21 -> Brygget af: | Q21: =$E$21 -> Pierre & Lasse | S21: =$G$21 -> Indhold: 0,5 liter; svarer til 3,2 genstande
D23: =IF(BrewReport!D1="","",BrewReport!D1) -> Hulebækkens bryghus | P23: =$D$23 -> Hulebækkens bryghus
D29: =$D$6 -> Forårsvelsignelse - Weizenbock | P29: =$D$6 -> Forårsvelsignelse - Weizenbock
D32: Brygget: | E32: =$E$9 -> 2017-04-17 | G32: Tappet: | H32: =$H$9 ->  | I32: =$I$9 -> Bryg # | J32: =$J$9 -> 29 | P32: Brygget: | Q32: =$E$9 -> 2017-04-17 | S32: Tappet: | T32: =$H$9 ->  | U32: =$I$9 -> Bryg # | V32: =$J$9 -> 29
D34: =$D$11 -> Malt: | E34: =$E$11 -> Pale Ale, Wheat, Wheat Flaked | P34: =$D$11 -> Malt: | Q34: =$E$11 -> Pale Ale, Wheat, Wheat Flaked
D36: =$D$13 -> Humle: | E36: =$E$13 -> Perle, Perle | P36: =$D$13 -> Humle: | Q36: =$E$13 -> Perle, Perle
E37: =$E$14 -> Brewolution Wheat Beer | Q37: =$E$14 -> Brewolution Wheat Beer
D38: =$D$15 -> Gær: | P38: =$D$15 -> Gær:
D40: =$D$17 -> Tilsætning: | E40: =$E$17 -> Rørsukker, Appelsinskal | P40: =$D$17 -> Tilsætning: | Q40: =$E$17 -> Rørsukker, Appelsinskal
D42: =$D$19 -> Alc. Vol.: | E42: =$E$19 -> 0.097 | G42: =$G$19 -> EBC: | H42: =$H$19 -> 9.9 | I42: =$I$19 -> IBU: | J42: =$J$19 -> 12.368 | P42: =$D$19 -> Alc. Vol.: | Q42: =$E$19 -> 0.097 | S42: =$G$19 -> EBC: | T42: =$H$19 -> 9.9 | U42: =$I$19 -> IBU: | V42: =$J$19 -> 12.368
D44: =$D$21 -> Brygget af: | E44: =$E$21 -> Pierre & Lasse | G44: =$G$21 -> Indhold: 0,5 liter; svarer til 3,2 genstande | P44: =$D$21 -> Brygget af: | Q44: =$E$21 -> Pierre & Lasse | S44: =$G$21 -> Indhold: 0,5 liter; svarer til 3,2 genstande
D46: =$D$23 -> Hulebækkens bryghus | P46: =$D$23 -> Hulebækkens bryghus
D52: =$D$6 -> Forårsvelsignelse - Weizenbock | P52: =$D$6 -> Forårsvelsignelse - Weizenbock
D55: Brygget: | E55: =$E$9 -> 2017-04-17 | G55: Tappet: | H55: =$H$9 ->  | I55: =$I$9 -> Bryg # | J55: =$J$9 -> 29 | P55: Brygget: | Q55: =$E$9 -> 2017-04-17 | S55: Tappet: | T55: =$H$9 ->  | U55: =$I$9 -> Bryg # | V55: =$J$9 -> 29
D57: =$D$11 -> Malt: | E57: =$E$11 -> Pale Ale, Wheat, Wheat Flaked | P57: =$D$11 -> Malt: | Q57: =$E$11 -> Pale Ale, Wheat, Wheat Flaked
D59: =$D$13 -> Humle: | E59: =$E$13 -> Perle, Perle | P59: =$D$13 -> Humle: | Q59: =$E$13 -> Perle, Perle
E60: =$E$14 -> Brewolution Wheat Beer | Q60: =$E$14 -> Brewolution Wheat Beer
D61: =$D$15 -> Gær: | P61: =$D$15 -> Gær:
D63: =$D$17 -> Tilsætning: | E63: =$E$17 -> Rørsukker, Appelsinskal | P63: =$D$17 -> Tilsætning: | Q63: =$E$17 -> Rørsukker, Appelsinskal
D65: =$D$19 -> Alc. Vol.: | E65: =$E$19 -> 0.097 | G65: =$G$19 -> EBC: | H65: =$H$19 -> 9.9 | I65: =$I$19 -> IBU: | J65: =$J$19 -> 12.368 | P65: =$D$19 -> Alc. Vol.: | Q65: =$E$19 -> 0.097 | S65: =$G$19 -> EBC: | T65: =$H$19 -> 9.9 | U65: =$I$19 -> IBU: | V65: =$J$19 -> 12.368
D67: =$D$21 -> Brygget af: | E67: =$E$21 -> Pierre & Lasse | G67: =$G$21 -> Indhold: 0,5 liter; svarer til 3,2 genstande | P67: =$D$21 -> Brygget af: | Q67: =$E$21 -> Pierre & Lasse | S67: =$G$21 -> Indhold: 0,5 liter; svarer til 3,2 genstande
D69: =$D$23 -> Hulebækkens bryghus | P69: =$D$23 -> Hulebækkens bryghus
D75: =$D$6 -> Forårsvelsignelse - Weizenbock | P75: =$D$6 -> Forårsvelsignelse - Weizenbock
D78: Brygget: | E78: =$E$9 -> 2017-04-17 | G78: Tappet: | H78: =$H$9 ->  | I78: =$I$9 -> Bryg # | J78: =$J$9 -> 29 | P78: Brygget: | Q78: =$E$9 -> 2017-04-17 | S78: Tappet: | T78: =$H$9 ->  | U78: =$I$9 -> Bryg # | V78: =$J$9 -> 29
D80: =$D$11 -> Malt: | E80: =$E$11 -> Pale Ale, Wheat, Wheat Flaked | P80: =$D$11 -> Malt: | Q80: =$E$11 -> Pale Ale, Wheat, Wheat Flaked
D82: =$D$13 -> Humle: | E82: =$E$13 -> Perle, Perle | P82: =$D$13 -> Humle: | Q82: =$E$13 -> Perle, Perle
E83: =$E$14 -> Brewolution Wheat Beer | Q83: =$E$14 -> Brewolution Wheat Beer
D84: =$D$15 -> Gær: | P84: =$D$15 -> Gær:
D86: =$D$17 -> Tilsætning: | E86: =$E$17 -> Rørsukker, Appelsinskal | P86: =$D$17 -> Tilsætning: | Q86: =$E$17 -> Rørsukker, Appelsinskal
D88: =$D$19 -> Alc. Vol.: | E88: =$E$19 -> 0.097 | G88: =$G$19 -> EBC: | H88: =$H$19 -> 9.9 | I88: =$I$19 -> IBU: | J88: =$J$19 -> 12.368 | P88: =$D$19 -> Alc. Vol.: | Q88: =$E$19 -> 0.097 | S88: =$G$19 -> EBC: | T88: =$H$19 -> 9.9 | U88: =$I$19 -> IBU: | V88: =$J$19 -> 12.368
D90: =$D$21 -> Brygget af: | E90: =$E$21 -> Pierre & Lasse | G90: =$G$21 -> Indhold: 0,5 liter; svarer til 3,2 genstande | P90: =$D$21 -> Brygget af: | Q90: =$E$21 -> Pierre & Lasse | S90: =$G$21 -> Indhold: 0,5 liter; svarer til 3,2 genstande
D92: =$D$23 -> Hulebækkens bryghus | P92: =$D$23 -> Hulebækkens bryghus

Sheet Data
A1: =IF(BrewReport!J10>0,BrewReport!J10,"") -> 10 | B1: =IF(BrewReport!L10>0,BrewReport!L10,"") -> 45 | D1: STAMDATA
A2: =IF(BrewReport!J12>0,BrewReport!J12,"") -> 10 | B2: =IF(BrewReport!L12>0,BrewReport!L12,"") -> 57 | D2: Bryggeri
A3: =IF(BrewReport!J13>0,BrewReport!J13,"") -> 30 | B3: =IF(BrewReport!L13>0,BrewReport!L13,"") -> 62 | D3: Brygmester
A4: =IF(BrewReport!J14>0,BrewReport!J14,"") ->  | B4: =IF(BrewReport!L14>0,BrewReport!L14,"") ->  | D4: Mæskeeffektivitet | E4: 0.75 | F4: Anvendes til at estimere Original Gravity
A5: =IF(BrewReport!J15>0,BrewReport!J15,"") ->  | B5: =IF(BrewReport!L15>0,BrewReport!L15,"") ->  | D5: Urtmængde i liter | E5: 25 | F5: Anvendes til at beregne Effektivitet og Original Gravity
A6: =IF(BrewReport!J16>0,BrewReport!J16,"") -> 30 | B6: =IF(BrewReport!L16>0,BrewReport!L16,"") -> 72 | D6: Flaskestørrelse i liter | E6: 0.5 | F6: Anvendes til at beregne og vise antal genstande
A7: =IF(BrewReport!J17>0,BrewReport!J17,"") -> 5 | B7: =IF(BrewReport!L17>0,BrewReport!L17,"") -> 78 | D7: Opvarmningstid af urt (min/°C) | E7: 1 | F7: Anvendes til at beregne bryggetider
A8: =IF(BrewReport!J18>0,BrewReport!J18,"") ->  | B8: =IF(BrewReport!L18>0,BrewReport!L18,"") ->  | D8: Beregninger | E8: Malt | F8: % | G8: EBC | H8: Ekstraktudbytte | I8: OG
A9: =IF(BrewReport!J19>0,BrewReport!J19,"") -> 1 | B9: =IF(BrewReport!L19>0,BrewReport!L19,"") -> 78 | E9: =IF(BrewReport!A9="","",BrewReport!A9) -> Pale Ale | F9: =IF(E9="","",ROUND(((BrewReport!D9/BrewReport!$D$19)*100),1)) -> 50 | G9: =IF(E9="","",IF(BrewReport!D9="","",ROUND((VLOOKUP(E9,Malt!$A$3:$D$75,3,)*(Data!F9/100)),1))) -> 4 | H9: =IF(E9="","",(VLOOKUP(E9,Malt!$A$2:$D$75,4,)*F9/100)) -> 150 | I9: |
A10: =IF(BrewReport!J22>0,BrewReport!J22,"") -> 90 | B10: =IF(BrewReport!J22>0,100,"") -> 100 | E10: =IF(BrewReport!A10="","",BrewReport!A10) -> Wheat | F10: =IF(E10="","",ROUND(((BrewReport!D10/BrewReport!$D$19)*100),1)) -> 41.7 | G10: =IF(E10="","",IF(BrewReport!D10="","",ROUND((VLOOKUP(E10,Malt!$A$3:$D$75,3,)*(Data!F10/100)),1))) -> 1.3 | H10: =IF(E10="","",(VLOOKUP(E10,Malt!$A$2:$D$75,4,)*F10/100)) -> 129.27 | I10: |
A11: =IFERROR(INDEX($A$1:$A$10,SMALL(IF(ISNUMBER($A$1:$A$10),ROW($A$1:$A$10)),ROW(A1))),"") -> 10 | B11: =IFERROR(INDEX($B$1:$B$10,SMALL(IF(ISNUMBER($B$1:$B$10),ROW($B$1:$B$10)),ROW(B1))),"") -> 45 | C11: =IF(A11="","",A11) -> 10 | E11: =IF(BrewReport!A11="","",BrewReport!A11) -> Wheat Flaked | F11: =IF(E11="","",ROUND(((BrewReport!D11/BrewReport!$D$19)*100),1)) -> 8.3 | G11: =IF(E11="","",IF(BrewReport!D11="","",ROUND((VLOOKUP(E11,Malt!$A$3:$D$75,3,)*(Data!F11/100)),1))) -> 0.4 | H11: =IF(E11="","",(VLOOKUP(E11,Malt!$A$2:$D$75,4,)*F11/100)) -> 24.07 | I11: |
A12: =IFERROR(INDEX($A$1:$A$10,SMALL(IF(ISNUMBER($A$1:$A$10),ROW($A$1:$A$10)),ROW(A2))),"") -> 10 | B12: =IFERROR(INDEX($B$1:$B$10,SMALL(IF(ISNUMBER($B$1:$B$10),ROW($B$1:$B$10)),ROW(B2))),"") -> 57 | C12: =IF(A12="","",A12+C11) -> 20 | E12: =IF(BrewReport!A12="","",BrewReport!A12) ->  | F12: =IF(E12="","",ROUND(((BrewReport!D12/BrewReport!$D$19)*100),1)) ->  | G12: =IF(E12="","",IF(BrewReport!D12="","",ROUND((VLOOKUP(E12,Malt!$A$3:$D$75,3,)*(Data!F12/100)),1))) ->  | H12: =IF(E12="","",(VLOOKUP(E12,Malt!$A$2:$D$75,4,)*F12/100)) ->  | I12: |
A13: =IFERROR(INDEX($A$1:$A$10,SMALL(IF(ISNUMBER($A$1:$A$10),ROW($A$1:$A$10)),ROW(A3))),"") -> 30 | B13: =IFERROR(INDEX($B$1:$B$10,SMALL(IF(ISNUMBER($B$1:$B$10),ROW($B$1:$B$10)),ROW(B3))),"") -> 62 | C13: =IF(A13="","",A13+C12) -> 50 | E13: =IF(BrewReport!A13="","",BrewReport!A13) ->  | F13: =IF(E13="","",ROUND(((BrewReport!D13/BrewReport!$D$19)*100),1)) ->  | G13: =IF(E13="","",IF(BrewReport!D13="","",ROUND((VLOOKUP(E13,Malt!$A$3:$D$75,3,)*(Data!F13/100)),1))) ->  | H13: =IF(E13="","",(VLOOKUP(E13,Malt!$A$2:$D$75,4,)*F13/100)) ->  | I13: |
A14: =IFERROR(INDEX($A$1:$A$10,SMALL(IF(ISNUMBER($A$1:$A$10),ROW($A$1:$A$10)),ROW(A4))),"") -> 30 | B14: =IFERROR(INDEX($B$1:$B$10,SMALL(IF(ISNUMBER($B$1:$B$10),ROW($B$1:$B$10)),ROW(B4))),"") -> 72 | C14: 80 | D14: Estimeret effektivitet | E14: =IF(BrewReport!A14="","",BrewReport!A14) ->  | F14: =IF(E14="","",ROUND(((BrewReport!D14/BrewReport!$D$19)*100),1)) ->  | G14: =IF(E14="","",IF(BrewReport!D14="","",ROUND((VLOOKUP(E14,Malt!$A$3:$D$75,3,)*(Data!F14/100)),1))) ->  | H14: =IF(E14="","",(VLOOKUP(E14,Malt!$A$2:$D$75,4,)*F14/100)) ->  | I14: |
A15: =IFERROR(INDEX($A$1:$A$10,SMALL(IF(ISNUMBER($A$1:$A$10),ROW($A$1:$A$10)),ROW(A5))),"") -> 5 | B15: =IFERROR(INDEX($B$1:$B$10,SMALL(IF(ISNUMBER($B$1:$B$10),ROW($B$1:$B$10)),ROW(B5))),"") -> 78 | C15: 85 | D15: =IF(BrewReport!D19=0,"",((I26-1000)*E5)/(BrewReport!D19*H26)) -> 0.747634351 | E15: =IF(BrewReport!A15="","",BrewReport!A15) ->  | F15: =IF(E15="","",ROUND(((BrewReport!D15/BrewReport!$D$19)*100),1)) ->  | G15: =IF(E15="","",IF(BrewReport!D15="","",ROUND((VLOOKUP(E15,Malt!$A$3:$D$75,3,)*(Data!F15/100)),1))) ->  | H15: =IF(E15="","",(VLOOKUP(E15,Malt!$A$2:$D$75,4,)*F15/100)) ->  | I15: |
A16: =IFERROR(INDEX($A$1:$A$10,SMALL(IF(ISNUMBER($A$1:$A$10),ROW($A$1:$A$10)),ROW(A6))),"") -> 1 | B16: =IFERROR(INDEX($B$1:$B$10,SMALL(IF(ISNUMBER($B$1:$B$10),ROW($B$1:$B$10)),ROW(B6))),"") -> 78 | C16: 86 | E16: =IF(BrewReport!A16="","",BrewReport!A16) ->  | F16: =IF(E16="","",ROUND(((BrewReport!D16/BrewReport!$D$19)*100),1)) ->  | G16: =IF(E16="","",IF(BrewReport!D16="","",ROUND((VLOOKUP(E16,Malt!$A$3:$D$75,3,)*(Data!F16/100)),1))) ->  | H16: =IF(E16="","",(VLOOKUP(E16,Malt!$A$2:$D$75,4,)*F16/100)) ->  | I16: | | K16: EBC | L16: Example | O16: Beer color | P16: SRM
A17: =IFERROR(INDEX($A$1:$A$10,SMALL(IF(ISNUMBER($A$1:$A$10),ROW($A$1:$A$10)),ROW(A7))),"") -> 90 | B17: =IFERROR(INDEX($B$1:$B$10,SMALL(IF(ISNUMBER($B$1:$B$10),ROW($B$1:$B$10)),ROW(B7))),"") -> 100 | C17: 176 | E17: =IF(BrewReport!A17="","",BrewReport!A17) ->  | F17: =IF(E17="","",ROUND(((BrewReport!D17/BrewReport!$D$19)*100),1)) ->  | G17: =IF(E17="","",IF(BrewReport!D17="","",ROUND((VLOOKUP(E17,Malt!$A$3:$D$75,3,)*(Data!F17/100)),1))) ->  | H17: =IF(E17="","",(VLOOKUP(E17,Malt!$A$2:$D$75,4,)*F17/100)) ->  | I17: | | K17: 4 | L17: Pale lager, Witbier, Pilsener, Berliner Weisse | P17: 2
A18: =IFERROR(INDEX($A$1:$A$10,SMALL(IF(ISNUMBER($A$1:$A$10),ROW($A$1:$A$10)),ROW(A8))),"") ->  | B18: =IFERROR(INDEX($B$1:$B$10,SMALL(IF(ISNUMBER($B$1:$B$10),ROW($B$1:$B$10)),ROW(B8))),"") ->  | E18: =IF(BrewReport!A18="","",BrewReport!A18) ->  | F18: =IF(E18="","",ROUND(((BrewReport!D18/BrewReport!$D$19)*100),1)) ->  | G18: =IF(E18="","",IF(BrewReport!D18="","",ROUND((VLOOKUP(E18,Malt!$A$3:$D$75,3,)*(Data!F18/100)),1))) ->  | H18: =IF(E18="","",(VLOOKUP(E18,Malt!$A$2:$D$75,4,)*F18/100)) ->  | I18: | | K18: 6 | L18: Maibock, Blonde Ale | P18: 3
A19: =IFERROR(INDEX($A$1:$A$10,SMALL(IF(ISNUMBER($A$1:$A$10),ROW($A$1:$A$10)),ROW(A9))),"") ->  | B19: =IFERROR(INDEX($B$1:$B$10,SMALL(IF(ISNUMBER($B$1:$B$10),ROW($B$1:$B$10)),ROW(B9))),"") ->  | E19: Maltudbytte i alt | H19: =ROUND(SUM(H9:H18),1) -> 303.3 | I19: | | K19: 8 | L19: Weissbier | P19: 4
A20: =IFERROR(INDEX($A$1:$A$10,SMALL(IF(ISNUMBER($A$1:$A$10),ROW($A$1:$A$10)),ROW(A10))),"") ->  | B20: =IFERROR(INDEX($B$1:$B$10,SMALL(IF(ISNUMBER($B$1:$B$10),ROW($B$1:$B$10)),ROW(B10))),"") ->  | E20: =IF(OR((BrewReport!A36="Klar Urt"),(BrewReport!A36="Appelsinskal"),(BrewReport!A36="Koriander"),(BrewReport!A36="")),"",BrewReport!A36) -> Rørsukker | F20: =IF(E20="","",ROUND((((BrewReport!D36/1000)/BrewReport!$D$19)*100),1)) -> 16.7 | G20: =IF(E20="","",IF(BrewReport!D36="","",ROUND((VLOOKUP(E20,Tilsætninger!$A$2:$D$24,3,)*(Data!F20/100)),1))) -> 4.2 | H20: =IF(E20="","",(VLOOKUP(E20,Tilsætninger!$A$2:$D$24,4,)*F20/100)) -> 70.14 | I20: | | K20: 12 | L20: American Pale Ale, India Pale Ale | P20: 6
A21: 0 | B21: =IF(A21<=$C$11,$B$11,IF(A21<=$C$12,$B$12,IF(A21<=$C$13,$B$13,IF(A21<=$C$14,$B$14,IF(A21<=$C$15,$B$15,IF(A21<=$C$16,$B$16,IF(A21<=$C$17,$B$17,IF(A21<=$C$18,$B$18,IF(A21<=$C$19,$B$19,IF(A21<=$C$20,$B$20,"")))))))))) -> 45 | E21: =IF(OR((BrewReport!A37="Klar Urt"),(BrewReport!A37="Appelsinskal"),(BrewReport!A37="Koriander"),(BrewReport!A37="")),"",BrewReport!A37) ->  | F21: =IF(E21="","",ROUND((((BrewReport!D37/1000)/BrewReport!$D$19)*100),1)) ->  | G21: =IF(E21="","",IF(BrewReport!D37="","",ROUND((VLOOKUP(E21,Tilsætninger!$A$2:$D$24,3,)*(Data!F21/100)),1))) ->  | H21: =IF(E21="","",(VLOOKUP(E21,Tilsætninger!$A$2:$D$24,4,)*F21/100)) ->  | I21: | | K21: 16 | L21: Weissbier, Saison | P21: 8
A22: 5 | B22: =IF(A22<=$C$11,$B$11,IF(A22<=$C$12,$B$12,IF(A22<=$C$13,$B$13,IF(A22<=$C$14,$B$14,IF(A22<=$C$15,$B$15,IF(A22<=$C$16,$B$16,IF(A22<=$C$17,$B$17,IF(A22<=$C$18,$B$18,IF(A22<=$C$19,$B$19,IF(A22<=$C$20,$B$20,"")))))))))) -> 45 | E22: =IF(OR((BrewReport!A38="Klar Urt"),(BrewReport!A38="Appelsinskal"),(BrewReport!A38="Koriander"),(BrewReport!A38="")),"",BrewReport!A38) ->  | F22: =IF(E22="","",ROUND((((BrewReport!D38/1000)/BrewReport!$D$19)*100),1)) ->  | G22: =IF(E22="","",IF(BrewReport!D38="","",ROUND((VLOOKUP(E22,Tilsætninger!$A$2:$D$24,3,)*(Data!F22/100)),1))) ->  | H22: =IF(E22="","",(VLOOKUP(E22,Tilsætninger!$A$2:$D$24,4,)*F22/100)) ->  | I22: | | K22: 20 | L22: English Bitter, ESB | P22: 10
A23: 10 | B23: 45 | D23: Faktisk effektivitet | E23: =IF(OR((BrewReport!A39="Klar Urt"),(BrewReport!A39="Appelsinskal"),(BrewReport!A39="Koriander"),(BrewReport!A39="")),"",BrewReport!A39) ->  | F23: =IF(E23="","",ROUND((((BrewReport!D39/1000)/BrewReport!$D$19)*100),1)) ->  | G23: =IF(E23="","",IF(BrewReport!D39="","",ROUND((VLOOKUP(E23,Tilsætninger!$A$2:$D$24,3,)*(Data!F23/100)),1))) ->  | H23: =IF(E23="","",(VLOOKUP(E23,Tilsætninger!$A$2:$D$24,4,)*F23/100)) ->  | I23: | | K23: 26 | L23: Biere de Garde, Double IPA | P23: 13
A24: 15 | B24: 57 | D24: =IF(BrewReport!$D$19=0,"",((BrewReport!$D$49-1000)*BrewReport!$D$45)/(BrewReport!$D$19*$H$19)) -> 0.7204088361 | E24: =IF(OR((BrewReport!A40="Klar Urt"),(BrewReport!A40="Appelsinskal"),(BrewReport!A40="Koriander"),(BrewReport!A40="")),"",BrewReport!A40) ->  | F24: =IF(E24="","",ROUND((((BrewReport!D40/1000)/BrewReport!$D$19)*100),1)) ->  | G24: =IF(E24="","",IF(BrewReport!D40="","",ROUND((VLOOKUP(E24,Tilsætninger!$A$2:$D$24,3,)*(Data!F24/100)),1))) ->  | H24: =IF(E24="","",(VLOOKUP(E24,Tilsætninger!$A$2:$D$24,4,)*F24/100)) ->  | I24: | | K24: 33 | L24: Dark lager, Vienna lager, Marzen, Amber Ale | P24: 17
A25: 20 | B25: 57 | D25: =IF(BrewReport!$D$19=0,"",((BrewReport!$D$50-1000)*BrewReport!$D$46)/(BrewReport!$D$19*$H$26)) -> 0.6829137654 | E25: =IF(OR((BrewReport!A41="Klar Urt"),(BrewReport!A41="Appelsinskal"),(BrewReport!A41="Koriander"),(BrewReport!A41="")),"",BrewReport!A41) ->  | F25: =IF(E25="","",ROUND((((BrewReport!D41/1000)/BrewReport!$D$19)*100),1)) ->  | G25: =IF(E25="","",IF(BrewReport!D41="","",ROUND((VLOOKUP(E25,Tilsætninger!$A$2:$D$24,3,)*(Data!F25/100)),1))) ->  | H25: =IF(E25="","",(VLOOKUP(E25,Tilsætninger!$A$2:$D$24,4,)*F25/100)) ->  | I25: | | K25: 39 | L25: Brown Ale, Bock, Dunkel, Dunkelweizen | P25: 20
A26: 25 | B26: 62 | F26: =ROUND(SUM(F9:F14),0) -> 100 | G26: =ROUND(SUM(G9:G25),1) -> 9.9 | H26: =ROUND(SUM(H19:H25),1) -> 373.4 | I26: =ROUND(((BrewReport!D19*H26*(E4))/E5),0)+1000 -> 1067 | K26: 47 | L26: Irish Dry Stout, Doppelbock, Porter | P26: 24
A27: 30 | B27: 62 | D27: Gær navn og nummer | F27: Alc.Tol. | G27: Att. % | H27: FG: | I27: ALC.% | K27: 57 | L27: Stout | P27: 29
A28: 35 | B28: 62 | G28: FG beregnet af højeste Att.% | K28: 69 | L28: Foreign Stout, Baltic Porter | P28: 35
A29: 40 | B29: 62 | D29: =IF(BrewReport!J50="","",BrewReport!J50) -> Brewolution Wheat Beer | F29: =IF(D29="","",(VLOOKUP(D29,Gær!A2:G70,7,FALSE))) -> 7.5 | G29: =IF(D29="","",(VLOOKUP(D29,Gær!A2:G70,5,FALSE))) -> 73 | H29: =IF(SUM(G29:G33)=0,"",ROUND((I26-((I26-1000)*(MAX(G29:G32)/100))),0)) -> 1018 | I29: =IF(H29="","",((I26-H29)/7.5)) -> 6.533333333 | K29: 79 | L29: Imperial Stout | P29: 40+
A30: 45 | B30: 62 | D30: =IF(BrewReport!J51="","",BrewReport!J51) ->  | F30: =IF(D30="","",(VLOOKUP(D30,Gær!A2:G70,7,FALSE))) ->  | G30: =IF(D30="","",(VLOOKUP(D30,Gær!A2:G70,5,FALSE))) -> 
A31: 50 | B31: 62 | D31: =IF(BrewReport!J59="","",BrewReport!J59) ->  | F31: =IF(D31="","",(VLOOKUP(D31,Gær!A2:G70,7,FALSE))) ->  | G31: =IF(D31="","",(VLOOKUP(D31,Gær!A2:G70,5,FALSE))) ->  | K31: This is EBC to RGB
A32: 55 | B32: 72 | D32: =IF(BrewReport!J60="","",BrewReport!J60) ->  | F32: =IF(D32="","",(VLOOKUP(D32,Gær!A2:G70,7,FALSE))) ->  | G32: =IF(D32="","",(VLOOKUP(D32,Gær!A2:G70,5,FALSE))) ->  | L32: =IF(G26=0,"",VLOOKUP(G26, K34:N333,2,TRUE)) -> 225 | M32: =IF(G26=0,"",VLOOKUP(G26, K34:N333,3,TRUE)) -> 208 | N32: =IF(G26=0,"",VLOOKUP(G26, K34:N333,4,TRUE)) -> 50 | P32: This is SRM to RGB
A33: 60 | B33: 72
A34: 65 | B34: 72 | H34: Flaskeindhold | K34: 0.2 | L34: 250 | M34: 250 | N34: 210 | P34: 0,1 250 250 210
A35: 70 | B35: 72 | H35: Svarer til i genstande: | K35: 0.4 | L35: 250 | M35: 250 | N35: 204 | P35: 0,2 250 250 204
A36: 75 | B36: 72 | H36: Estimat | I36: =IF(I29="","",ROUND((((E6*1000)*0.79*(I29/100))/12),1)) -> 2.2 | K36: 0.6 | L36: 250 | M36: 250 | N36: 199 | P36: 0,3 250 250 199
A37: 80 | B37: 72 | H37: Brygget | I37: =IF(BrewReport!D54="","",ROUND((((E6*1000)*0.79*(BrewReport!D54/100))/12),1)) -> 3.2 | K37: 0.8 | L37: 250 | M37: 250 | N37: 193 | P37: 0,4 250 250 193
A38: 85 | B38: 78 | K38: 1 | L38: 250 | M38: 250 | N38: 188 | P38: 0,5 250 250 188
A39: 90 | B39: 100 | K39: 1.2 | L39: 250 | M39: 250 | N39: 182 | P39: 0,6 250 250 182
A40: 95 | B40: 100 | K40: 1.4 | L40: 250 | M40: 250 | N40: 177 | P40: 0,7 250 250 177
A41: 100 | B41: 100 | E41: Humle | F41: Gram | G41: IBU Avg. | H41: Udnyttelsesgrad | I41: IBU i urten | K41: 1.6 | L41: 250 | M41: 250 | N41: 171 | P41: 0,8 250 250 171
A42: 105 | B42: 100 | E42: =IF(BrewReport!A23="","",BrewReport!A23) -> Perle | F42: =IF(BrewReport!D23="","",BrewReport!D23) -> 30 | G42: =IF(E42="","",IF(BrewReport!B23="","",IF(BrewReport!B23="Blomst",VLOOKUP(E42,Humle!$A$3:$J$38,4,FALSE),IF(BrewReport!B23="Pellet",VLOOKUP(E42,Humle!$A$3:$J$38,5,FALSE))))) -> 4 | H42: =IF(E42="","",VLOOKUP(BrewReport!$J23,Humle!$N$8:$Y$33,((ROUNDDOWN(($I$26/10),0)*10)-1000)/10-1,TRUE)*100) -> 21.1 | I42: =IF(E42="","",IF(BrewReport!J23="","",(F42*G42*H42)/($E$5*10))) -> 10.128 | K42: 1.8 | L42: 250 | M42: 250 | N42: 166 | P42: 0,9 250 250 166
A43: 110 | B43: 100 | E43: =IF(BrewReport!A24="","",BrewReport!A24) ->  | F43: =IF(BrewReport!D24="","",BrewReport!D24) ->  | G43: =IF(E43="","",IF(BrewReport!B24="","",IF(BrewReport!B24="Blomst",VLOOKUP(E43,Humle!$A$3:$J$38,4,FALSE),IF(BrewReport!B24="Pellet",VLOOKUP(E43,Humle!$A$3:$J$38,5,FALSE))))) ->  | H43: =IF(E43="","",VLOOKUP(BrewReport!$J24,Humle!$N$8:$Y$33,((ROUNDDOWN(($I$26/10),0)*10)-1000)/10-1,TRUE)*100) ->  | I43: =IF(E43="","",IF(BrewReport!J24="","",(F43*G43*H43)/($E$5*10))) ->  | K43: 2 | L43: 250 | M43: 250 | N43: 160 | P43: 1 250 250 160
A44: 115 | B44: 100 | E44: =IF(BrewReport!A25="","",BrewReport!A25) ->  | F44: =IF(BrewReport!D25="","",BrewReport!D25) ->  | G44: =IF(E44="","",IF(BrewReport!B25="","",IF(BrewReport!B25="Blomst",VLOOKUP(E44,Humle!$A$3:$J$38,4,FALSE),IF(BrewReport!B25="Pellet",VLOOKUP(E44,Humle!$A$3:$J$38,5,FALSE))))) ->  | H44: =IF(E44="","",VLOOKUP(BrewReport!$J25,Humle!$N$8:$Y$33,((ROUNDDOWN(($I$26/10),0)*10)-1000)/10-1,TRUE)*100) ->  | I44: =IF(E44="","",IF(BrewReport!J25="","",(F44*G44*H44)/($E$5*10))) ->  | K44: 2.2 | L44: 250 | M44: 250 | N44: 155 | P44: 1,1 250 250 155
A45: 120 | B45: 100 | I45: - | K45: 2.4 | L45: 250 | M45: 250 | N45: 149 | P45: 1,2 250 250 149
A46: 125 | B46: 100 | E46: =IF(BrewReport!A27="","",BrewReport!A27) ->  | F46: =IF(BrewReport!D27="","",BrewReport!D27) ->  | G46: =IF(E46="","",IF(BrewReport!B27="","",IF(BrewReport!B27="Blomst",VLOOKUP(E46,Humle!$A$3:$J$38,4,FALSE),IF(BrewReport!B27="Pellet",VLOOKUP(E46,Humle!$A$3:$J$38,5,FALSE))))) ->  | H46: =IF(E46="","",VLOOKUP(BrewReport!$J27,Humle!$N$8:$Y$33,((ROUNDDOWN(($I$26/10),0)*10)-1000)/10-1,TRUE)*100) ->  | I46: =IF(E46="","",IF(BrewReport!J27="","",(F46*G46*H46)/($E$5*10))) ->  | K46: 2.6 | L46: 250 | M46: 250 | N46: 144 | P46: 1,3 250 250 144
A47: 130 | B47: 100 | E47: =IF(BrewReport!A28="","",BrewReport!A28) ->  | F47: =IF(BrewReport!D28="","",BrewReport!D28) ->  | G47: =IF(E47="","",IF(BrewReport!B28="","",IF(BrewReport!B28="Blomst",VLOOKUP(E47,Humle!$A$3:$J$38,4,FALSE),IF(BrewReport!B28="Pellet",VLOOKUP(E47,Humle!$A$3:$J$38,5,FALSE))))) ->  | H47: =IF(E47="","",VLOOKUP(BrewReport!$J28,Humle!$N$8:$Y$33,((ROUNDDOWN(($I$26/10),0)*10)-1000)/10-1,TRUE)*100) ->  | I47: =IF(E47="","",IF(BrewReport!J28="","",(F47*G47*H47)/($E$5*10))) ->  | K47: 2.8 | L47: 250 | M47: 250 | N47: 138 | P47: 1,4 250 250 138
A48: 135 | B48: 100 | E48: =IF(BrewReport!A29="","",BrewReport!A29) ->  | F48: =IF(BrewReport!D29="","",BrewReport!D29) ->  | G48: =IF(E48="","",IF(BrewReport!B29="","",IF(BrewReport!B29="Blomst",VLOOKUP(E48,Humle!$A$3:$J$38,4,FALSE),IF(BrewReport!B29="Pellet",VLOOKUP(E48,Humle!$A$3:$J$38,5,FALSE))))) ->  | H48: =IF(E48="","",VLOOKUP(BrewReport!$J29,Humle!$N$8:$Y$33,((ROUNDDOWN(($I$26/10),0)*10)-1000)/10-1,TRUE)*100) ->  | I48: =IF(E48="","",IF(BrewReport!J29="","",(F48*G48*H48)/($E$5*10))) ->  | K48: 3 | L48: 250 | M48: 250 | N48: 133 | P48: 1,5 250 250 133
A49: 140 | B49: 100 | I49: - | K49: 3.2 | L49: 250 | M49: 250 | N49: 127 | P49: 1,6 250 250 127
A50: 145 | B50: 100 | E50: =IF(BrewReport!A31="","",BrewReport!A31) -> Perle | F50: =IF(BrewReport!D31="","",BrewReport!D31) -> 20 | G50: =IF(E50="","",IF(BrewReport!B31="","",IF(BrewReport!B31="Blomst",VLOOKUP(E50,Humle!$A$3:$J$38,4,FALSE),IF(BrewReport!B31="Pellet",VLOOKUP(E50,Humle!$A$3:$J$38,5,FALSE))))) -> 4 | H50: =IF(E50="","",VLOOKUP(BrewReport!$J31,Humle!$N$8:$Y$33,((ROUNDDOWN(($I$26/10),0)*10)-1000)/10-1,TRUE)*100) -> 7 | I50: =IF(E50="","",IF(BrewReport!J31="","",(F50*G50*H50)/($E$5*10))) -> 2.24 | K50: 3.3 | L50: 250 | M50: 250 | N50: 122 | P50: 1,7 250 250 122
A51: 150 | B51: 100 | E51: =IF(BrewReport!A32="","",BrewReport!A32) ->  | F51: =IF(BrewReport!D32="","",BrewReport!D32) ->  | G51: =IF(E51="","",IF(BrewReport!B32="","",IF(BrewReport!B32="Blomst",VLOOKUP(E51,Humle!$A$3:$J$38,4,FALSE),IF(BrewReport!B32="Pellet",VLOOKUP(E51,Humle!$A$3:$J$38,5,FALSE))))) ->  | H51: =IF(E51="","",VLOOKUP(BrewReport!$J32,Humle!$N$8:$Y$33,((ROUNDDOWN(($I$26/10),0)*10)-1000)/10-1,TRUE)*100) ->  | I51: =IF(E51="","",IF(BrewReport!J32="","",(F51*G51*H51)/($E$5*10))) ->  | K51: 3.5 | L51: 250 | M51: 250 | N51: 116 | P51: 1,8 250 250 116
A52: 155 | B52: 100 | E52: =IF(BrewReport!A33="","",BrewReport!A33) ->  | F52: =IF(BrewReport!D33="","",BrewReport!D33) ->  | G52: =IF(E52="","",IF(BrewReport!B33="","",IF(BrewReport!B33="Blomst",VLOOKUP(E52,Humle!$A$3:$J$38,4,FALSE),IF(BrewReport!B33="Pellet",VLOOKUP(E52,Humle!$A$3:$J$38,5,FALSE))))) ->  | H52: =IF(E52="","",VLOOKUP(BrewReport!$J33,Humle!$N$8:$Y$33,((ROUNDDOWN(($I$26/10),0)*10)-1000)/10-1,TRUE)*100) ->  | I52: =IF(E52="","",IF(BrewReport!J33="","",(F52*G52*H52)/($E$5*10))) ->  | K52: 3.7 | L52: 250 | M52: 250 | N52: 111 | P52: 1,9 250 250 111
A53: 160 | B53: 100 | E53: =IF(BrewReport!A34="","",BrewReport!A34) -> Andet | I53: - | K53: 3.9 | L53: 250 | M53: 250 | N53: 105 | P53: 2 250 250 105
A54: 165 | B54: 100 | K54: 4.1 | L54: 250 | M54: 250 | N54: 100 | P54: 2,1 250 250 100
A55: 170 | B55: 100 | F55: Total IBU: | I55: =SUM(I42:I53) -> 12.368 | K55: 4.3 | L55: 250 | M55: 250 | N55: 94 | P55: 2,2 250 250 94
A56: 175 | B56: 100 | K56: 4.5 | L56: 250 | M56: 250 | N56: 89 | P56: 2,3 250 250 89
A57: 180 | D57: BU:GU and RBR: | E57: http://www.madalchemist.com/chart_bitterness_corrected.html | K57: 4.7 | L57: 250 | M57: 250 | N57: 83 | P57: 2,4 250 250 83
A58: 185 | K58: 4.9 | L58: 250 | M58: 250 | N58: 78 | P58: 2,5 250 250 78
A59: 190 | K59: 5.1 | L59: 249 | M59: 250 | N59: 72 | P59: 2,6 249 250 72
A60: 195 | K60: 5.3 | L60: 248 | M60: 249 | N60: 67 | P60: 2,7 248 249 67
A61: 200 | K61: 5.5 | L61: 247 | M61: 248 | N61: 61 | P61: 2,8 247 248 61
A62: 205 | K62: 5.7 | L62: 246 | M62: 247 | N62: 56 | P62: 2,9 246 247 56
A63: 210 | K63: 5.9 | L63: 245 | M63: 246 | N63: 50 | P63: 3 245 246 50
A64: 215 | K64: 6.1 | L64: 244 | M64: 245 | N64: 45 | P64: 3,1 244 245 45
A65: 220 | K65: 6.3 | L65: 243 | M65: 244 | N65: 45 | P65: 3,2 243 244 45
A66: 225 | K66: 6.5 | L66: 242 | M66: 242 | N66: 45 | P66: 3,3 242 242 45
A67: 230 | K67: 6.7 | L67: 241 | M67: 240 | N67: 46 | P67: 3,4 241 240 46
A68: 235 | K68: 6.9 | L68: 240 | M68: 238 | N68: 46 | P68: 3,5 240 238 46
A69: 240 | K69: 7.1 | L69: 239 | M69: 236 | N69: 46 | P69: 3,6 239 236 46
A70: 245 | K70: 7.3 | L70: 238 | M70: 234 | N70: 46 | P70: 3,7 238 234 46
A71: 250 | K71: 7.5 | L71: 237 | M71: 232 | N71: 47 | P71: 3,8 237 232 47
A72: 255 | K72: 7.7 | L72: 236 | M72: 230 | N72: 47 | P72: 3,9 236 230 47
A73: 260 | K73: 7.9 | L73: 235 | M73: 228 | N73: 47 | P73: 4 235 228 47
A74: 265 | I74: RBR colour coding | K74: 8.1 | L74: 234 | M74: 226 | N74: 47 | P74: 4,1 234 226 47
A75: 270 | I75: (extra hoppy) > | J75: =35/55 -> 0.6363636364 | K75: 8.3 | L75: 233 | M75: 224 | N75: 48 | P75: 4,2 233 224 48
I76: (slightly hoppy) > | J76: =40/75 -> 0.5333333333 | K76: 8.5 | L76: 232 | M76: 222 | N76: 48 | P76: 4,3 232 222 48
I77: (evenly balanced) > | J77: =20/45 -> 0.4444444444 | K77: 8.7 | L77: 231 | M77: 220 | N77: 48 | P77: 4,4 231 220 48
I78: (slightly malty) > | J78: =20/55 -> 0.3636363636 | K78: 8.9 | L78: 230 | M78: 218 | N78: 48 | P78: 4,5 230 218 48
I79: (extra malty) < | J79: =20/55 -> 0.3636363636 | K79: 9.1 | L79: 229 | M79: 216 | N79: 49 | P79: 4,6 229 216 49
K80: 9.3 | L80: 228 | M80: 214 | N80: 49 | P80: 4,7 228 214 49
K81: 9.5 | L81: 227 | M81: 212 | N81: 49 | P81: 4,8 227 212 49
K82: 9.7 | L82: 226 | M82: 210 | N82: 49 | P82: 4,9 226 210 49
K83: 9.9 | L83: 225 | M83: 208 | N83: 50 | P83: 5 225 208 50
K84: 10 | L84: 224 | M84: 206 | N84: 50 | P84: 5,1 224 206 50
K85: 10.2 | L85: 223 | M85: 204 | N85: 50 | P85: 5,2 223 204 50
K86: 10.4 | L86: 222 | M86: 202 | N86: 50 | P86: 5,3 222 202 50
K87: 10.6 | L87: 221 | M87: 200 | N87: 51 | P87: 5,4 221 200 51
K88: 10.8 | L88: 220 | M88: 198 | N88: 51 | P88: 5,5 220 198 51
K89: 11 | L89: 219 | M89: 196 | N89: 51 | P89: 5,6 219 196 51
K90: 11.2 | L90: 218 | M90: 194 | N90: 51 | P90: 5,7 218 194 51
K91: 11.4 | L91: 217 | M91: 192 | N91: 52 | P91: 5,8 217 192 52
K92: 11.6 | L92: 216 | M92: 190 | N92: 52 | P92: 5,9 216 190 52
K93: 11.8 | L93: 215 | M93: 188 | N93: 52 | P93: 6 215 188 52
K94: 12 | L94: 214 | M94: 186 | N94: 52 | P94: 6,1 214 186 52
K95: 12.2 | L95: 213 | M95: 184 | N95: 53 | P95: 6,2 213 184 53
K96: 12.4 | L96: 212 | M96: 182 | N96: 53 | P96: 6,3 212 182 53
K97: 12.6 | L97: 211 | M97: 180 | N97: 53 | P97: 6,4 211 180 53
K98: 12.8 | L98: 210 | M98: 178 | N98: 53 | P98: 6,5 210 178 53
K99: 13 | L99: 209 | M99: 176 | N99: 54 | P99: 6,6 209 176 54
K100: 13.2 | L100: 208 | M100: 174 | N100: 54 | P100: 6,7 208 174 54
K101: 13.4 | L101: 207 | M101: 172 | N101: 54 | P101: 6,8 207 172 54
K102: 13.6 | L102: 206 | M102: 170 | N102: 54 | P102: 6,9 206 170 54
K103: 13.8 | L103: 205 | M103: 168 | N103: 55 | P103: 7 205 168 55
K104: 14 | L104: 204 | M104: 166 | N104: 55 | P104: 7,1 204 166 55
K105: 14.2 | L105: 203 | M105: 164 | N105: 55 | P105: 7,2 203 164 55
K106: 14.4 | L106: 202 | M106: 162 | N106: 55 | P106: 7,3 202 162 55
K107: 14.6 | L107: 201 | M107: 160 | N107: 56 | P107: 7,4 201 160 56
K108: 14.8 | L108: 200 | M108: 158 | N108: 56 | P108: 7,5 200 158 56
K109: 15 | L109: 200 | M109: 156 | N109: 56 | P109: 7,6 200 156 56
K110: 15.2 | L110: 199 | M110: 154 | N110: 56 | P110: 7,7 199 154 56
K111: 15.4 | L111: 199 | M111: 152 | N111: 56 | P111: 7,8 199 152 56
K112: 15.6 | L112: 198 | M112: 150 | N112: 56 | P112: 7,9 198 150 56
K113: 15.8 | L113: 198 | M113: 148 | N113: 56 | P113: 8 198 148 56
K114: 16 | L114: 197 | M114: 146 | N114: 56 | P114: 8,1 197 146 56
K115: 16.2 | L115: 197 | M115: 144 | N115: 56 | P115: 8,2 197 144 56
K116: 16.4 | L116: 196 | M116: 142 | N116: 56 | P116: 8,3 196 142 56
K117: 16.5 | L117: 196 | M117: 141 | N117: 56 | P117: 8,4 196 141 56
K118: 16.7 | L118: 195 | M118: 140 | N118: 56 | P118: 8,5 195 140 56
K119: 16.9 | L119: 195 | M119: 139 | N119: 56 | P119: 8,6 195 139 56
K120: 17.1 | L120: 194 | M120: 139 | N120: 56 | P120: 8,7 194 139 56
K121: 17.3 | L121: 194 | M121: 138 | N121: 56 | P121: 8,8 194 138 56
K122: 17.5 | L122: 193 | M122: 137 | N122: 56 | P122: 8,9 193 137 56
K123: 17.7 | L123: 193 | M123: 136 | N123: 56 | P123: 9 193 136 56
K124: 17.9 | L124: 192 | M124: 136 | N124: 56 | P124: 9,1 192 136 56
K125: 18.1 | L125: 192 | M125: 135 | N125: 56 | P125: 9,2 192 135 56
K126: 18.3 | L126: 192 | M126: 134 | N126: 56 | P126: 9,3 192 134 56
K127: 18.5 | L127: 192 | M127: 133 | N127: 56 | P127: 9,4 192 133 56
K128: 18.7 | L128: 192 | M128: 133 | N128: 56 | P128: 9,5 192 133 56
K129: 18.9 | L129: 192 | M129: 132 | N129: 56 | P129: 9,6 192 132 56
K130: 19.1 | L130: 192 | M130: 131 | N130: 56 | P130: 9,7 192 131 56
K131: 19.3 | L131: 192 | M131: 130 | N131: 56 | P131: 9,8 192 130 56
K132: 19.5 | L132: 192 | M132: 130 | N132: 56 | P132: 9,9 192 130 56
K133: 19.7 | L133: 192 | M133: 129 | N133: 56 | P133: 10 192 129 56
K134: 19.9 | L134: 192 | M134: 128 | N134: 56 | P134: 10,1 192 128 56
K135: 20.1 | L135: 192 | M135: 127 | N135: 56 | P135: 10,2 192 127 56
K136: 20.3 | L136: 192 | M136: 127 | N136: 56 | P136: 10,3 192 127 56
K137: 20.5 | L137: 192 | M137: 126 | N137: 56 | P137: 10,4 192 126 56
K138: 20.7 | L138: 192 | M138: 125 | N138: 56 | P138: 10,5 192 125 56
K139: 20.9 | L139: 192 | M139: 124 | N139: 56 | P139: 10,6 192 124 56
K140: 21.1 | L140: 192 | M140: 124 | N140: 56 | P140: 10,7 192 124 56
K141: 21.3 | L141: 192 | M141: 123 | N141: 56 | P141: 10,8 192 123 56
K142: 21.5 | L142: 192 | M142: 122 | N142: 56 | P142: 10,9 192 122 56
K143: 21.7 | L143: 192 | M143: 121 | N143: 56 | P143: 11 192 121 56
K144: 21.9 | L144: 192 | M144: 121 | N144: 56 | P144: 11,1 192 121 56
K145: 22.1 | L145: 192 | M145: 120 | N145: 56 | P145: 11,2 192 120 56
K146: 22.3 | L146: 192 | M146: 119 | N146: 56 | P146: 11,3 192 119 56
K147: 22.5 | L147: 192 | M147: 118 | N147: 56 | P147: 11,4 192 118 56
K148: 22.7 | L148: 192 | M148: 118 | N148: 56 | P148: 11,5 192 118 56
K149: 22.9 | L149: 192 | M149: 117 | N149: 56 | P149: 11,6 192 117 56
K150: 23 | L150: 192 | M150: 116 | N150: 56 | P150: 11,7 192 116 56
K151: 23.2 | L151: 192 | M151: 115 | N151: 56 | P151: 11,8 192 115 56
K152: 23.4 | L152: 192 | M152: 115 | N152: 56 | P152: 11,9 192 115 56
K153: 23.6 | L153: 192 | M153: 114 | N153: 56 | P153: 12 192 114 56
K154: 23.8 | L154: 192 | M154: 113 | N154: 56 | P154: 12,1 192 113 56
K155: 24 | L155: 192 | M155: 112 | N155: 56 | P155: 12,2 192 112 56
K156: 24.2 | L156: 192 | M156: 112 | N156: 56 | P156: 12,3 192 112 56
K157: 24.4 | L157: 192 | M157: 111 | N157: 56 | P157: 12,4 192 111 56
K158: 24.6 | L158: 192 | M158: 110 | N158: 56 | P158: 12,5 192 110 56
K159: 24.8 | L159: 192 | M159: 109 | N159: 56 | P159: 12,6 192 109 56
K160: 25 | L160: 192 | M160: 109 | N160: 56 | P160: 12,7 192 109 56
K161: 25.2 | L161: 192 | M161: 108 | N161: 56 | P161: 12,8 192 108 56
K162: 25.4 | L162: 191 | M162: 107 | N162: 56 | P162: 12,9 191 107 56
K163: 25.6 | L163: 190 | M163: 106 | N163: 56 | P163: 13 190 106 56
K164: 25.8 | L164: 189 | M164: 106 | N164: 56 | P164: 13,1 189 106 56
K165: 26 | L165: 188 | M165: 105 | N165: 56 | P165: 13,2 188 105 56
K166: 26.2 | L166: 187 | M166: 104 | N166: 56 | P166: 13,3 187 104 56
K167: 26.4 | L167: 186 | M167: 103 | N167: 56 | P167: 13,4 186 103 56
K168: 26.6 | L168: 185 | M168: 103 | N168: 56 | P168: 13,5 185 103 56
K169: 26.8 | L169: 184 | M169: 102 | N169: 56 | P169: 13,6 184 102 56
K170: 27 | L170: 183 | M170: 101 | N170: 56 | P170: 13,7 183 101 56
K171: 27.2 | L171: 182 | M171: 100 | N171: 56 | P171: 13,8 182 100 56
K172: 27.4 | L172: 181 | M172: 100 | N172: 56 | P172: 13,9 181 100 56
K173: 27.6 | L173: 180 | M173: 99 | N173: 56 | P173: 14 180 99 56
K174: 27.8 | L174: 179 | M174: 98 | N174: 56 | P174: 14,1 179 98 56
K175: 28 | L175: 178 | M175: 97 | N175: 56 | P175: 14,2 178 97 56
K176: 28.2 | L176: 177 | M176: 97 | N176: 56 | P176: 14,3 177 97 56
K177: 28.4 | L177: 175 | M177: 96 | N177: 55 | P177: 14,4 175 96 55
K178: 28.6 | L178: 174 | M178: 95 | N178: 55 | P178: 14,5 174 95 55
K179: 28.8 | L179: 172 | M179: 94 | N179: 55 | P179: 14,6 172 94 55
K180: 29 | L180: 171 | M180: 94 | N180: 55 | P180: 14,7 171 94 55
K181: 29.2 | L181: 169 | M181: 93 | N181: 54 | P181: 14,8 169 93 54
K182: 29.4 | L182: 168 | M182: 92 | N182: 54 | P182: 14,9 168 92 54
K183: 29.6 | L183: 167 | M183: 91 | N183: 54 | P183: 15 167 91 54
K184: 29.7 | L184: 165 | M184: 91 | N184: 54 | P184: 15,1 165 91 54
K185: 29.9 | L185: 164 | M185: 90 | N185: 53 | P185: 15,2 164 90 53
K186: 30.1 | L186: 162 | M186: 89 | N186: 53 | P186: 15,3 162 89 53
K187: 30.3 | L187: 161 | M187: 88 | N187: 53 | P187: 15,4 161 88 53
K188: 30.5 | L188: 159 | M188: 88 | N188: 53 | P188: 15,5 159 88 53
K189: 30.7 | L189: 158 | M189: 87 | N189: 52 | P189: 15,6 158 87 52
K190: 30.9 | L190: 157 | M190: 86 | N190: 52 | P190: 15,7 157 86 52
K191: 31.1 | L191: 155 | M191: 85 | N191: 52 | P191: 15,8 155 85 52
K192: 31.3 | L192: 154 | M192: 85 | N192: 52 | P192: 15,9 154 85 52
K193: 31.5 | L193: 152 | M193: 84 | N193: 51 | P193: 16 152 84 51
K194: 31.7 | L194: 151 | M194: 83 | N194: 51 | P194: 16,1 151 83 51
K195: 31.9 | L195: 149 | M195: 82 | N195: 51 | P195: 16,2 149 82 51
K196: 32.1 | L196: 148 | M196: 82 | N196: 51 | P196: 16,3 148 82 51
K197: 32.3 | L197: 147 | M197: 81 | N197: 50 | P197: 16,4 147 81 50
K198: 32.5 | L198: 145 | M198: 80 | N198: 50 | P198: 16,5 145 80 50
K199: 32.7 | L199: 144 | M199: 79 | N199: 50 | P199: 16,6 144 79 50
K200: 32.9 | L200: 142 | M200: 78 | N200: 50 | P200: 16,7 142 78 50
... 133 more rows

Sheet Omregninger
A2: Farver:
B4: Formål | C4: Formel | D4: Indtast | E4: Beregn | F4: Resultat
B5: EBC to SRM: | C5: SRM = EBC × 0,508 | D5: Indtast EBC | F5: =IF(E5="","",ROUND((E5*0.508),0)) -> 
B6: SRM to EBC: | C6: EBC = SRM × 1,97 | D6: Indtast SRM | F6: =IF(E6="","",ROUND((E6*1.97),0)) -> 
B7: Lovibond to SRM: | C7: SRM = (1,3546 × °L) - 0,76 | D7: Indtast °L | F7: =IF(E7="","",ROUND(((1.3546*E7)-0.76),0)) -> 
B8: SRM to Lovibond: | C8: °L = (SRM + 0,76) ÷ 1,3546 | D8: Indtast SRM | F8: =IF(E8="","",ROUND(((E8+0.76)/1.3546),0)) -> 
A10: Vægt, rumfang og temperatur
B12: US Mål ◄ | D12: Indtast | E12: ► Metriske Mål
B13: Ounce | C13: =IF(D13="","",D13/28.35) ->  | E13: =IF(D13="","",D13*28.35) ->  | F13: Gram
B14: Pound | C14: =IF(D14="","",D14/453.6) ->  | E14: =IF(D14="","",D14*453.6) ->  | F14: Gram
B16: Pint | C16: =IF(D16="","",D16/0.473) ->  | E16: =IF(D16="","",D16*0.473) ->  | F16: Liter
B17: Quart | C17: =IF(D17="","",D17/0.946) ->  | E17: =IF(D17="","",D17*0.946) ->  | F17: Liter
B18: Gallon | C18: =IF(D18="","",D18/3.785) ->  | E18: =IF(D18="","",D18*3.785) ->  | F18: Liter
B20: Fahrenheit | C20: =IF(D20="","",D20*1.8 +32) ->  | E20: =IF(D20="","",(D20-32)/1.8) ->  | F20: Celsius
A22: Humle
B24: AAU konvertering til humlemængde - (Alpha Acid Units)
B25: Vælg Humletype:
B26: Indtast antal AAU
B27: Orig. opskrifts mængde - hvis forskellig fra 5 Gallons
B28: =CONCATENATE("Indtast din brygmængde - hvis forskellig fra ",Data!E5," liter") -> Indtast din brygmængde - hvis forskellig fra 25 liter
B30: Tilsvarende mængde humle i dit bryg vil være: | D30: =IF(D25="","",CONCATENATE(IF(D28="",ROUND((((D26/IFERROR(VLOOKUP(D25,Humle!A4:D38,4,FALSE),""))*28.35/IF(D27="",5*3.785,D27*3.785))*25),1),ROUND((((D26/IFERROR(VLOOKUP(D25,Humle!A4:D38,4,FALSE),""))*28.35/IF(D27="",5*3.785,D27*3.785))*D28),1))," Gram")) -> 
A32: Refraktometer:
B34: Udregning af Final Gravity med Refraktometer måling - med kompensation for fejlvisning grundet alkohol
B35: Input er i Oechsle, hvor gravity 1080 eller 1,080 = 80 Oe
B36: Indtast Original Gravity | C36: Oe | D36: Indtast Final Gravity | E36: Oe | G36: Specific Gravity-Brix Conversion Table
B37: Refrektometer Input - OG | C37: 67 | D37: Refrektometer Input - FG | E37: 37 | G37: Specific Gravity | H37: Brix
B38: Brix mellemregning | C38: =VLOOKUP((C37/1000)+1,$G$37:$H$178,2,FALSE) -> 16.34 | D38: Brix mellemregning | E38: =VLOOKUP((E37/1000)+1,$G$37:$H$178,2,FALSE) -> 9.26 | G38: 0.99 | H38: 0
B39: Mellemregning | C39: -0.002318474 | D39: =1.001843+C39*C38 -> 0.9639591348 | G39: 0.991 | H39: 0
B40: Mellemregning | C40: -7.775e-06 | D40: =C40*C38*C38 -> -0.00207589079 | G40: 0.992 | H40: 0
B41: Mellemregning | C41: -3.4e-08 | D41: =C41*C38*C38*C38 -> -0.0001483320755 | G41: 0.993 | H41: 0
B42: Mellemregning | C42: 0.00574 | D42: =C42*E38 -> 0.0531524 | G42: 0.994 | H42: 0
B43: Mellemregning | C43: 3.344e-05 | D43: =C43*E38*E38 -> 0.002867399744 | G43: 0.995 | H43: 0
B44: Mellemregning | C44: 8.6e-08 | D44: =C44*E38*E38*E38 -> 6.828595874e-05 | G44: 0.996 | H44: 0
B45: Udregnet Final Gravity ( kompenseret for alkohol ) = | E45: =SUM(D39:D44) -> 1.017822998 | G45: 0.997 | H45: 0
G46: 0.998 | H46: 0
G47: 0.999 | H47: 0
G48: 1 | H48: 0
G49: 1.001 | H49: 0.26
G50: 1.002 | H50: 0.51
G51: 1.003 | H51: 0.77
G52: 1.004 | H52: 1.03
G53: 1.005 | H53: 1.28
G54: 1.006 | H54: 1.54
G55: 1.007 | H55: 1.8
G56: 1.008 | H56: 2.05
G57: 1.009 | H57: 2.31
G58: 1.01 | H58: 2.56
G59: 1.011 | H59: 2.81
G60: 1.012 | H60: 3.07
G61: 1.013 | H61: 3.32
G62: 1.014 | H62: 3.57
G63: 1.015 | H63: 3.82
G64: 1.016 | H64: 4.08
G65: 1.017 | H65: 4.33
G66: 1.018 | H66: 4.58
G67: 1.019 | H67: 4.83
G68: 1.02 | H68: 5.08
G69: 1.021 | H69: 5.33
G70: 1.022 | H70: 5.57
G71: 1.023 | H71: 5.82
G72: 1.024 | H72: 6.07
G73: 1.025 | H73: 6.32
G74: 1.026 | H74: 6.57
G75: 1.027 | H75: 6.81
G76: 1.028 | H76: 7.06
G77: 1.029 | H77: 7.3
G78: 1.03 | H78: 7.55
G79: 1.031 | H79: 7.8
G80: 1.032 | H80: 8.04
G81: 1.033 | H81: 8.28
G82: 1.034 | H82: 8.53
G83: 1.035 | H83: 8.77
G84: 1.036 | H84: 9.01
G85: 1.037 | H85: 9.26
G86: 1.038 | H86: 9.5
G87: 1.039 | H87: 9.74
G88: 1.04 | H88: 9.98
G89: 1.041 | H89: 10.22
G90: 1.042 | H90: 10.46
G91: 1.043 | H91: 10.7
G92: 1.044 | H92: 10.94
G93: 1.045 | H93: 11.18
G94: 1.046 | H94: 11.42
G95: 1.047 | H95: 11.66
G96: 1.048 | H96: 11.9
G97: 1.049 | H97: 12.14
G98: 1.05 | H98: 12.37
G99: 1.051 | H99: 12.61
G100: 1.052 | H100: 12.85
G101: 1.053 | H101: 13.08
G102: 1.054 | H102: 13.32
G103: 1.055 | H103: 13.55
G104: 1.056 | H104: 13.79
G105: 1.057 | H105: 14.02
G106: 1.058 | H106: 14.26
G107: 1.059 | H107: 14.49
G108: 1.06 | H108: 14.72
G109: 1.061 | H109: 14.96
G110: 1.062 | H110: 15.19
G111: 1.063 | H111: 15.42
G112: 1.064 | H112: 15.65
G113: 1.065 | H113: 15.88
G114: 1.066 | H114: 16.11
G115: 1.067 | H115: 16.34
G116: 1.068 | H116: 16.57
G117: 1.069 | H117: 16.8
G118: 1.07 | H118: 17.03
G119: 1.071 | H119: 17.26
G120: 1.072 | H120: 17.49
G121: 1.073 | H121: 17.72
G122: 1.074 | H122: 17.95
G123: 1.075 | H123: 18.18
G124: 1.076 | H124: 18.4
G125: 1.077 | H125: 18.63
G126: 1.078 | H126: 18.86
G127: 1.079 | H127: 19.08
G128: 1.08 | H128: 19.31
G129: 1.081 | H129: 19.53
G130: 1.082 | H130: 19.76
G131: 1.083 | H131: 19.98
G132: 1.084 | H132: 20.21
G133: 1.085 | H133: 20.43
G134: 1.086 | H134: 20.65
G135: 1.087 | H135: 20.88
G136: 1.088 | H136: 21.1
G137: 1.089 | H137: 21.32
G138: 1.09 | H138: 21.54
G139: 1.091 | H139: 21.77
G140: 1.092 | H140: 21.99
G141: 1.093 | H141: 22.21
G142: 1.094 | H142: 22.43
G143: 1.095 | H143: 22.65
G144: 1.096 | H144: 22.87
G145: 1.097 | H145: 23.09
G146: 1.098 | H146: 23.31
G147: 1.099 | H147: 23.53
G148: 1.1 | H148: 23.75
G149: 1.101 | H149: 23.96
G150: 1.102 | H150: 24.18
G151: 1.103 | H151: 24.4
G152: 1.104 | H152: 24.62
G153: 1.105 | H153: 24.83
G154: 1.106 | H154: 25.05
G155: 1.107 | H155: 25.27
G156: 1.108 | H156: 25.48
G157: 1.109 | H157: 25.7
G158: 1.11 | H158: 25.91
G159: 1.111 | H159: 26.13
G160: 1.112 | H160: 26.34
G161: 1.113 | H161: 26.56
G162: 1.114 | H162: 26.77
G163: 1.115 | H163: 26.98
G164: 1.116 | H164: 27.2
G165: 1.117 | H165: 27.41
G166: 1.118 | H166: 27.62
G167: 1.119 | H167: 27.83
G168: 1.12 | H168: 28.05
G169: 1.121 | H169: 28.26
G170: 1.122 | H170: 28.47
G171: 1.123 | H171: 28.68
G172: 1.124 | H172: 28.89
G173: 1.125 | H173: 29.1
G174: 1.126 | H174: 29.31
G175: 1.127 | H175: 29.52
G176: 1.128 | H176: 29.73
G177: 1.129 | H177: 29.94
G178: 1.13 | H178: 30.15

Sheet Malt
A1: Malttyper | B1: EBC Range | C1: EBC Avg. | D1: Ekstraktudbytte | E1: Karakteristik | F1: Malt i kg | G1: Brygladen | H1: Hjemmebryggeren | I1: Albryg (10g interval) | J1: Bryglageret | K1: Brygforretningen | M1: Malt Pris Grupper | N1: Priser kr./kg | P1: DropDown Menu
A2: Basis Malt | G2: G | H2: H | I2: I | J2: J | K2: K | N2: 15
A3: Pilsner | B3: 2,5 - 4,0 | C3: 3,25 | D3: 300 | E3: Høj enzymaktivitet | F3: =IFERROR(VLOOKUP(Malt!$A3,BrewReport!$A$9:$D$18,4,FALSE),0) -> 0 | G3: =F3*N5 -> 0 | H3: =F3*N7 -> 0 | I3: =F3*N7 -> 0 | J3: =F3*N7 -> 0 | K3: =F3*N5 -> 0 | N3: 16 | P3: =IFERROR(INDEX($A$3:$A$75, SMALL(IF(ISBLANK(INDIRECT(CONCATENATE("$",HLOOKUP(BrewReport!$F$7,$G$1:$K$2,2,FALSE),"$3:$",HLOOKUP(BrewReport!$F$7,$G$1:$K$2,2,FALSE),"$80"))), "", ROW(INDIRECT(CONCATENATE("$",HLOOKUP(BrewReport!$F$7,$G$1:$K$2,2,FALSE),"$3:$",HLOOKUP(BrewReport!$F$7,$G$1:$K$2,2,FALSE),"$80")))-MIN(ROW(INDIRECT(CONCATENATE("$",HLOOKUP(BrewReport!$F$7,$G$1:$K$2,2,FALSE),"$3:$",HLOOKUP(BrewReport!$F$7,$G$1:$K$2,2,FALSE),"$80"))))+1), ROW(A1))),"") -> Pilsner
A4: Fuglsang Pilsner | B4: 3,7 | C4: 3,7 | D4: 320 | E4: Dansk, Høj enzymaktivitet | F4: =IFERROR(VLOOKUP(Malt!$A4,BrewReport!$A$9:$D$18,4,FALSE),0) -> 0 | I4: =F4*N2 -> 0 | N4: 17 | P4: =IFERROR(INDEX($A$3:$A$75, SMALL(IF(ISBLANK(INDIRECT(CONCATENATE("$",HLOOKUP(BrewReport!$F$7,$G$1:$K$2,2,FALSE),"$3:$",HLOOKUP(BrewReport!$F$7,$G$1:$K$2,2,FALSE),"$80"))), "", ROW(INDIRECT(CONCATENATE("$",HLOOKUP(BrewReport!$F$7,$G$1:$K$2,2,FALSE),"$3:$",HLOOKUP(BrewReport!$F$7,$G$1:$K$2,2,FALSE),"$80")))-MIN(ROW(INDIRECT(CONCATENATE("$",HLOOKUP(BrewReport!$F$7,$G$1:$K$2,2,FALSE),"$3:$",HLOOKUP(BrewReport!$F$7,$G$1:$K$2,2,FALSE),"$80"))))+1), ROW(A2))),"") -> Vienna
A5: Pilsner Bohemian | B5: 2,5 - 3,5 | C5: 3 | D5: 300 | E5: Høj enzymaktivitet | F5: =IFERROR(VLOOKUP(Malt!$A5,BrewReport!$A$9:$D$18,4,FALSE),0) -> 0 | G5: =F5*N5 -> 0 | I5: =F5*N3 -> 0 | J5: =F5*N7 -> 0 | M5: Grp 1 | N5: 18 | P5: =IFERROR(INDEX($A$3:$A$75, SMALL(IF(ISBLANK(INDIRECT(CONCATENATE("$",HLOOKUP(BrewReport!$F$7,$G$1:$K$2,2,FALSE),"$3:$",HLOOKUP(BrewReport!$F$7,$G$1:$K$2,2,FALSE),"$80"))), "", ROW(INDIRECT(CONCATENATE("$",HLOOKUP(BrewReport!$F$7,$G$1:$K$2,2,FALSE),"$3:$",HLOOKUP(BrewReport!$F$7,$G$1:$K$2,2,FALSE),"$80")))-MIN(ROW(INDIRECT(CONCATENATE("$",HLOOKUP(BrewReport!$F$7,$G$1:$K$2,2,FALSE),"$3:$",HLOOKUP(BrewReport!$F$7,$G$1:$K$2,2,FALSE),"$80"))))+1), ROW(A3))),"") -> Pale Ale
A6: Vienna | B6: 5 - 7 | C6: 6 | D6: 300 | E6: Farve, sødme og fylde | F6: =IFERROR(VLOOKUP(Malt!$A6,BrewReport!$A$9:$D$18,4,FALSE),0) -> 0 | G6: =F6*N5 -> 0 | H6: =F6*N7 -> 0 | I6: =F6*N3 -> 0 | K6: =F6*N5 -> 0 | M6: Grp 2 | N6: 19 | P6: =IFERROR(INDEX($A$3:$A$75, SMALL(IF(ISBLANK(INDIRECT(CONCATENATE("$",HLOOKUP(BrewReport!$F$7,$G$1:$K$2,2,FALSE),"$3:$",HLOOKUP(BrewReport!$F$7,$G$1:$K$2,2,FALSE),"$80"))), "", ROW(INDIRECT(CONCATENATE("$",HLOOKUP(BrewReport!$F$7,$G$1:$K$2,2,FALSE),"$3:$",HLOOKUP(BrewReport!$F$7,$G$1:$K$2,2,FALSE),"$80")))-MIN(ROW(INDIRECT(CONCATENATE("$",HLOOKUP(BrewReport!$F$7,$G$1:$K$2,2,FALSE),"$3:$",HLOOKUP(BrewReport!$F$7,$G$1:$K$2,2,FALSE),"$80"))))+1), ROW(A4))),"") -> Munich (Type 2)
A7: Pale Ale | B7: 7,0 - 9,0 | C7: 8 | D7: 300 | E7: Mørkere og mere maltet end Pilsner | F7: =IFERROR(VLOOKUP(Malt!$A7,BrewReport!$A$9:$D$18,4,FALSE),0) -> 3 | G7: =F7*N7 -> 60 | H7: =F7*N7 -> 60 | I7: =F7*N3 -> 48 | J7: =F7*N6 -> 57 | K7: =F7*N5 -> 54 | M7: Grp 3 | N7: 20 | P7: =IFERROR(INDEX($A$3:$A$75, SMALL(IF(ISBLANK(INDIRECT(CONCATENATE("$",HLOOKUP(BrewReport!$F$7,$G$1:$K$2,2,FALSE),"$3:$",HLOOKUP(BrewReport!$F$7,$G$1:$K$2,2,FALSE),"$80"))), "", ROW(INDIRECT(CONCATENATE("$",HLOOKUP(BrewReport!$F$7,$G$1:$K$2,2,FALSE),"$3:$",HLOOKUP(BrewReport!$F$7,$G$1:$K$2,2,FALSE),"$80")))-MIN(ROW(INDIRECT(CONCATENATE("$",HLOOKUP(BrewReport!$F$7,$G$1:$K$2,2,FALSE),"$3:$",HLOOKUP(BrewReport!$F$7,$G$1:$K$2,2,FALSE),"$80"))))+1), ROW(A5))),"") -> Munich Light (Type 1)
A8: Munich (Type 2) | B8: 20 - 25 | C8: 22,5 | D8: 290 | E8: Sødme og fylde | F8: =IFERROR(VLOOKUP(Malt!$A8,BrewReport!$A$9:$D$18,4,FALSE),0) -> 0 | G8: =F8*N5 -> 0 | H8: =F8*N7 -> 0 | I8: =F8*N7 -> 0 | J8: =F8*N16 -> 0 | K8: =F8*N5 -> 0 | M8: Grp 4 | N8: 21 | P8: =IFERROR(INDEX($A$3:$A$75, SMALL(IF(ISBLANK(INDIRECT(CONCATENATE("$",HLOOKUP(BrewReport!$F$7,$G$1:$K$2,2,FALSE),"$3:$",HLOOKUP(BrewReport!$F$7,$G$1:$K$2,2,FALSE),"$80"))), "", ROW(INDIRECT(CONCATENATE("$",HLOOKUP(BrewReport!$F$7,$G$1:$K$2,2,FALSE),"$3:$",HLOOKUP(BrewReport!$F$7,$G$1:$K$2,2,FALSE),"$80")))-MIN(ROW(INDIRECT(CONCATENATE("$",HLOOKUP(BrewReport!$F$7,$G$1:$K$2,2,FALSE),"$3:$",HLOOKUP(BrewReport!$F$7,$G$1:$K$2,2,FALSE),"$80"))))+1), ROW(A6))),"") -> Maris Otter Ale
A9: Munich Light (Type 1) | B9: 13 - 17 | C9: 15 | D9: 290 | E9: Sødme og fylde | F9: =IFERROR(VLOOKUP(Malt!$A9,BrewReport!$A$9:$D$18,4,FALSE),0) -> 0 | G9: =F9*N5 -> 0 | H9: =F9*N7 -> 0 | I9: =F9*N7 -> 0 | J9: =F9*N16 -> 0 | K9: =F9*N5 -> 0 | M9: Grp 5 | N9: 22 | P9: =IFERROR(INDEX($A$3:$A$75, SMALL(IF(ISBLANK(INDIRECT(CONCATENATE("$",HLOOKUP(BrewReport!$F$7,$G$1:$K$2,2,FALSE),"$3:$",HLOOKUP(BrewReport!$F$7,$G$1:$K$2,2,FALSE),"$80"))), "", ROW(INDIRECT(CONCATENATE("$",HLOOKUP(BrewReport!$F$7,$G$1:$K$2,2,FALSE),"$3:$",HLOOKUP(BrewReport!$F$7,$G$1:$K$2,2,FALSE),"$80")))-MIN(ROW(INDIRECT(CONCATENATE("$",HLOOKUP(BrewReport!$F$7,$G$1:$K$2,2,FALSE),"$3:$",HLOOKUP(BrewReport!$F$7,$G$1:$K$2,2,FALSE),"$80"))))+1), ROW(A7))),"") -> Cara Blond
A10: Maris Otter Ale | B10: 5,5 - 8,0 | C10: 6,75 | D10: 320 | E10: Fyldig, nødder, let orange farve | F10: =IFERROR(VLOOKUP(Malt!$A10,BrewReport!$A$9:$D$18,4,FALSE),0) -> 0 | G10: =F10*N6 -> 0 | H10: =F10*N7 -> 0 | K10: =F10*N12 -> 0 | M10: Grp 6 | N10: 23 | P10: =IFERROR(INDEX($A$3:$A$75, SMALL(IF(ISBLANK(INDIRECT(CONCATENATE("$",HLOOKUP(BrewReport!$F$7,$G$1:$K$2,2,FALSE),"$3:$",HLOOKUP(BrewReport!$F$7,$G$1:$K$2,2,FALSE),"$80"))), "", ROW(INDIRECT(CONCATENATE("$",HLOOKUP(BrewReport!$F$7,$G$1:$K$2,2,FALSE),"$3:$",HLOOKUP(BrewReport!$F$7,$G$1:$K$2,2,FALSE),"$80")))-MIN(ROW(INDIRECT(CONCATENATE("$",HLOOKUP(BrewReport!$F$7,$G$1:$K$2,2,FALSE),"$3:$",HLOOKUP(BrewReport!$F$7,$G$1:$K$2,2,FALSE),"$80"))))+1), ROW(A8))),"") -> Cara Crystal (Gold)
A11: Red X | B11: 30 | C11: 30 | D11: 290 | E11: Fyldig, intens rødlig farve | F11: =IFERROR(VLOOKUP(Malt!$A11,BrewReport!$A$9:$D$18,4,FALSE),0) -> 0 | G11: =F11*N6 -> 0 | M11: Grp 7 | N11: 24 | P11: =IFERROR(INDEX($A$3:$A$75, SMALL(IF(ISBLANK(INDIRECT(CONCATENATE("$",HLOOKUP(BrewReport!$F$7,$G$1:$K$2,2,FALSE),"$3:$",HLOOKUP(BrewReport!$F$7,$G$1:$K$2,2,FALSE),"$80"))), "", ROW(INDIRECT(CONCATENATE("$",HLOOKUP(BrewReport!$F$7,$G$1:$K$2,2,FALSE),"$3:$",HLOOKUP(BrewReport!$F$7,$G$1:$K$2,2,FALSE),"$80")))-MIN(ROW(INDIRECT(CONCATENATE("$",HLOOKUP(BrewReport!$F$7,$G$1:$K$2,2,FALSE),"$3:$",HLOOKUP(BrewReport!$F$7,$G$1:$K$2,2,FALSE),"$80"))))+1), ROW(A9))),"") -> Cara Ruby
A12: Karamel Malt | M12: Grp 8 | N12: 25 | P12: =IFERROR(INDEX($A$3:$A$75, SMALL(IF(ISBLANK(INDIRECT(CONCATENATE("$",HLOOKUP(BrewReport!$F$7,$G$1:$K$2,2,FALSE),"$3:$",HLOOKUP(BrewReport!$F$7,$G$1:$K$2,2,FALSE),"$80"))), "", ROW(INDIRECT(CONCATENATE("$",HLOOKUP(BrewReport!$F$7,$G$1:$K$2,2,FALSE),"$3:$",HLOOKUP(BrewReport!$F$7,$G$1:$K$2,2,FALSE),"$80")))-MIN(ROW(INDIRECT(CONCATENATE("$",HLOOKUP(BrewReport!$F$7,$G$1:$K$2,2,FALSE),"$3:$",HLOOKUP(BrewReport!$F$7,$G$1:$K$2,2,FALSE),"$80"))))+1), ROW(A10))),"") -> Crystal
A13: Cara Pils | B13: 5 | C13: 5 | D13: 275 | F13: =IFERROR(VLOOKUP(Malt!$A13,BrewReport!$A$9:$D$18,4,FALSE),0) -> 0 | G13: =F13*N8 -> 0 | I13: =F13*N7 -> 0 | J13: =F13*N16 -> 0 | K13: =F13*N9 -> 0 | M13: Grp 9 | N13: 26 | P13: =IFERROR(INDEX($A$3:$A$75, SMALL(IF(ISBLANK(INDIRECT(CONCATENATE("$",HLOOKUP(BrewReport!$F$7,$G$1:$K$2,2,FALSE),"$3:$",HLOOKUP(BrewReport!$F$7,$G$1:$K$2,2,FALSE),"$80"))), "", ROW(INDIRECT(CONCATENATE("$",HLOOKUP(BrewReport!$F$7,$G$1:$K$2,2,FALSE),"$3:$",HLOOKUP(BrewReport!$F$7,$G$1:$K$2,2,FALSE),"$80")))-MIN(ROW(INDIRECT(CONCATENATE("$",HLOOKUP(BrewReport!$F$7,$G$1:$K$2,2,FALSE),"$3:$",HLOOKUP(BrewReport!$F$7,$G$1:$K$2,2,FALSE),"$80"))))+1), ROW(A11))),"") -> Special B
A14: Cara Blond | B14: 20 - 30 | C14: 25 | D14: 280 | E14: Mild karamel smag og gylden farve | F14: =IFERROR(VLOOKUP(Malt!$A14,BrewReport!$A$9:$D$18,4,FALSE),0) -> 0 | G14: =F14*N8 -> 0 | H14: =F14*N16 -> 0 | J14: =F14*N16 -> 0 | K14: =F14*N9 -> 0 | M14: Grp 10 | N14: 27 | P14: =IFERROR(INDEX($A$3:$A$75, SMALL(IF(ISBLANK(INDIRECT(CONCATENATE("$",HLOOKUP(BrewReport!$F$7,$G$1:$K$2,2,FALSE),"$3:$",HLOOKUP(BrewReport!$F$7,$G$1:$K$2,2,FALSE),"$80"))), "", ROW(INDIRECT(CONCATENATE("$",HLOOKUP(BrewReport!$F$7,$G$1:$K$2,2,FALSE),"$3:$",HLOOKUP(BrewReport!$F$7,$G$1:$K$2,2,FALSE),"$80")))-MIN(ROW(INDIRECT(CONCATENATE("$",HLOOKUP(BrewReport!$F$7,$G$1:$K$2,2,FALSE),"$3:$",HLOOKUP(BrewReport!$F$7,$G$1:$K$2,2,FALSE),"$80"))))+1), ROW(A12))),"") -> Coffee / Café Light
A15: Carabelge | B15: 30 - 35 | C15: 33 | D15: 280 | F15: =IFERROR(VLOOKUP(Malt!$A15,BrewReport!$A$9:$D$18,4,FALSE),0) -> 0 | I15: =F15*N7 -> 0 | M15: Grp 11 | N15: 28 | P15: =IFERROR(INDEX($A$3:$A$75, SMALL(IF(ISBLANK(INDIRECT(CONCATENATE("$",HLOOKUP(BrewReport!$F$7,$G$1:$K$2,2,FALSE),"$3:$",HLOOKUP(BrewReport!$F$7,$G$1:$K$2,2,FALSE),"$80"))), "", ROW(INDIRECT(CONCATENATE("$",HLOOKUP(BrewReport!$F$7,$G$1:$K$2,2,FALSE),"$3:$",HLOOKUP(BrewReport!$F$7,$G$1:$K$2,2,FALSE),"$80")))-MIN(ROW(INDIRECT(CONCATENATE("$",HLOOKUP(BrewReport!$F$7,$G$1:$K$2,2,FALSE),"$3:$",HLOOKUP(BrewReport!$F$7,$G$1:$K$2,2,FALSE),"$80"))))+1), ROW(A13))),"") -> Coffee / Café
A16: Cara Vienna | B16: 50 | C16: 50 | D16: 280 | F16: =IFERROR(VLOOKUP(Malt!$A16,BrewReport!$A$9:$D$18,4,FALSE),0) -> 0 | G16: =F16*N8 -> 0 | J16: =F16*N16 -> 0 | M16: Grp 12 | N16: 30 | P16: =IFERROR(INDEX($A$3:$A$75, SMALL(IF(ISBLANK(INDIRECT(CONCATENATE("$",HLOOKUP(BrewReport!$F$7,$G$1:$K$2,2,FALSE),"$3:$",HLOOKUP(BrewReport!$F$7,$G$1:$K$2,2,FALSE),"$80"))), "", ROW(INDIRECT(CONCATENATE("$",HLOOKUP(BrewReport!$F$7,$G$1:$K$2,2,FALSE),"$3:$",HLOOKUP(BrewReport!$F$7,$G$1:$K$2,2,FALSE),"$80")))-MIN(ROW(INDIRECT(CONCATENATE("$",HLOOKUP(BrewReport!$F$7,$G$1:$K$2,2,FALSE),"$3:$",HLOOKUP(BrewReport!$F$7,$G$1:$K$2,2,FALSE),"$80"))))+1), ROW(A14))),"") -> Cara Clair
A17: Cara Crystal (Gold) | B17: 110 - 130 | C17: 120 | D17: 280 | E17: Stor karamel- og toffee smag, bedre skum og fylde | F17: =IFERROR(VLOOKUP(Malt!$A17,BrewReport!$A$9:$D$18,4,FALSE),0) -> 0 | G17: =F17*N8 -> 0 | H17: =F17*N16 -> 0 | I17: =F17*N7 -> 0 | K17: =F17*N9 -> 0 | M17: Grp 13 | N17: 40 | P17: =IFERROR(INDEX($A$3:$A$75, SMALL(IF(ISBLANK(INDIRECT(CONCATENATE("$",HLOOKUP(BrewReport!$F$7,$G$1:$K$2,2,FALSE),"$3:$",HLOOKUP(BrewReport!$F$7,$G$1:$K$2,2,FALSE),"$80"))), "", ROW(INDIRECT(CONCATENATE("$",HLOOKUP(BrewReport!$F$7,$G$1:$K$2,2,FALSE),"$3:$",HLOOKUP(BrewReport!$F$7,$G$1:$K$2,2,FALSE),"$80")))-MIN(ROW(INDIRECT(CONCATENATE("$",HLOOKUP(BrewReport!$F$7,$G$1:$K$2,2,FALSE),"$3:$",HLOOKUP(BrewReport!$F$7,$G$1:$K$2,2,FALSE),"$80"))))+1), ROW(A15))),"") -> Roasted Barley
A18: Chateau Cara | B18: 150 | C18: 150 | D18: 280 | F18: =IFERROR(VLOOKUP(Malt!$A18,BrewReport!$A$9:$D$18,4,FALSE),0) -> 0 | I18: =F18*N7 -> 0 | K18: =F18*N9 -> 0 | P18: =IFERROR(INDEX($A$3:$A$75, SMALL(IF(ISBLANK(INDIRECT(CONCATENATE("$",HLOOKUP(BrewReport!$F$7,$G$1:$K$2,2,FALSE),"$3:$",HLOOKUP(BrewReport!$F$7,$G$1:$K$2,2,FALSE),"$80"))), "", ROW(INDIRECT(CONCATENATE("$",HLOOKUP(BrewReport!$F$7,$G$1:$K$2,2,FALSE),"$3:$",HLOOKUP(BrewReport!$F$7,$G$1:$K$2,2,FALSE),"$80")))-MIN(ROW(INDIRECT(CONCATENATE("$",HLOOKUP(BrewReport!$F$7,$G$1:$K$2,2,FALSE),"$3:$",HLOOKUP(BrewReport!$F$7,$G$1:$K$2,2,FALSE),"$80"))))+1), ROW(A16))),"") -> Chocolate / carafa Type I
A19: Cara Hell | B19: 25 | C19: 25 | D19: 280 | F19: =IFERROR(VLOOKUP(Malt!$A19,BrewReport!$A$9:$D$18,4,FALSE),0) -> 0 | G19: =F19*N8 -> 0 | I19: =F19*N7 -> 0 | J19: =F19*N16 -> 0 | P19: =IFERROR(INDEX($A$3:$A$75, SMALL(IF(ISBLANK(INDIRECT(CONCATENATE("$",HLOOKUP(BrewReport!$F$7,$G$1:$K$2,2,FALSE),"$3:$",HLOOKUP(BrewReport!$F$7,$G$1:$K$2,2,FALSE),"$80"))), "", ROW(INDIRECT(CONCATENATE("$",HLOOKUP(BrewReport!$F$7,$G$1:$K$2,2,FALSE),"$3:$",HLOOKUP(BrewReport!$F$7,$G$1:$K$2,2,FALSE),"$80")))-MIN(ROW(INDIRECT(CONCATENATE("$",HLOOKUP(BrewReport!$F$7,$G$1:$K$2,2,FALSE),"$3:$",HLOOKUP(BrewReport!$F$7,$G$1:$K$2,2,FALSE),"$80"))))+1), ROW(A17))),"") -> Black
A20: Cara Munich Type I | B20: 80 - 100 | C20: 90 | D20: 275 | F20: =IFERROR(VLOOKUP(Malt!$A20,BrewReport!$A$9:$D$18,4,FALSE),0) -> 0 | G20: =F20*N7 -> 0 | I20: =F20*N7 -> 0 | J20: =F20*N15 -> 0 | P20: =IFERROR(INDEX($A$3:$A$75, SMALL(IF(ISBLANK(INDIRECT(CONCATENATE("$",HLOOKUP(BrewReport!$F$7,$G$1:$K$2,2,FALSE),"$3:$",HLOOKUP(BrewReport!$F$7,$G$1:$K$2,2,FALSE),"$80"))), "", ROW(INDIRECT(CONCATENATE("$",HLOOKUP(BrewReport!$F$7,$G$1:$K$2,2,FALSE),"$3:$",HLOOKUP(BrewReport!$F$7,$G$1:$K$2,2,FALSE),"$80")))-MIN(ROW(INDIRECT(CONCATENATE("$",HLOOKUP(BrewReport!$F$7,$G$1:$K$2,2,FALSE),"$3:$",HLOOKUP(BrewReport!$F$7,$G$1:$K$2,2,FALSE),"$80"))))+1), ROW(A18))),"") -> Wheat
A21: Cara Munich Type II | B21: 110 - 130 | C21: 120 | D21: 275 | F21: =IFERROR(VLOOKUP(Malt!$A21,BrewReport!$A$9:$D$18,4,FALSE),0) -> 0 | G21: =F21*N7 -> 0 | I21: =F21*N7 -> 0 | J21: =F21*N15 -> 0 | P21: =IFERROR(INDEX($A$3:$A$75, SMALL(IF(ISBLANK(INDIRECT(CONCATENATE("$",HLOOKUP(BrewReport!$F$7,$G$1:$K$2,2,FALSE),"$3:$",HLOOKUP(BrewReport!$F$7,$G$1:$K$2,2,FALSE),"$80"))), "", ROW(INDIRECT(CONCATENATE("$",HLOOKUP(BrewReport!$F$7,$G$1:$K$2,2,FALSE),"$3:$",HLOOKUP(BrewReport!$F$7,$G$1:$K$2,2,FALSE),"$80")))-MIN(ROW(INDIRECT(CONCATENATE("$",HLOOKUP(BrewReport!$F$7,$G$1:$K$2,2,FALSE),"$3:$",HLOOKUP(BrewReport!$F$7,$G$1:$K$2,2,FALSE),"$80"))))+1), ROW(A19))),"") -> Wheat Munich
A22: Cara Munich Type III | B22: 140 - 160 | C22: 150 | D22: 275 | F22: =IFERROR(VLOOKUP(Malt!$A22,BrewReport!$A$9:$D$18,4,FALSE),0) -> 0 | G22: =F22*N8 -> 0 | J22: =F22*N16 -> 0 | P22: =IFERROR(INDEX($A$3:$A$75, SMALL(IF(ISBLANK(INDIRECT(CONCATENATE("$",HLOOKUP(BrewReport!$F$7,$G$1:$K$2,2,FALSE),"$3:$",HLOOKUP(BrewReport!$F$7,$G$1:$K$2,2,FALSE),"$80"))), "", ROW(INDIRECT(CONCATENATE("$",HLOOKUP(BrewReport!$F$7,$G$1:$K$2,2,FALSE),"$3:$",HLOOKUP(BrewReport!$F$7,$G$1:$K$2,2,FALSE),"$80")))-MIN(ROW(INDIRECT(CONCATENATE("$",HLOOKUP(BrewReport!$F$7,$G$1:$K$2,2,FALSE),"$3:$",HLOOKUP(BrewReport!$F$7,$G$1:$K$2,2,FALSE),"$80"))))+1), ROW(A20))),"") -> Wheat Spelt
A23: Cara Red | B23: 40 | C23: 40 | D23: 290 | F23: =IFERROR(VLOOKUP(Malt!$A23,BrewReport!$A$9:$D$18,4,FALSE),0) -> 0 | G23: =F23*N8 -> 0 | I23: =F23*N7 -> 0 | J23: =F23*N16 -> 0 | P23: =IFERROR(INDEX($A$3:$A$75, SMALL(IF(ISBLANK(INDIRECT(CONCATENATE("$",HLOOKUP(BrewReport!$F$7,$G$1:$K$2,2,FALSE),"$3:$",HLOOKUP(BrewReport!$F$7,$G$1:$K$2,2,FALSE),"$80"))), "", ROW(INDIRECT(CONCATENATE("$",HLOOKUP(BrewReport!$F$7,$G$1:$K$2,2,FALSE),"$3:$",HLOOKUP(BrewReport!$F$7,$G$1:$K$2,2,FALSE),"$80")))-MIN(ROW(INDIRECT(CONCATENATE("$",HLOOKUP(BrewReport!$F$7,$G$1:$K$2,2,FALSE),"$3:$",HLOOKUP(BrewReport!$F$7,$G$1:$K$2,2,FALSE),"$80"))))+1), ROW(A21))),"") -> Biscuit
A24: Cara Aroma | B24: 350 - 450 | C24: 400 | D24: 290 | F24: =IFERROR(VLOOKUP(Malt!$A24,BrewReport!$A$9:$D$18,4,FALSE),0) -> 0 | G24: =F24*N9 -> 0 | J24: =F24*N16 -> 0 | P24: =IFERROR(INDEX($A$3:$A$75, SMALL(IF(ISBLANK(INDIRECT(CONCATENATE("$",HLOOKUP(BrewReport!$F$7,$G$1:$K$2,2,FALSE),"$3:$",HLOOKUP(BrewReport!$F$7,$G$1:$K$2,2,FALSE),"$80"))), "", ROW(INDIRECT(CONCATENATE("$",HLOOKUP(BrewReport!$F$7,$G$1:$K$2,2,FALSE),"$3:$",HLOOKUP(BrewReport!$F$7,$G$1:$K$2,2,FALSE),"$80")))-MIN(ROW(INDIRECT(CONCATENATE("$",HLOOKUP(BrewReport!$F$7,$G$1:$K$2,2,FALSE),"$3:$",HLOOKUP(BrewReport!$F$7,$G$1:$K$2,2,FALSE),"$80"))))+1), ROW(A22))),"") -> Arome
A25: Cara Amber | B25: 60 | C25: 60 | D25: 290 | F25: =IFERROR(VLOOKUP(Malt!$A25,BrewReport!$A$9:$D$18,4,FALSE),0) -> 0 | G25: =F25*N9 -> 0 | J25: =F25*N16 -> 0 | P25: =IFERROR(INDEX($A$3:$A$75, SMALL(IF(ISBLANK(INDIRECT(CONCATENATE("$",HLOOKUP(BrewReport!$F$7,$G$1:$K$2,2,FALSE),"$3:$",HLOOKUP(BrewReport!$F$7,$G$1:$K$2,2,FALSE),"$80"))), "", ROW(INDIRECT(CONCATENATE("$",HLOOKUP(BrewReport!$F$7,$G$1:$K$2,2,FALSE),"$3:$",HLOOKUP(BrewReport!$F$7,$G$1:$K$2,2,FALSE),"$80")))-MIN(ROW(INDIRECT(CONCATENATE("$",HLOOKUP(BrewReport!$F$7,$G$1:$K$2,2,FALSE),"$3:$",HLOOKUP(BrewReport!$F$7,$G$1:$K$2,2,FALSE),"$80"))))+1), ROW(A23))),"") -> Melano Light
A26: Cara Rye | B26: 90 | C26: 90 | D26: 260 | F26: =IFERROR(VLOOKUP(Malt!$A26,BrewReport!$A$9:$D$18,4,FALSE),0) -> 0 | G26: =F26*N9 -> 0 | P26: =IFERROR(INDEX($A$3:$A$75, SMALL(IF(ISBLANK(INDIRECT(CONCATENATE("$",HLOOKUP(BrewReport!$F$7,$G$1:$K$2,2,FALSE),"$3:$",HLOOKUP(BrewReport!$F$7,$G$1:$K$2,2,FALSE),"$80"))), "", ROW(INDIRECT(CONCATENATE("$",HLOOKUP(BrewReport!$F$7,$G$1:$K$2,2,FALSE),"$3:$",HLOOKUP(BrewReport!$F$7,$G$1:$K$2,2,FALSE),"$80")))-MIN(ROW(INDIRECT(CONCATENATE("$",HLOOKUP(BrewReport!$F$7,$G$1:$K$2,2,FALSE),"$3:$",HLOOKUP(BrewReport!$F$7,$G$1:$K$2,2,FALSE),"$80"))))+1), ROW(A24))),"") -> Melano
A27: Cara Ruby | B27: 50 | C27: 50 | D27: 290 | E27: Rig karamelsmag og toffee aroma | F27: =IFERROR(VLOOKUP(Malt!$A27,BrewReport!$A$9:$D$18,4,FALSE),0) -> 0 | H27: =F27*N16 -> 0 | I27: =F27*N3 -> 0 | K27: =F27*N9 -> 0 | P27: =IFERROR(INDEX($A$3:$A$75, SMALL(IF(ISBLANK(INDIRECT(CONCATENATE("$",HLOOKUP(BrewReport!$F$7,$G$1:$K$2,2,FALSE),"$3:$",HLOOKUP(BrewReport!$F$7,$G$1:$K$2,2,FALSE),"$80"))), "", ROW(INDIRECT(CONCATENATE("$",HLOOKUP(BrewReport!$F$7,$G$1:$K$2,2,FALSE),"$3:$",HLOOKUP(BrewReport!$F$7,$G$1:$K$2,2,FALSE),"$80")))-MIN(ROW(INDIRECT(CONCATENATE("$",HLOOKUP(BrewReport!$F$7,$G$1:$K$2,2,FALSE),"$3:$",HLOOKUP(BrewReport!$F$7,$G$1:$K$2,2,FALSE),"$80"))))+1), ROW(A25))),"") -> Boghvede / Buckwheat
A28: Cara Wheat | B28: 100 - 140 | C28: 120 | D28: 290 | F28: =IFERROR(VLOOKUP(Malt!$A28,BrewReport!$A$9:$D$18,4,FALSE),0) -> 0 | G28: =F28*N9 -> 0 | P28: =IFERROR(INDEX($A$3:$A$75, SMALL(IF(ISBLANK(INDIRECT(CONCATENATE("$",HLOOKUP(BrewReport!$F$7,$G$1:$K$2,2,FALSE),"$3:$",HLOOKUP(BrewReport!$F$7,$G$1:$K$2,2,FALSE),"$80"))), "", ROW(INDIRECT(CONCATENATE("$",HLOOKUP(BrewReport!$F$7,$G$1:$K$2,2,FALSE),"$3:$",HLOOKUP(BrewReport!$F$7,$G$1:$K$2,2,FALSE),"$80")))-MIN(ROW(INDIRECT(CONCATENATE("$",HLOOKUP(BrewReport!$F$7,$G$1:$K$2,2,FALSE),"$3:$",HLOOKUP(BrewReport!$F$7,$G$1:$K$2,2,FALSE),"$80"))))+1), ROW(A26))),"") -> Sauer / Acid
A29: Crystal | B29: 150 | C29: 150 | D29: 280 | E29: Rig malt smag og aroma. Blød bitterhed | F29: =IFERROR(VLOOKUP(Malt!$A29,BrewReport!$A$9:$D$18,4,FALSE),0) -> 0 | H29: =F29*N16 -> 0 | P29: =IFERROR(INDEX($A$3:$A$75, SMALL(IF(ISBLANK(INDIRECT(CONCATENATE("$",HLOOKUP(BrewReport!$F$7,$G$1:$K$2,2,FALSE),"$3:$",HLOOKUP(BrewReport!$F$7,$G$1:$K$2,2,FALSE),"$80"))), "", ROW(INDIRECT(CONCATENATE("$",HLOOKUP(BrewReport!$F$7,$G$1:$K$2,2,FALSE),"$3:$",HLOOKUP(BrewReport!$F$7,$G$1:$K$2,2,FALSE),"$80")))-MIN(ROW(INDIRECT(CONCATENATE("$",HLOOKUP(BrewReport!$F$7,$G$1:$K$2,2,FALSE),"$3:$",HLOOKUP(BrewReport!$F$7,$G$1:$K$2,2,FALSE),"$80"))))+1), ROW(A27))),"") -> Abbey
A30: Special B | B30: 300 | C30: 300 | D30: 250 | E30: Rosinagtig smag, strejf af nødder og blommer | F30: =IFERROR(VLOOKUP(Malt!$A30,BrewReport!$A$9:$D$18,4,FALSE),0) -> 0 | G30: =F30*N9 -> 0 | H30: =F30*N16 -> 0 | I30: =F30*N7 -> 0 | J30: =F30*N16 -> 0 | P30: =IFERROR(INDEX($A$3:$A$75, SMALL(IF(ISBLANK(INDIRECT(CONCATENATE("$",HLOOKUP(BrewReport!$F$7,$G$1:$K$2,2,FALSE),"$3:$",HLOOKUP(BrewReport!$F$7,$G$1:$K$2,2,FALSE),"$80"))), "", ROW(INDIRECT(CONCATENATE("$",HLOOKUP(BrewReport!$F$7,$G$1:$K$2,2,FALSE),"$3:$",HLOOKUP(BrewReport!$F$7,$G$1:$K$2,2,FALSE),"$80")))-MIN(ROW(INDIRECT(CONCATENATE("$",HLOOKUP(BrewReport!$F$7,$G$1:$K$2,2,FALSE),"$3:$",HLOOKUP(BrewReport!$F$7,$G$1:$K$2,2,FALSE),"$80"))))+1), ROW(A28))),"") -> Peated / Røg
A31: Coffee / Café Light | B31: 250 | C31: 250 | D31: 280 | E31: Mild nøddeagtig og kaffesmag | F31: =IFERROR(VLOOKUP(Malt!$A31,BrewReport!$A$9:$D$18,4,FALSE),0) -> 0 | G31: =F31*N10 -> 0 | H31: =F31*N16 -> 0 | K31: =F31*N10 -> 0 | P31: =IFERROR(INDEX($A$3:$A$75, SMALL(IF(ISBLANK(INDIRECT(CONCATENATE("$",HLOOKUP(BrewReport!$F$7,$G$1:$K$2,2,FALSE),"$3:$",HLOOKUP(BrewReport!$F$7,$G$1:$K$2,2,FALSE),"$80"))), "", ROW(INDIRECT(CONCATENATE("$",HLOOKUP(BrewReport!$F$7,$G$1:$K$2,2,FALSE),"$3:$",HLOOKUP(BrewReport!$F$7,$G$1:$K$2,2,FALSE),"$80")))-MIN(ROW(INDIRECT(CONCATENATE("$",HLOOKUP(BrewReport!$F$7,$G$1:$K$2,2,FALSE),"$3:$",HLOOKUP(BrewReport!$F$7,$G$1:$K$2,2,FALSE),"$80"))))+1), ROW(A29))),"") -> Oat
A32: Coffee / Café | B32: 500 | C32: 500 | D32: 280 | E32: Mild nøddeagtig og kaffesmag | F32: =IFERROR(VLOOKUP(Malt!$A32,BrewReport!$A$9:$D$18,4,FALSE),0) -> 0 | G32: =F32*N10 -> 0 | H32: =F32*N16 -> 0 | K32: =F32*N10 -> 0 | P32: =IFERROR(INDEX($A$3:$A$75, SMALL(IF(ISBLANK(INDIRECT(CONCATENATE("$",HLOOKUP(BrewReport!$F$7,$G$1:$K$2,2,FALSE),"$3:$",HLOOKUP(BrewReport!$F$7,$G$1:$K$2,2,FALSE),"$80"))), "", ROW(INDIRECT(CONCATENATE("$",HLOOKUP(BrewReport!$F$7,$G$1:$K$2,2,FALSE),"$3:$",HLOOKUP(BrewReport!$F$7,$G$1:$K$2,2,FALSE),"$80")))-MIN(ROW(INDIRECT(CONCATENATE("$",HLOOKUP(BrewReport!$F$7,$G$1:$K$2,2,FALSE),"$3:$",HLOOKUP(BrewReport!$F$7,$G$1:$K$2,2,FALSE),"$80"))))+1), ROW(A30))),"") -> Rye
A33: Cara Clair | B33: 8 | C33: 8 | D33: 275 | F33: =IFERROR(VLOOKUP(Malt!$A33,BrewReport!$A$9:$D$18,4,FALSE),0) -> 0 | G33: =F33*N8 -> 0 | H33: =F33*N8 -> 0 | P33: =IFERROR(INDEX($A$3:$A$75, SMALL(IF(ISBLANK(INDIRECT(CONCATENATE("$",HLOOKUP(BrewReport!$F$7,$G$1:$K$2,2,FALSE),"$3:$",HLOOKUP(BrewReport!$F$7,$G$1:$K$2,2,FALSE),"$80"))), "", ROW(INDIRECT(CONCATENATE("$",HLOOKUP(BrewReport!$F$7,$G$1:$K$2,2,FALSE),"$3:$",HLOOKUP(BrewReport!$F$7,$G$1:$K$2,2,FALSE),"$80")))-MIN(ROW(INDIRECT(CONCATENATE("$",HLOOKUP(BrewReport!$F$7,$G$1:$K$2,2,FALSE),"$3:$",HLOOKUP(BrewReport!$F$7,$G$1:$K$2,2,FALSE),"$80"))))+1), ROW(A31))),"") -> Barley Flaked
A34: Ristet Malt | P34: =IFERROR(INDEX($A$3:$A$75, SMALL(IF(ISBLANK(INDIRECT(CONCATENATE("$",HLOOKUP(BrewReport!$F$7,$G$1:$K$2,2,FALSE),"$3:$",HLOOKUP(BrewReport!$F$7,$G$1:$K$2,2,FALSE),"$80"))), "", ROW(INDIRECT(CONCATENATE("$",HLOOKUP(BrewReport!$F$7,$G$1:$K$2,2,FALSE),"$3:$",HLOOKUP(BrewReport!$F$7,$G$1:$K$2,2,FALSE),"$80")))-MIN(ROW(INDIRECT(CONCATENATE("$",HLOOKUP(BrewReport!$F$7,$G$1:$K$2,2,FALSE),"$3:$",HLOOKUP(BrewReport!$F$7,$G$1:$K$2,2,FALSE),"$80"))))+1), ROW(A32))),"") -> Torrefied Maize Flaked
A35: Roasted Barley | B35: 1200 - 1400 | C35: 1300 | D35: 210 | E35: Kaffeagtig smag, kraftigt ristet smag. Sødme | F35: =IFERROR(VLOOKUP(Malt!$A35,BrewReport!$A$9:$D$18,4,FALSE),0) -> 0 | G35: =F35*N10 -> 0 | H35: =F35*N16 -> 0 | J35: =F35*N15 -> 0 | K35: =F35*N7 -> 0 | P35: =IFERROR(INDEX($A$3:$A$75, SMALL(IF(ISBLANK(INDIRECT(CONCATENATE("$",HLOOKUP(BrewReport!$F$7,$G$1:$K$2,2,FALSE),"$3:$",HLOOKUP(BrewReport!$F$7,$G$1:$K$2,2,FALSE),"$80"))), "", ROW(INDIRECT(CONCATENATE("$",HLOOKUP(BrewReport!$F$7,$G$1:$K$2,2,FALSE),"$3:$",HLOOKUP(BrewReport!$F$7,$G$1:$K$2,2,FALSE),"$80")))-MIN(ROW(INDIRECT(CONCATENATE("$",HLOOKUP(BrewReport!$F$7,$G$1:$K$2,2,FALSE),"$3:$",HLOOKUP(BrewReport!$F$7,$G$1:$K$2,2,FALSE),"$80"))))+1), ROW(A33))),"") -> Torrefied Oat Flakes
A36: Roasted Wheat | B36: 950 - 1050 | C36: 1000 | D36: 210 | F36: =IFERROR(VLOOKUP(Malt!$A36,BrewReport!$A$9:$D$18,4,FALSE),0) -> 0 | G36: =F36*N10 -> 0 | J36: =F36*N15 -> 0 | P36: =IFERROR(INDEX($A$3:$A$75, SMALL(IF(ISBLANK(INDIRECT(CONCATENATE("$",HLOOKUP(BrewReport!$F$7,$G$1:$K$2,2,FALSE),"$3:$",HLOOKUP(BrewReport!$F$7,$G$1:$K$2,2,FALSE),"$80"))), "", ROW(INDIRECT(CONCATENATE("$",HLOOKUP(BrewReport!$F$7,$G$1:$K$2,2,FALSE),"$3:$",HLOOKUP(BrewReport!$F$7,$G$1:$K$2,2,FALSE),"$80")))-MIN(ROW(INDIRECT(CONCATENATE("$",HLOOKUP(BrewReport!$F$7,$G$1:$K$2,2,FALSE),"$3:$",HLOOKUP(BrewReport!$F$7,$G$1:$K$2,2,FALSE),"$80"))))+1), ROW(A34))),"") -> Wheat Flaked
A37: Roasted Rye | B37: 500 - 800 | C37: 650 | D37: 260 | F37: =IFERROR(VLOOKUP(Malt!$A37,BrewReport!$A$9:$D$18,4,FALSE),0) -> 0 | G37: =F37*N10 -> 0 | I37: =F37*N4 -> 0 | P37: =IFERROR(INDEX($A$3:$A$75, SMALL(IF(ISBLANK(INDIRECT(CONCATENATE("$",HLOOKUP(BrewReport!$F$7,$G$1:$K$2,2,FALSE),"$3:$",HLOOKUP(BrewReport!$F$7,$G$1:$K$2,2,FALSE),"$80"))), "", ROW(INDIRECT(CONCATENATE("$",HLOOKUP(BrewReport!$F$7,$G$1:$K$2,2,FALSE),"$3:$",HLOOKUP(BrewReport!$F$7,$G$1:$K$2,2,FALSE),"$80")))-MIN(ROW(INDIRECT(CONCATENATE("$",HLOOKUP(BrewReport!$F$7,$G$1:$K$2,2,FALSE),"$3:$",HLOOKUP(BrewReport!$F$7,$G$1:$K$2,2,FALSE),"$80"))))+1), ROW(A35))),"") -> Torrefied Rice Flaked
A38: Chocolate Rye | B38: 800 | C38: 800 | D38: 260 | F38: =IFERROR(VLOOKUP(Malt!$A38,BrewReport!$A$9:$D$18,4,FALSE),0) -> 0 | I38: =F38*N7 -> 0 | P38: =IFERROR(INDEX($A$3:$A$75, SMALL(IF(ISBLANK(INDIRECT(CONCATENATE("$",HLOOKUP(BrewReport!$F$7,$G$1:$K$2,2,FALSE),"$3:$",HLOOKUP(BrewReport!$F$7,$G$1:$K$2,2,FALSE),"$80"))), "", ROW(INDIRECT(CONCATENATE("$",HLOOKUP(BrewReport!$F$7,$G$1:$K$2,2,FALSE),"$3:$",HLOOKUP(BrewReport!$F$7,$G$1:$K$2,2,FALSE),"$80")))-MIN(ROW(INDIRECT(CONCATENATE("$",HLOOKUP(BrewReport!$F$7,$G$1:$K$2,2,FALSE),"$3:$",HLOOKUP(BrewReport!$F$7,$G$1:$K$2,2,FALSE),"$80"))))+1), ROW(A36))),"") -> Whisky 30 - 45 ppm
A39: Chocolate / carafa Type I | B39: 800 - 900 | C39: 900 | D39: 275 | E39: Nøddeagtig og ristet smag | F39: =IFERROR(VLOOKUP(Malt!$A39,BrewReport!$A$9:$D$18,4,FALSE),0) -> 0 | G39: =F39*N10 -> 0 | H39: =F39*N16 -> 0 | I39: =F39*N7 -> 0 | J39: =F39*N16 -> 0 | K39: =F39*N9 -> 0 | P39: =IFERROR(INDEX($A$3:$A$75, SMALL(IF(ISBLANK(INDIRECT(CONCATENATE("$",HLOOKUP(BrewReport!$F$7,$G$1:$K$2,2,FALSE),"$3:$",HLOOKUP(BrewReport!$F$7,$G$1:$K$2,2,FALSE),"$80"))), "", ROW(INDIRECT(CONCATENATE("$",HLOOKUP(BrewReport!$F$7,$G$1:$K$2,2,FALSE),"$3:$",HLOOKUP(BrewReport!$F$7,$G$1:$K$2,2,FALSE),"$80")))-MIN(ROW(INDIRECT(CONCATENATE("$",HLOOKUP(BrewReport!$F$7,$G$1:$K$2,2,FALSE),"$3:$",HLOOKUP(BrewReport!$F$7,$G$1:$K$2,2,FALSE),"$80"))))+1), ROW(A37))),"") -> Whisky Light 15 - 25 ppm
A40: Dehusked Chocolate | B40: 800 | C40: 800 | D40: 275 | F40: =IFERROR(VLOOKUP(Malt!$A40,BrewReport!$A$9:$D$18,4,FALSE),0) -> 0 | G40: =F40*N10 -> 0 | P40: =IFERROR(INDEX($A$3:$A$75, SMALL(IF(ISBLANK(INDIRECT(CONCATENATE("$",HLOOKUP(BrewReport!$F$7,$G$1:$K$2,2,FALSE),"$3:$",HLOOKUP(BrewReport!$F$7,$G$1:$K$2,2,FALSE),"$80"))), "", ROW(INDIRECT(CONCATENATE("$",HLOOKUP(BrewReport!$F$7,$G$1:$K$2,2,FALSE),"$3:$",HLOOKUP(BrewReport!$F$7,$G$1:$K$2,2,FALSE),"$80")))-MIN(ROW(INDIRECT(CONCATENATE("$",HLOOKUP(BrewReport!$F$7,$G$1:$K$2,2,FALSE),"$3:$",HLOOKUP(BrewReport!$F$7,$G$1:$K$2,2,FALSE),"$80"))))+1), ROW(A38))),"") -> 
A41: Black | B41: 1500 | C41: 1500 | D41: 210 | E41: Let brændt smag | F41: =IFERROR(VLOOKUP(Malt!$A41,BrewReport!$A$9:$D$18,4,FALSE),0) -> 0 | G41: =F41*N10 -> 0 | H41: =F41*N16 -> 0 | I41: =F41*N7 -> 0 | J41: =F41*N16 -> 0 | K41: =F41*N10 -> 0 | P41: =IFERROR(INDEX($A$3:$A$75, SMALL(IF(ISBLANK(INDIRECT(CONCATENATE("$",HLOOKUP(BrewReport!$F$7,$G$1:$K$2,2,FALSE),"$3:$",HLOOKUP(BrewReport!$F$7,$G$1:$K$2,2,FALSE),"$80"))), "", ROW(INDIRECT(CONCATENATE("$",HLOOKUP(BrewReport!$F$7,$G$1:$K$2,2,FALSE),"$3:$",HLOOKUP(BrewReport!$F$7,$G$1:$K$2,2,FALSE),"$80")))-MIN(ROW(INDIRECT(CONCATENATE("$",HLOOKUP(BrewReport!$F$7,$G$1:$K$2,2,FALSE),"$3:$",HLOOKUP(BrewReport!$F$7,$G$1:$K$2,2,FALSE),"$80"))))+1), ROW(A39))),"") -> 
A42: Dehusked Black / carafa Special type II | B42: 1400 | C42: 1400 | D42: 210 | F42: =IFERROR(VLOOKUP(Malt!$A42,BrewReport!$A$9:$D$18,4,FALSE),0) -> 0 | G42: =F42*N10 -> 0 | J42: =F42*N16 -> 0 | P42: =IFERROR(INDEX($A$3:$A$75, SMALL(IF(ISBLANK(INDIRECT(CONCATENATE("$",HLOOKUP(BrewReport!$F$7,$G$1:$K$2,2,FALSE),"$3:$",HLOOKUP(BrewReport!$F$7,$G$1:$K$2,2,FALSE),"$80"))), "", ROW(INDIRECT(CONCATENATE("$",HLOOKUP(BrewReport!$F$7,$G$1:$K$2,2,FALSE),"$3:$",HLOOKUP(BrewReport!$F$7,$G$1:$K$2,2,FALSE),"$80")))-MIN(ROW(INDIRECT(CONCATENATE("$",HLOOKUP(BrewReport!$F$7,$G$1:$K$2,2,FALSE),"$3:$",HLOOKUP(BrewReport!$F$7,$G$1:$K$2,2,FALSE),"$80"))))+1), ROW(A40))),"") -> 
A43: Wheat Chocolate | B43: 900 - 1200 | C43: 1050 | D43: 275 | F43: =IFERROR(VLOOKUP(Malt!$A43,BrewReport!$A$9:$D$18,4,FALSE),0) -> 0 | G43: =F43*N10 -> 0 | I43: =F43*N7 -> 0 | J43: =F43*N16 -> 0 | P43: =IFERROR(INDEX($A$3:$A$75, SMALL(IF(ISBLANK(INDIRECT(CONCATENATE("$",HLOOKUP(BrewReport!$F$7,$G$1:$K$2,2,FALSE),"$3:$",HLOOKUP(BrewReport!$F$7,$G$1:$K$2,2,FALSE),"$80"))), "", ROW(INDIRECT(CONCATENATE("$",HLOOKUP(BrewReport!$F$7,$G$1:$K$2,2,FALSE),"$3:$",HLOOKUP(BrewReport!$F$7,$G$1:$K$2,2,FALSE),"$80")))-MIN(ROW(INDIRECT(CONCATENATE("$",HLOOKUP(BrewReport!$F$7,$G$1:$K$2,2,FALSE),"$3:$",HLOOKUP(BrewReport!$F$7,$G$1:$K$2,2,FALSE),"$80"))))+1), ROW(A41))),"") -> 
A44: Chocolate Spelt | B44: 450 - 650 | C44: 550 | D44: 250 | F44: =IFERROR(VLOOKUP(Malt!$A44,BrewReport!$A$9:$D$18,4,FALSE),0) -> 0 | I44: =F44*N16 -> 0 | P44: =IFERROR(INDEX($A$3:$A$75, SMALL(IF(ISBLANK(INDIRECT(CONCATENATE("$",HLOOKUP(BrewReport!$F$7,$G$1:$K$2,2,FALSE),"$3:$",HLOOKUP(BrewReport!$F$7,$G$1:$K$2,2,FALSE),"$80"))), "", ROW(INDIRECT(CONCATENATE("$",HLOOKUP(BrewReport!$F$7,$G$1:$K$2,2,FALSE),"$3:$",HLOOKUP(BrewReport!$F$7,$G$1:$K$2,2,FALSE),"$80")))-MIN(ROW(INDIRECT(CONCATENATE("$",HLOOKUP(BrewReport!$F$7,$G$1:$K$2,2,FALSE),"$3:$",HLOOKUP(BrewReport!$F$7,$G$1:$K$2,2,FALSE),"$80"))))+1), ROW(A42))),"") -> 
A45: Black of Black | B45: 400 - 600 | C45: 500 | D45: 250 | F45: =IFERROR(VLOOKUP(Malt!$A45,BrewReport!$A$9:$D$18,4,FALSE),0) -> 0 | G45: =F45*N10 -> 0 | K45: =F45*N10 -> 0 | P45: =IFERROR(INDEX($A$3:$A$75, SMALL(IF(ISBLANK(INDIRECT(CONCATENATE("$",HLOOKUP(BrewReport!$F$7,$G$1:$K$2,2,FALSE),"$3:$",HLOOKUP(BrewReport!$F$7,$G$1:$K$2,2,FALSE),"$80"))), "", ROW(INDIRECT(CONCATENATE("$",HLOOKUP(BrewReport!$F$7,$G$1:$K$2,2,FALSE),"$3:$",HLOOKUP(BrewReport!$F$7,$G$1:$K$2,2,FALSE),"$80")))-MIN(ROW(INDIRECT(CONCATENATE("$",HLOOKUP(BrewReport!$F$7,$G$1:$K$2,2,FALSE),"$3:$",HLOOKUP(BrewReport!$F$7,$G$1:$K$2,2,FALSE),"$80"))))+1), ROW(A43))),"") -> 
A46: Hvede Malt | P46: =IFERROR(INDEX($A$3:$A$75, SMALL(IF(ISBLANK(INDIRECT(CONCATENATE("$",HLOOKUP(BrewReport!$F$7,$G$1:$K$2,2,FALSE),"$3:$",HLOOKUP(BrewReport!$F$7,$G$1:$K$2,2,FALSE),"$80"))), "", ROW(INDIRECT(CONCATENATE("$",HLOOKUP(BrewReport!$F$7,$G$1:$K$2,2,FALSE),"$3:$",HLOOKUP(BrewReport!$F$7,$G$1:$K$2,2,FALSE),"$80")))-MIN(ROW(INDIRECT(CONCATENATE("$",HLOOKUP(BrewReport!$F$7,$G$1:$K$2,2,FALSE),"$3:$",HLOOKUP(BrewReport!$F$7,$G$1:$K$2,2,FALSE),"$80"))))+1), ROW(A44))),"") -> 
A47: Wheat | B47: 3 | C47: 3 | D47: 310 | E47: Fylde og skumstabilitet | F47: =IFERROR(VLOOKUP(Malt!$A47,BrewReport!$A$9:$D$18,4,FALSE),0) -> 2.5 | G47: =F47*N5 -> 45 | H47: =F47*N7 -> 50 | J47: =F47*N16 -> 75 | K47: =F47*N5 -> 45 | P47: =IFERROR(INDEX($A$3:$A$75, SMALL(IF(ISBLANK(INDIRECT(CONCATENATE("$",HLOOKUP(BrewReport!$F$7,$G$1:$K$2,2,FALSE),"$3:$",HLOOKUP(BrewReport!$F$7,$G$1:$K$2,2,FALSE),"$80"))), "", ROW(INDIRECT(CONCATENATE("$",HLOOKUP(BrewReport!$F$7,$G$1:$K$2,2,FALSE),"$3:$",HLOOKUP(BrewReport!$F$7,$G$1:$K$2,2,FALSE),"$80")))-MIN(ROW(INDIRECT(CONCATENATE("$",HLOOKUP(BrewReport!$F$7,$G$1:$K$2,2,FALSE),"$3:$",HLOOKUP(BrewReport!$F$7,$G$1:$K$2,2,FALSE),"$80"))))+1), ROW(A45))),"") -> 
A48: CaraWheat | B48: 3 - 5 | C48: 4 | D48: 310 | F48: =IFERROR(VLOOKUP(Malt!$A48,BrewReport!$A$9:$D$18,4,FALSE),0) -> 0 | G48: =F48*N6 -> 0 | J48: =F48*N15 -> 0 | P48: =IFERROR(INDEX($A$3:$A$75, SMALL(IF(ISBLANK(INDIRECT(CONCATENATE("$",HLOOKUP(BrewReport!$F$7,$G$1:$K$2,2,FALSE),"$3:$",HLOOKUP(BrewReport!$F$7,$G$1:$K$2,2,FALSE),"$80"))), "", ROW(INDIRECT(CONCATENATE("$",HLOOKUP(BrewReport!$F$7,$G$1:$K$2,2,FALSE),"$3:$",HLOOKUP(BrewReport!$F$7,$G$1:$K$2,2,FALSE),"$80")))-MIN(ROW(INDIRECT(CONCATENATE("$",HLOOKUP(BrewReport!$F$7,$G$1:$K$2,2,FALSE),"$3:$",HLOOKUP(BrewReport!$F$7,$G$1:$K$2,2,FALSE),"$80"))))+1), ROW(A46))),"") -> 
A49: Wheat Light | B49: 15 - 20 | C49: 17 | D49: 325 | F49: =IFERROR(VLOOKUP(Malt!$A49,BrewReport!$A$9:$D$18,4,FALSE),0) -> 0 | G49: =F49*N7 -> 0 | I49: =F49*N2 -> 0 | J49: =F49*N16 -> 0 | P49: =IFERROR(INDEX($A$3:$A$75, SMALL(IF(ISBLANK(INDIRECT(CONCATENATE("$",HLOOKUP(BrewReport!$F$7,$G$1:$K$2,2,FALSE),"$3:$",HLOOKUP(BrewReport!$F$7,$G$1:$K$2,2,FALSE),"$80"))), "", ROW(INDIRECT(CONCATENATE("$",HLOOKUP(BrewReport!$F$7,$G$1:$K$2,2,FALSE),"$3:$",HLOOKUP(BrewReport!$F$7,$G$1:$K$2,2,FALSE),"$80")))-MIN(ROW(INDIRECT(CONCATENATE("$",HLOOKUP(BrewReport!$F$7,$G$1:$K$2,2,FALSE),"$3:$",HLOOKUP(BrewReport!$F$7,$G$1:$K$2,2,FALSE),"$80"))))+1), ROW(A47))),"") -> 
A50: Wheat Dark | B50: 15 | C50: 15 | D50: 325 | F50: =IFERROR(VLOOKUP(Malt!$A50,BrewReport!$A$9:$D$18,4,FALSE),0) -> 0 | G50: =F50*N8 -> 0 | I50: =F50*N3 -> 0 | P50: =IFERROR(INDEX($A$3:$A$75, SMALL(IF(ISBLANK(INDIRECT(CONCATENATE("$",HLOOKUP(BrewReport!$F$7,$G$1:$K$2,2,FALSE),"$3:$",HLOOKUP(BrewReport!$F$7,$G$1:$K$2,2,FALSE),"$80"))), "", ROW(INDIRECT(CONCATENATE("$",HLOOKUP(BrewReport!$F$7,$G$1:$K$2,2,FALSE),"$3:$",HLOOKUP(BrewReport!$F$7,$G$1:$K$2,2,FALSE),"$80")))-MIN(ROW(INDIRECT(CONCATENATE("$",HLOOKUP(BrewReport!$F$7,$G$1:$K$2,2,FALSE),"$3:$",HLOOKUP(BrewReport!$F$7,$G$1:$K$2,2,FALSE),"$80"))))+1), ROW(A48))),"") -> 
A51: Wheat Munich | B51: 20 - 30 | C51: 25 | D51: 325 | F51: =IFERROR(VLOOKUP(Malt!$A51,BrewReport!$A$9:$D$18,4,FALSE),0) -> 0 | G51: =F51*N5 -> 0 | H51: =F51*N7 -> 0 | I51: =F51*N4 -> 0 | K51: =F51*N5 -> 0 | P51: =IFERROR(INDEX($A$3:$A$75, SMALL(IF(ISBLANK(INDIRECT(CONCATENATE("$",HLOOKUP(BrewReport!$F$7,$G$1:$K$2,2,FALSE),"$3:$",HLOOKUP(BrewReport!$F$7,$G$1:$K$2,2,FALSE),"$80"))), "", ROW(INDIRECT(CONCATENATE("$",HLOOKUP(BrewReport!$F$7,$G$1:$K$2,2,FALSE),"$3:$",HLOOKUP(BrewReport!$F$7,$G$1:$K$2,2,FALSE),"$80")))-MIN(ROW(INDIRECT(CONCATENATE("$",HLOOKUP(BrewReport!$F$7,$G$1:$K$2,2,FALSE),"$3:$",HLOOKUP(BrewReport!$F$7,$G$1:$K$2,2,FALSE),"$80"))))+1), ROW(A49))),"") -> 
A52: Wheat Chit | B52: 3 - 7 | C52: 5 | D52: 325 | F52: =IFERROR(VLOOKUP(Malt!$A52,BrewReport!$A$9:$D$18,4,FALSE),0) -> 0 | G52: =F52*N7 -> 0 | K52: =F52*N12 -> 0 | P52: =IFERROR(INDEX($A$3:$A$75, SMALL(IF(ISBLANK(INDIRECT(CONCATENATE("$",HLOOKUP(BrewReport!$F$7,$G$1:$K$2,2,FALSE),"$3:$",HLOOKUP(BrewReport!$F$7,$G$1:$K$2,2,FALSE),"$80"))), "", ROW(INDIRECT(CONCATENATE("$",HLOOKUP(BrewReport!$F$7,$G$1:$K$2,2,FALSE),"$3:$",HLOOKUP(BrewReport!$F$7,$G$1:$K$2,2,FALSE),"$80")))-MIN(ROW(INDIRECT(CONCATENATE("$",HLOOKUP(BrewReport!$F$7,$G$1:$K$2,2,FALSE),"$3:$",HLOOKUP(BrewReport!$F$7,$G$1:$K$2,2,FALSE),"$80"))))+1), ROW(A50))),"") -> 
A53: Wheat Spelt | B53: 3 - 7 | C53: 5 | D53: 300 | E53: Sødlig nøddeagtig og krydret, jordagtig smag | F53: =IFERROR(VLOOKUP(Malt!$A53,BrewReport!$A$9:$D$18,4,FALSE),0) -> 0 | G53: =F53*N15 -> 0 | H53: =F53*N16 -> 0 | I53: =F53*N16 -> 0 | P53: =IFERROR(INDEX($A$3:$A$75, SMALL(IF(ISBLANK(INDIRECT(CONCATENATE("$",HLOOKUP(BrewReport!$F$7,$G$1:$K$2,2,FALSE),"$3:$",HLOOKUP(BrewReport!$F$7,$G$1:$K$2,2,FALSE),"$80"))), "", ROW(INDIRECT(CONCATENATE("$",HLOOKUP(BrewReport!$F$7,$G$1:$K$2,2,FALSE),"$3:$",HLOOKUP(BrewReport!$F$7,$G$1:$K$2,2,FALSE),"$80")))-MIN(ROW(INDIRECT(CONCATENATE("$",HLOOKUP(BrewReport!$F$7,$G$1:$K$2,2,FALSE),"$3:$",HLOOKUP(BrewReport!$F$7,$G$1:$K$2,2,FALSE),"$80"))))+1), ROW(A51))),"") -> 
A54: Special Malt | P54: =IFERROR(INDEX($A$3:$A$75, SMALL(IF(ISBLANK(INDIRECT(CONCATENATE("$",HLOOKUP(BrewReport!$F$7,$G$1:$K$2,2,FALSE),"$3:$",HLOOKUP(BrewReport!$F$7,$G$1:$K$2,2,FALSE),"$80"))), "", ROW(INDIRECT(CONCATENATE("$",HLOOKUP(BrewReport!$F$7,$G$1:$K$2,2,FALSE),"$3:$",HLOOKUP(BrewReport!$F$7,$G$1:$K$2,2,FALSE),"$80")))-MIN(ROW(INDIRECT(CONCATENATE("$",HLOOKUP(BrewReport!$F$7,$G$1:$K$2,2,FALSE),"$3:$",HLOOKUP(BrewReport!$F$7,$G$1:$K$2,2,FALSE),"$80"))))+1), ROW(A52))),"") -> 
A55: Amber | B55: 80 - 110 | C55: 95 | D55: 290 | F55: =IFERROR(VLOOKUP(Malt!$A55,BrewReport!$A$9:$D$18,4,FALSE),0) -> 0 | G55: =F55*N10 -> 0 | I55: =F55*N7 -> 0 | J55: =F55*N16 -> 0 | P55: =IFERROR(INDEX($A$3:$A$75, SMALL(IF(ISBLANK(INDIRECT(CONCATENATE("$",HLOOKUP(BrewReport!$F$7,$G$1:$K$2,2,FALSE),"$3:$",HLOOKUP(BrewReport!$F$7,$G$1:$K$2,2,FALSE),"$80"))), "", ROW(INDIRECT(CONCATENATE("$",HLOOKUP(BrewReport!$F$7,$G$1:$K$2,2,FALSE),"$3:$",HLOOKUP(BrewReport!$F$7,$G$1:$K$2,2,FALSE),"$80")))-MIN(ROW(INDIRECT(CONCATENATE("$",HLOOKUP(BrewReport!$F$7,$G$1:$K$2,2,FALSE),"$3:$",HLOOKUP(BrewReport!$F$7,$G$1:$K$2,2,FALSE),"$80"))))+1), ROW(A53))),"") -> 
A56: Biscuit | B56: 45 - 70 | C56: 50 | D56: 300 | E56: Kiksesmag, svag smag af black og chokolade | F56: =IFERROR(VLOOKUP(Malt!$A56,BrewReport!$A$9:$D$18,4,FALSE),0) -> 0 | G56: =F56*N10 -> 0 | H56: =F56*N16 -> 0 | J56: =F56*N16 -> 0 | K56: =F56*N9 -> 0 | P56: =IFERROR(INDEX($A$3:$A$75, SMALL(IF(ISBLANK(INDIRECT(CONCATENATE("$",HLOOKUP(BrewReport!$F$7,$G$1:$K$2,2,FALSE),"$3:$",HLOOKUP(BrewReport!$F$7,$G$1:$K$2,2,FALSE),"$80"))), "", ROW(INDIRECT(CONCATENATE("$",HLOOKUP(BrewReport!$F$7,$G$1:$K$2,2,FALSE),"$3:$",HLOOKUP(BrewReport!$F$7,$G$1:$K$2,2,FALSE),"$80")))-MIN(ROW(INDIRECT(CONCATENATE("$",HLOOKUP(BrewReport!$F$7,$G$1:$K$2,2,FALSE),"$3:$",HLOOKUP(BrewReport!$F$7,$G$1:$K$2,2,FALSE),"$80"))))+1), ROW(A54))),"") -> 
A57: Arome | B57: 100 | C57: 100 | D57: 300 | E57: Blød bitterhed | F57: =IFERROR(VLOOKUP(Malt!$A57,BrewReport!$A$9:$D$18,4,FALSE),0) -> 0 | G57: =F57*N10 -> 0 | H57: =F57*N16 -> 0 | I57: =F57*N7 -> 0 | K57: =F57*N7 -> 0 | P57: =IFERROR(INDEX($A$3:$A$75, SMALL(IF(ISBLANK(INDIRECT(CONCATENATE("$",HLOOKUP(BrewReport!$F$7,$G$1:$K$2,2,FALSE),"$3:$",HLOOKUP(BrewReport!$F$7,$G$1:$K$2,2,FALSE),"$80"))), "", ROW(INDIRECT(CONCATENATE("$",HLOOKUP(BrewReport!$F$7,$G$1:$K$2,2,FALSE),"$3:$",HLOOKUP(BrewReport!$F$7,$G$1:$K$2,2,FALSE),"$80")))-MIN(ROW(INDIRECT(CONCATENATE("$",HLOOKUP(BrewReport!$F$7,$G$1:$K$2,2,FALSE),"$3:$",HLOOKUP(BrewReport!$F$7,$G$1:$K$2,2,FALSE),"$80"))))+1), ROW(A55))),"") -> 
A58: Melano Light | B58: 40 | C58: 40 | D58: 310 | E58: Intens maltsmag og fylde | F58: =IFERROR(VLOOKUP(Malt!$A58,BrewReport!$A$9:$D$18,4,FALSE),0) -> 0 | G58: =F58*N10 -> 0 | H58: =F58*N16 -> 0 | P58: =IFERROR(INDEX($A$3:$A$75, SMALL(IF(ISBLANK(INDIRECT(CONCATENATE("$",HLOOKUP(BrewReport!$F$7,$G$1:$K$2,2,FALSE),"$3:$",HLOOKUP(BrewReport!$F$7,$G$1:$K$2,2,FALSE),"$80"))), "", ROW(INDIRECT(CONCATENATE("$",HLOOKUP(BrewReport!$F$7,$G$1:$K$2,2,FALSE),"$3:$",HLOOKUP(BrewReport!$F$7,$G$1:$K$2,2,FALSE),"$80")))-MIN(ROW(INDIRECT(CONCATENATE("$",HLOOKUP(BrewReport!$F$7,$G$1:$K$2,2,FALSE),"$3:$",HLOOKUP(BrewReport!$F$7,$G$1:$K$2,2,FALSE),"$80"))))+1), ROW(A56))),"") -> 
A59: Melano | B59: 80 | C59: 80 | D59: 310 | E59: Intens maltsmag og fylde | F59: =IFERROR(VLOOKUP(Malt!$A59,BrewReport!$A$9:$D$18,4,FALSE),0) -> 0 | G59: =F59*N10 -> 0 | H59: =F59*N17 -> 0 | I59: =F59*N7 -> 0 | J59: =F59*N16 -> 0 | K59: =F59*N9 -> 0 | P59: =IFERROR(INDEX($A$3:$A$75, SMALL(IF(ISBLANK(INDIRECT(CONCATENATE("$",HLOOKUP(BrewReport!$F$7,$G$1:$K$2,2,FALSE),"$3:$",HLOOKUP(BrewReport!$F$7,$G$1:$K$2,2,FALSE),"$80"))), "", ROW(INDIRECT(CONCATENATE("$",HLOOKUP(BrewReport!$F$7,$G$1:$K$2,2,FALSE),"$3:$",HLOOKUP(BrewReport!$F$7,$G$1:$K$2,2,FALSE),"$80")))-MIN(ROW(INDIRECT(CONCATENATE("$",HLOOKUP(BrewReport!$F$7,$G$1:$K$2,2,FALSE),"$3:$",HLOOKUP(BrewReport!$F$7,$G$1:$K$2,2,FALSE),"$80"))))+1), ROW(A57))),"") -> 
A60: Boghvede / Buckwheat | B60: 4 - 15 | C60: 9 | D60: 275 | E60: Malt og nøddeagtig smag. Glutenfri | F60: =IFERROR(VLOOKUP(Malt!$A60,BrewReport!$A$9:$D$18,4,FALSE),0) -> 0 | H60: =F60*N17 -> 0 | I60: =F60*N13 -> 0 | K60: =F60*42 -> 0 | P60: =IFERROR(INDEX($A$3:$A$75, SMALL(IF(ISBLANK(INDIRECT(CONCATENATE("$",HLOOKUP(BrewReport!$F$7,$G$1:$K$2,2,FALSE),"$3:$",HLOOKUP(BrewReport!$F$7,$G$1:$K$2,2,FALSE),"$80"))), "", ROW(INDIRECT(CONCATENATE("$",HLOOKUP(BrewReport!$F$7,$G$1:$K$2,2,FALSE),"$3:$",HLOOKUP(BrewReport!$F$7,$G$1:$K$2,2,FALSE),"$80")))-MIN(ROW(INDIRECT(CONCATENATE("$",HLOOKUP(BrewReport!$F$7,$G$1:$K$2,2,FALSE),"$3:$",HLOOKUP(BrewReport!$F$7,$G$1:$K$2,2,FALSE),"$80"))))+1), ROW(A58))),"") -> 
A61: Sauer / Acid | B61: 6 - 12 | C61: 9 | D61: 220 | E61: Rund og stabil smag | F61: =IFERROR(VLOOKUP(Malt!$A61,BrewReport!$A$9:$D$18,4,FALSE),0) -> 0 | G61: =F61*N10 -> 0 | H61: =F61*N17 -> 0 | I61: =F61*N9 -> 0 | J61: =F61*N7 -> 0 | K61: =F61*32 -> 0 | P61: =IFERROR(INDEX($A$3:$A$75, SMALL(IF(ISBLANK(INDIRECT(CONCATENATE("$",HLOOKUP(BrewReport!$F$7,$G$1:$K$2,2,FALSE),"$3:$",HLOOKUP(BrewReport!$F$7,$G$1:$K$2,2,FALSE),"$80"))), "", ROW(INDIRECT(CONCATENATE("$",HLOOKUP(BrewReport!$F$7,$G$1:$K$2,2,FALSE),"$3:$",HLOOKUP(BrewReport!$F$7,$G$1:$K$2,2,FALSE),"$80")))-MIN(ROW(INDIRECT(CONCATENATE("$",HLOOKUP(BrewReport!$F$7,$G$1:$K$2,2,FALSE),"$3:$",HLOOKUP(BrewReport!$F$7,$G$1:$K$2,2,FALSE),"$80"))))+1), ROW(A59))),"") -> 
A62: Chateau Diastatic | B62: 3,5 - 4,5 | C62: 4 | D62: 275 | E62: Enzymer. Hæver udbyttet | F62: =IFERROR(VLOOKUP(Malt!$A62,BrewReport!$A$9:$D$18,4,FALSE),0) -> 0 | K62: =F62*N9 -> 0 | P62: =IFERROR(INDEX($A$3:$A$75, SMALL(IF(ISBLANK(INDIRECT(CONCATENATE("$",HLOOKUP(BrewReport!$F$7,$G$1:$K$2,2,FALSE),"$3:$",HLOOKUP(BrewReport!$F$7,$G$1:$K$2,2,FALSE),"$80"))), "", ROW(INDIRECT(CONCATENATE("$",HLOOKUP(BrewReport!$F$7,$G$1:$K$2,2,FALSE),"$3:$",HLOOKUP(BrewReport!$F$7,$G$1:$K$2,2,FALSE),"$80")))-MIN(ROW(INDIRECT(CONCATENATE("$",HLOOKUP(BrewReport!$F$7,$G$1:$K$2,2,FALSE),"$3:$",HLOOKUP(BrewReport!$F$7,$G$1:$K$2,2,FALSE),"$80"))))+1), ROW(A60))),"") -> 
A63: Abbey | B63: 45 | C63: 45 | D63: 280 | E63: Stærkere smag af kogt brød, nødder og frugt | F63: =IFERROR(VLOOKUP(Malt!$A63,BrewReport!$A$9:$D$18,4,FALSE),0) -> 0 | G63: =F63*N10 -> 0 | H63: =F63*N16 -> 0 | I63: =F63*N2 -> 0 | K63: =F63*N7 -> 0 | P63: =IFERROR(INDEX($A$3:$A$75, SMALL(IF(ISBLANK(INDIRECT(CONCATENATE("$",HLOOKUP(BrewReport!$F$7,$G$1:$K$2,2,FALSE),"$3:$",HLOOKUP(BrewReport!$F$7,$G$1:$K$2,2,FALSE),"$80"))), "", ROW(INDIRECT(CONCATENATE("$",HLOOKUP(BrewReport!$F$7,$G$1:$K$2,2,FALSE),"$3:$",HLOOKUP(BrewReport!$F$7,$G$1:$K$2,2,FALSE),"$80")))-MIN(ROW(INDIRECT(CONCATENATE("$",HLOOKUP(BrewReport!$F$7,$G$1:$K$2,2,FALSE),"$3:$",HLOOKUP(BrewReport!$F$7,$G$1:$K$2,2,FALSE),"$80"))))+1), ROW(A61))),"") -> 
A64: Peated / Røg | B64: 5 - 10 | C64: 7 | D64: 310 | F64: =IFERROR(VLOOKUP(Malt!$A64,BrewReport!$A$9:$D$18,4,FALSE),0) -> 0 | G64: =F64*N10 -> 0 | H64: =F64*N16 -> 0 | I64: =F64*N5 -> 0 | J64: =F64*N15 -> 0 | K64: =F64*N9 -> 0 | P64: =IFERROR(INDEX($A$3:$A$75, SMALL(IF(ISBLANK(INDIRECT(CONCATENATE("$",HLOOKUP(BrewReport!$F$7,$G$1:$K$2,2,FALSE),"$3:$",HLOOKUP(BrewReport!$F$7,$G$1:$K$2,2,FALSE),"$80"))), "", ROW(INDIRECT(CONCATENATE("$",HLOOKUP(BrewReport!$F$7,$G$1:$K$2,2,FALSE),"$3:$",HLOOKUP(BrewReport!$F$7,$G$1:$K$2,2,FALSE),"$80")))-MIN(ROW(INDIRECT(CONCATENATE("$",HLOOKUP(BrewReport!$F$7,$G$1:$K$2,2,FALSE),"$3:$",HLOOKUP(BrewReport!$F$7,$G$1:$K$2,2,FALSE),"$80"))))+1), ROW(A62))),"") -> 
A65: Oat | B65: 2 - 4 | C65: 3 | D65: 0 | E65: Brødsmag, blødhed og fylde. Husk at koge det inden mæskning. | F65: =IFERROR(VLOOKUP(Malt!$A65,BrewReport!$A$9:$D$18,4,FALSE),0) -> 0 | H65: =F65*N17 -> 0 | P65: =IFERROR(INDEX($A$3:$A$75, SMALL(IF(ISBLANK(INDIRECT(CONCATENATE("$",HLOOKUP(BrewReport!$F$7,$G$1:$K$2,2,FALSE),"$3:$",HLOOKUP(BrewReport!$F$7,$G$1:$K$2,2,FALSE),"$80"))), "", ROW(INDIRECT(CONCATENATE("$",HLOOKUP(BrewReport!$F$7,$G$1:$K$2,2,FALSE),"$3:$",HLOOKUP(BrewReport!$F$7,$G$1:$K$2,2,FALSE),"$80")))-MIN(ROW(INDIRECT(CONCATENATE("$",HLOOKUP(BrewReport!$F$7,$G$1:$K$2,2,FALSE),"$3:$",HLOOKUP(BrewReport!$F$7,$G$1:$K$2,2,FALSE),"$80"))))+1), ROW(A63))),"") -> 
A66: Rye | B66: 4 - 10 | C66: 7 | D66: 240 | E66: Lidt rug smag og kompleksitet | F66: =IFERROR(VLOOKUP(Malt!$A66,BrewReport!$A$9:$D$18,4,FALSE),0) -> 0 | G66: =F66*N9 -> 0 | H66: =F66*N15 -> 0 | I66: =F66*N8 -> 0 | K66: =F66*N10 -> 0 | P66: =IFERROR(INDEX($A$3:$A$75, SMALL(IF(ISBLANK(INDIRECT(CONCATENATE("$",HLOOKUP(BrewReport!$F$7,$G$1:$K$2,2,FALSE),"$3:$",HLOOKUP(BrewReport!$F$7,$G$1:$K$2,2,FALSE),"$80"))), "", ROW(INDIRECT(CONCATENATE("$",HLOOKUP(BrewReport!$F$7,$G$1:$K$2,2,FALSE),"$3:$",HLOOKUP(BrewReport!$F$7,$G$1:$K$2,2,FALSE),"$80")))-MIN(ROW(INDIRECT(CONCATENATE("$",HLOOKUP(BrewReport!$F$7,$G$1:$K$2,2,FALSE),"$3:$",HLOOKUP(BrewReport!$F$7,$G$1:$K$2,2,FALSE),"$80"))))+1), ROW(A64))),"") -> 
A67: Barley Chit | B67: 3 - 7 | C67: 5 | D67: 270 | E67: Rig og tør kornagtig smag, Stabilt skum | F67: =IFERROR(VLOOKUP(Malt!$A67,BrewReport!$A$9:$D$18,4,FALSE),0) -> 0 | G67: =F67*N7 -> 0 | K67: =F67*N12 -> 0 | P67: =IFERROR(INDEX($A$3:$A$75, SMALL(IF(ISBLANK(INDIRECT(CONCATENATE("$",HLOOKUP(BrewReport!$F$7,$G$1:$K$2,2,FALSE),"$3:$",HLOOKUP(BrewReport!$F$7,$G$1:$K$2,2,FALSE),"$80"))), "", ROW(INDIRECT(CONCATENATE("$",HLOOKUP(BrewReport!$F$7,$G$1:$K$2,2,FALSE),"$3:$",HLOOKUP(BrewReport!$F$7,$G$1:$K$2,2,FALSE),"$80")))-MIN(ROW(INDIRECT(CONCATENATE("$",HLOOKUP(BrewReport!$F$7,$G$1:$K$2,2,FALSE),"$3:$",HLOOKUP(BrewReport!$F$7,$G$1:$K$2,2,FALSE),"$80"))))+1), ROW(A65))),"") -> 
A68: Barley Flaked | B68: 3 - 7 | C68: 5 | D68: 270 | E68: Rig og tør kornagtig smag, Stabilt skum | F68: =IFERROR(VLOOKUP(Malt!$A68,BrewReport!$A$9:$D$18,4,FALSE),0) -> 0 | G68: =F68*N8 -> 0 | H68: =F68*N16 -> 0 | J68: =F68*N16 -> 0 | P68: =IFERROR(INDEX($A$3:$A$75, SMALL(IF(ISBLANK(INDIRECT(CONCATENATE("$",HLOOKUP(BrewReport!$F$7,$G$1:$K$2,2,FALSE),"$3:$",HLOOKUP(BrewReport!$F$7,$G$1:$K$2,2,FALSE),"$80"))), "", ROW(INDIRECT(CONCATENATE("$",HLOOKUP(BrewReport!$F$7,$G$1:$K$2,2,FALSE),"$3:$",HLOOKUP(BrewReport!$F$7,$G$1:$K$2,2,FALSE),"$80")))-MIN(ROW(INDIRECT(CONCATENATE("$",HLOOKUP(BrewReport!$F$7,$G$1:$K$2,2,FALSE),"$3:$",HLOOKUP(BrewReport!$F$7,$G$1:$K$2,2,FALSE),"$80"))))+1), ROW(A66))),"") -> 
A69: Torrefied Maize Flaked | B69: 1,5 | C69: 1,5 | D69: 310 | E69: Let smag | F69: =IFERROR(VLOOKUP(Malt!$A69,BrewReport!$A$9:$D$18,4,FALSE),0) -> 0 | G69: =F69*N8 -> 0 | H69: =F69*N16 -> 0 | P69: =IFERROR(INDEX($A$3:$A$75, SMALL(IF(ISBLANK(INDIRECT(CONCATENATE("$",HLOOKUP(BrewReport!$F$7,$G$1:$K$2,2,FALSE),"$3:$",HLOOKUP(BrewReport!$F$7,$G$1:$K$2,2,FALSE),"$80"))), "", ROW(INDIRECT(CONCATENATE("$",HLOOKUP(BrewReport!$F$7,$G$1:$K$2,2,FALSE),"$3:$",HLOOKUP(BrewReport!$F$7,$G$1:$K$2,2,FALSE),"$80")))-MIN(ROW(INDIRECT(CONCATENATE("$",HLOOKUP(BrewReport!$F$7,$G$1:$K$2,2,FALSE),"$3:$",HLOOKUP(BrewReport!$F$7,$G$1:$K$2,2,FALSE),"$80"))))+1), ROW(A67))),"") -> 
A70: Oat Flaked | B70: 3 - 7 | C70: 5 | D70: 0 | E70: Brødsmag, blødhed og fylde. Husk pause i mæskningen. | F70: =IFERROR(VLOOKUP(Malt!$A70,BrewReport!$A$9:$D$18,4,FALSE),0) -> 0 | G70: =F70*N8 -> 0 | I70: =F70*N16 -> 0 | K70: =F70*32 -> 0 | P70: =IFERROR(INDEX($A$3:$A$75, SMALL(IF(ISBLANK(INDIRECT(CONCATENATE("$",HLOOKUP(BrewReport!$F$7,$G$1:$K$2,2,FALSE),"$3:$",HLOOKUP(BrewReport!$F$7,$G$1:$K$2,2,FALSE),"$80"))), "", ROW(INDIRECT(CONCATENATE("$",HLOOKUP(BrewReport!$F$7,$G$1:$K$2,2,FALSE),"$3:$",HLOOKUP(BrewReport!$F$7,$G$1:$K$2,2,FALSE),"$80")))-MIN(ROW(INDIRECT(CONCATENATE("$",HLOOKUP(BrewReport!$F$7,$G$1:$K$2,2,FALSE),"$3:$",HLOOKUP(BrewReport!$F$7,$G$1:$K$2,2,FALSE),"$80"))))+1), ROW(A68))),"") -> 
A71: Torrefied Oat Flakes | B71: 2,8 - 5 | C71: 4 | D71: 0 | E71: Forbedrer mundfylden og skummet | F71: =IFERROR(VLOOKUP(Malt!$A71,BrewReport!$A$9:$D$18,4,FALSE),0) -> 0 | H71: =F71*N16 -> 0 | P71: =IFERROR(INDEX($A$3:$A$75, SMALL(IF(ISBLANK(INDIRECT(CONCATENATE("$",HLOOKUP(BrewReport!$F$7,$G$1:$K$2,2,FALSE),"$3:$",HLOOKUP(BrewReport!$F$7,$G$1:$K$2,2,FALSE),"$80"))), "", ROW(INDIRECT(CONCATENATE("$",HLOOKUP(BrewReport!$F$7,$G$1:$K$2,2,FALSE),"$3:$",HLOOKUP(BrewReport!$F$7,$G$1:$K$2,2,FALSE),"$80")))-MIN(ROW(INDIRECT(CONCATENATE("$",HLOOKUP(BrewReport!$F$7,$G$1:$K$2,2,FALSE),"$3:$",HLOOKUP(BrewReport!$F$7,$G$1:$K$2,2,FALSE),"$80"))))+1), ROW(A69))),"") -> 
A72: Wheat Flaked | B72: 3,0 - 7,0 | C72: 5 | D72: 290 | E72: Stabilt skum | F72: =IFERROR(VLOOKUP(Malt!$A72,BrewReport!$A$9:$D$18,4,FALSE),0) -> 0.5 | G72: =F72*N8 -> 10.5 | H72: =F72*N7 -> 10 | I72: =F72*N12 -> 12.5 | P72: =IFERROR(INDEX($A$3:$A$75, SMALL(IF(ISBLANK(INDIRECT(CONCATENATE("$",HLOOKUP(BrewReport!$F$7,$G$1:$K$2,2,FALSE),"$3:$",HLOOKUP(BrewReport!$F$7,$G$1:$K$2,2,FALSE),"$80"))), "", ROW(INDIRECT(CONCATENATE("$",HLOOKUP(BrewReport!$F$7,$G$1:$K$2,2,FALSE),"$3:$",HLOOKUP(BrewReport!$F$7,$G$1:$K$2,2,FALSE),"$80")))-MIN(ROW(INDIRECT(CONCATENATE("$",HLOOKUP(BrewReport!$F$7,$G$1:$K$2,2,FALSE),"$3:$",HLOOKUP(BrewReport!$F$7,$G$1:$K$2,2,FALSE),"$80"))))+1), ROW(A70))),"") -> 
A73: Torrefied Rice Flaked | B73: 0 | C73: 0 | D73: 270 | E73: Masser af stivelse, øger alkohol% | F73: =IFERROR(VLOOKUP(Malt!$A73,BrewReport!$A$9:$D$18,4,FALSE),0) -> 0 | G73: =F73*N8 -> 0 | H73: =F73*N16 -> 0 | I73: =F73*38 -> 0 | J73: =F73*N7 -> 0 | P73: =IFERROR(INDEX($A$3:$A$75, SMALL(IF(ISBLANK(INDIRECT(CONCATENATE("$",HLOOKUP(BrewReport!$F$7,$G$1:$K$2,2,FALSE),"$3:$",HLOOKUP(BrewReport!$F$7,$G$1:$K$2,2,FALSE),"$80"))), "", ROW(INDIRECT(CONCATENATE("$",HLOOKUP(BrewReport!$F$7,$G$1:$K$2,2,FALSE),"$3:$",HLOOKUP(BrewReport!$F$7,$G$1:$K$2,2,FALSE),"$80")))-MIN(ROW(INDIRECT(CONCATENATE("$",HLOOKUP(BrewReport!$F$7,$G$1:$K$2,2,FALSE),"$3:$",HLOOKUP(BrewReport!$F$7,$G$1:$K$2,2,FALSE),"$80"))))+1), ROW(A71))),"") -> 
A74: Whisky 30 - 45 ppm | B74: 30 - 45 | C74: 38 | D74: 300 | E74: Tørv- og røgsmag | F74: =IFERROR(VLOOKUP(Malt!$A74,BrewReport!$A$9:$D$18,4,FALSE),0) -> 0 | H74: =F74*N16 -> 0 | I74: =F74*N7 -> 0 | P74: =IFERROR(INDEX($A$3:$A$75, SMALL(IF(ISBLANK(INDIRECT(CONCATENATE("$",HLOOKUP(BrewReport!$F$7,$G$1:$K$2,2,FALSE),"$3:$",HLOOKUP(BrewReport!$F$7,$G$1:$K$2,2,FALSE),"$80"))), "", ROW(INDIRECT(CONCATENATE("$",HLOOKUP(BrewReport!$F$7,$G$1:$K$2,2,FALSE),"$3:$",HLOOKUP(BrewReport!$F$7,$G$1:$K$2,2,FALSE),"$80")))-MIN(ROW(INDIRECT(CONCATENATE("$",HLOOKUP(BrewReport!$F$7,$G$1:$K$2,2,FALSE),"$3:$",HLOOKUP(BrewReport!$F$7,$G$1:$K$2,2,FALSE),"$80"))))+1), ROW(A72))),"") -> 
A75: Whisky Light 15 - 25 ppm | B75: 15 - 25 | C75: 20 | D75: 300 | E75: Tørv- og røgsmag | F75: =IFERROR(VLOOKUP(Malt!$A75,BrewReport!$A$9:$D$18,4,FALSE),0) -> 0 | H75: =F75*N16 -> 0 | P75: =IFERROR(INDEX($A$3:$A$75, SMALL(IF(ISBLANK(INDIRECT(CONCATENATE("$",HLOOKUP(BrewReport!$F$7,$G$1:$K$2,2,FALSE),"$3:$",HLOOKUP(BrewReport!$F$7,$G$1:$K$2,2,FALSE),"$80"))), "", ROW(INDIRECT(CONCATENATE("$",HLOOKUP(BrewReport!$F$7,$G$1:$K$2,2,FALSE),"$3:$",HLOOKUP(BrewReport!$F$7,$G$1:$K$2,2,FALSE),"$80")))-MIN(ROW(INDIRECT(CONCATENATE("$",HLOOKUP(BrewReport!$F$7,$G$1:$K$2,2,FALSE),"$3:$",HLOOKUP(BrewReport!$F$7,$G$1:$K$2,2,FALSE),"$80"))))+1), ROW(A73))),"") -> 
A76: Ialt | F76: =SUM(F3:F75) -> 6 | G76: 115.5 | H76: 120 | I76: 60.5 | J76: 132 | K76: 99 | P76: =IFERROR(INDEX($A$3:$A$75, SMALL(IF(ISBLANK(INDIRECT(CONCATENATE("$",HLOOKUP(BrewReport!$F$7,$G$1:$K$2,2,FALSE),"$3:$",HLOOKUP(BrewReport!$F$7,$G$1:$K$2,2,FALSE),"$80"))), "", ROW(INDIRECT(CONCATENATE("$",HLOOKUP(BrewReport!$F$7,$G$1:$K$2,2,FALSE),"$3:$",HLOOKUP(BrewReport!$F$7,$G$1:$K$2,2,FALSE),"$80")))-MIN(ROW(INDIRECT(CONCATENATE("$",HLOOKUP(BrewReport!$F$7,$G$1:$K$2,2,FALSE),"$3:$",HLOOKUP(BrewReport!$F$7,$G$1:$K$2,2,FALSE),"$80"))))+1), ROW(A69))),"") -> 
A77: Valsning og håndtering | G77: 28 | H77: 0 | I77: 20 | J77: =2 * (F77/1000) -> 0 | K77: 25 | P77: =IFERROR(INDEX($A$3:$A$75, SMALL(IF(ISBLANK(INDIRECT(CONCATENATE("$",HLOOKUP(BrewReport!$F$7,$G$1:$K$2,2,FALSE),"$3:$",HLOOKUP(BrewReport!$F$7,$G$1:$K$2,2,FALSE),"$80"))), "", ROW(INDIRECT(CONCATENATE("$",HLOOKUP(BrewReport!$F$7,$G$1:$K$2,2,FALSE),"$3:$",HLOOKUP(BrewReport!$F$7,$G$1:$K$2,2,FALSE),"$80")))-MIN(ROW(INDIRECT(CONCATENATE("$",HLOOKUP(BrewReport!$F$7,$G$1:$K$2,2,FALSE),"$3:$",HLOOKUP(BrewReport!$F$7,$G$1:$K$2,2,FALSE),"$80"))))+1), ROW(A70))),"") -> 
A78: Forsendelse uden omdeling (Post dk) (<=10kg) | B78: Tast 1 for at vælge fragt > | D78: 1 | G78: =IF(D78=1,59,0) -> 59 | H78: =IF(D78=1,30,0) -> 30 | I78: =IF(D78=1,55,0) -> 55 | J78: =IF(D78=1,49,0) -> 49 | K78: =IF(D78=1,60,0) -> 60 | P78: =IFERROR(INDEX($A$3:$A$75, SMALL(IF(ISBLANK(INDIRECT(CONCATENATE("$",HLOOKUP(BrewReport!$F$7,$G$1:$K$2,2,FALSE),"$3:$",HLOOKUP(BrewReport!$F$7,$G$1:$K$2,2,FALSE),"$80"))), "", ROW(INDIRECT(CONCATENATE("$",HLOOKUP(BrewReport!$F$7,$G$1:$K$2,2,FALSE),"$3:$",HLOOKUP(BrewReport!$F$7,$G$1:$K$2,2,FALSE),"$80")))-MIN(ROW(INDIRECT(CONCATENATE("$",HLOOKUP(BrewReport!$F$7,$G$1:$K$2,2,FALSE),"$3:$",HLOOKUP(BrewReport!$F$7,$G$1:$K$2,2,FALSE),"$80"))))+1), ROW(A71))),"") -> 
A79: Ialt | G79: =SUM(G76:G78) -> 202.5 | H79: =SUM(H76:H78) -> 150 | I79: =SUM(I76:I78) -> 135.5 | J79: =SUM(J76:J78) -> 181 | K79: =SUM(K76:K78) -> 184 | P79: =IFERROR(INDEX($A$3:$A$75, SMALL(IF(ISBLANK(INDIRECT(CONCATENATE("$",HLOOKUP(BrewReport!$F$7,$G$1:$K$2,2,FALSE),"$3:$",HLOOKUP(BrewReport!$F$7,$G$1:$K$2,2,FALSE),"$80"))), "", ROW(INDIRECT(CONCATENATE("$",HLOOKUP(BrewReport!$F$7,$G$1:$K$2,2,FALSE),"$3:$",HLOOKUP(BrewReport!$F$7,$G$1:$K$2,2,FALSE),"$80")))-MIN(ROW(INDIRECT(CONCATENATE("$",HLOOKUP(BrewReport!$F$7,$G$1:$K$2,2,FALSE),"$3:$",HLOOKUP(BrewReport!$F$7,$G$1:$K$2,2,FALSE),"$80"))))+1), ROW(A72))),"") -> 
P80: =IFERROR(INDEX($A$3:$A$75, SMALL(IF(ISBLANK(INDIRECT(CONCATENATE("$",HLOOKUP(BrewReport!$F$7,$G$1:$K$2,2,FALSE),"$3:$",HLOOKUP(BrewReport!$F$7,$G$1:$K$2,2,FALSE),"$80"))), "", ROW(INDIRECT(CONCATENATE("$",HLOOKUP(BrewReport!$F$7,$G$1:$K$2,2,FALSE),"$3:$",HLOOKUP(BrewReport!$F$7,$G$1:$K$2,2,FALSE),"$80")))-MIN(ROW(INDIRECT(CONCATENATE("$",HLOOKUP(BrewReport!$F$7,$G$1:$K$2,2,FALSE),"$3:$",HLOOKUP(BrewReport!$F$7,$G$1:$K$2,2,FALSE),"$80"))))+1), ROW(A73))),"") -> 
P81: =IFERROR(INDEX($A$3:$A$75, SMALL(IF(ISBLANK(INDIRECT(CONCATENATE("$",HLOOKUP(BrewReport!$F$7,$G$1:$K$2,2,FALSE),"$3:$",HLOOKUP(BrewReport!$F$7,$G$1:$K$2,2,FALSE),"$79"))), "", ROW(INDIRECT(CONCATENATE("$",HLOOKUP(BrewReport!$F$7,$G$1:$K$2,2,FALSE),"$3:$",HLOOKUP(BrewReport!$F$7,$G$1:$K$2,2,FALSE),"$79")))-MIN(ROW(INDIRECT(CONCATENATE("$",HLOOKUP(BrewReport!$F$7,$G$1:$K$2,2,FALSE),"$3:$",HLOOKUP(BrewReport!$F$7,$G$1:$K$2,2,FALSE),"$79"))))+1), ROW(A74))),"") -> 
P82: =IFERROR(INDEX(#REF!, SMALL(IF(ISBLANK(INDIRECT(CONCATENATE("$",HLOOKUP(BrewReport!$F$7,$G$1:$K$2,2,FALSE),"$3:$",HLOOKUP(BrewReport!$F$7,$G$1:$K$2,2,FALSE),"$79"))), "", ROW(INDIRECT(CONCATENATE("$",HLOOKUP(BrewReport!$F$7,$G$1:$K$2,2,FALSE),"$3:$",HLOOKUP(BrewReport!$F$7,$G$1:$K$2,2,FALSE),"$79")))-MIN(ROW(INDIRECT(CONCATENATE("$",HLOOKUP(BrewReport!$F$7,$G$1:$K$2,2,FALSE),"$3:$",HLOOKUP(BrewReport!$F$7,$G$1:$K$2,2,FALSE),"$79"))))+1), ROW(#REF!))),"") -> 

Sheet Malt X-ref.
B2: WEYERMANN | C2: Castle Malting | D2: MUNTONS | E2: BRIESS | F2: FAWCETT | G2: BAIRDS | H2: CRISP | I2: GAMBRINUS | J2: DINGEMANS
B3: (German) | C3: (Belgian) | D3: (British) | E3: (American) | F3: (British) | G3: (British) | H3: (British) | I3: (Canadian) | J3: (Belgian)
B4: Bohemian Pilsner | C4: Pilsner | D4: Lager | E4: Pilsner | F4: Lager | H4: Lager | J4: Pilsen
B5: Pale | C5: Pale Ale | D5: Pale | E5: Brewers 2-Row | F5: Pale Ale | G5: Pale Ale | H5: Pale | I5: Pale | J5: Pale Ale
C6: Maris Otter Ale | D6: Maris Otter | F6: Maris Otter | I6: ESB
B7: Vienna | C7: Vienna | D7: Mild | E7: Vienna | F7: Vienna | G7: Vienna | H7: Ashburne/Vienna
B8: Abbey | C8: Abbey
B9: Munich Type I, Light | C9: Munich Light | E9: Bonlander | J9: Munich
B10: Munich Type II, Dark | C10: Munich | E10: Munich 10L | I10: Munich 10L
B11: Carafoam/Dextrin | D11: Caramalt | E11: Carapils/Dextrin | F11: Caramalt | H11: Carapils | J11: Cara 8/Carapils
B12: Melanoidin | C12: Melanoidin/ Melano | E12: Victory | F12: Amber | H12: Amber | J12: Aromatic/Biscuit
B13: CaraHell | C13: Cara Blond | D13: Carapils | E13: Crystal 10L
B14: CaraBelge | C14: Melano Light | G14: Light Carastan (10-15L)
B15: CaraRed | C15: Cara Ruby | E15: Crystal 20L | J15: Cara 20/CaraVienne
B16: CaraAmber | C16: Aroma | E16: Victory | I16: Munich 30 | J16: Biscuit
E17: Crystal 30L | F17: Pale Crystal | G17: Carastan
B18: CaraMunich I | C18: Cara Gold | E18: Crystal 40L | F18: Crystal Malt (40 - 50) | J18: Cara 45
B19: CaraMunich II | C19: Cara Gold | D19: Medium Crystal
B20: CaraMunich III | C20: Café Light | E20: Crystal 60L | F20: Crystal Malt II (60 - 70)
B21: CaraBohemian | E21: Crystal 80L | F21: Dark Crystal (85 - 95) | G21: Crystal
E22: Crystal 90L
B23: CaraAroma | C23: Café | D23: Dark Crystal | E23: Crystal 120L | F23: Dark Crystal II (118 - 124) | G23: Dark Crystal
E24: Special Roast | F24: Brown Malt | G24: Brown Malt
E25: Extra Special Roast | J25: Special B
B26: Carafa I, dehusked | C26: Chocolate | F26: Pale Chocolate
B27: Carafa II, dehusked | C27: Black | D27: Chocolate | E27: Chocolate | F27: Chocolate | G27: Chocolate | H27: Chocolate | J27: Chocolate
B28: Carafa III, dehusked | C28: Black | D28: Black Patent | E28: Black Patent | F28: Black Malt | G28: Black Malt | H28: Black | I28: De-Bittered Black
B29: Roasted Barley | C29: Roasted Barley | D29: Roasted Barley | E29: Roasted Barley | F29: Roasted Barley | G29: Roasted Barley
B30: Chocolate Wheat | F30: Roasted Wheat | J30: Roasted Wheat
B31: Pale Wheat, Light | C31: Wheat | D31: Wheat | E31: Wheat | F31: Wheat | H31: Wheat | J31: Pale Wheat
B32: Dark Wheat | C32: Munich Wheat
B33: Caramel Wheat | F33: Crystal Wheat
B34: Chocolate Rye
B35: Rye Malt | E35: Rye Malt | F35: Rye Malt
B36: Caramel Rye
I37: Honey
B38: Acidulated Malt | C38: Acid
B39: Smoked Malt, Beechwood | C39: Smoked | F39: Peated Malt (Peat Smoked)

Sheet Humle
A1: Humletyper | B1: Blomst / Pellet | C1: Alfa Range % | D1: IBU Avg. | F1: Beta Range % | G1: Co-humulione % | H1: Usage | I1: Brewing usage | J1: Used in | K1: Aroma | L1: Substitutes | N1: Glenn Tinseth's website | Q1: Decimal Alpha Acid Utilization vs. Boil Time and Wort Original Gravity
D2: Blomst | E2: Pellet | H2: B/A | AA2: Blomst/Pellet
A3: Admiral | B3: P | C3: 13,0 - 16,0 | E3: 14.2 | F3: 4,0 - 6,0 | G3: 37 - 45 | H3: B | I3: High alpha bittering hops. From Horticulture Research International,Wye College, Kent, England. It is a descendant of Northdown and Challenger | J3: ESB, IPAs, Ales and Bitter | K3: Discrete pine and fresh herbal character mixed with delicate citrus.
A4: Amarillo | B4: P | C4: 8,0 - 11,0 | E4: 8.8 | F4: 6,0 - 7,0 | G4: 21 - 24 | H4: BA | I4: Unknown origin, but character similar to Cascade. Used for both bitterness and aroma | J4: IPAs, Ales | K4: Floral, tropical, and citrus (lemon, orange and grapefruit) | L4: Cascade, Centennial, Simcoe | N4: Boil Time (min) | O4: Original Gravity | AA4: Blomst
A5: Bramling X | B5: P | C5: 5,0 - 7,8 | E5: 4 | F5: 2,3 - 3,5 | G5: 34 | H5: A | I5: Developed in 1927 from commercial Goldings and wild hop variety. | J5: ESB, Bitters, Pale Ale | K5: Mild, fruity, currant aroma. | L5: East Kent Goldings, Progress, Whitbred | O5: 1.03 | P5: 1.04 | Q5: 1.05 | R5: 1.06 | S5: 1.07 | T5: 1.08 | U5: 1.09 | V5: 1.1 | W5: 1.11 | X5: 1.12 | Y5: 1.13 | AA5: Pellet
A6: Brewer's Gold | B6: B | C6: 5,5 - 10,0 | D6: 5.8 | E6: 6.3 | F6: 3,5 - 4,5 | G6: 37 - 40 | H6: B | I6: Traditional bittering hop. An English variety and sibling of Bullion | J6: English ales and heavy German lagers. | K6: Spicy, fruity characteristics, black currant | L6: Northern Brewer, Galena, Chinook, Eroica, Nugget
A7: Calypso | B7: P | C7: 12,0 - 14,0 | E7: 15.5 | F7: 5,0 - 6,0 | G7: 40 - 42 | H7: BA | I7: Calypso is a Yakima Valley bred, dual-purpose diploid hop with Hopsteiner lineage on both sides. It is marvelously complex with an almost understated earthy, tea-like note. | J7: American ales and lagers | K7: Despite its aroma-focused origins, it boasts a high alpha acid percentage. Calypso features crisp, fruity aromas and flavors that exhibit elements of apple, pear and stone fruit brightened with hints of lime citrus. | L7: Cascade, Belma
A8: Cascade | B8: B / P | C8: 4,5 - 7,0 | D8: 6.4 | E8: 6.9 | F8: 4,5 - 7,0 | G8: 33 - 40 | H8: BA | I8: A hop with Northern Brewers Heritage | J8: American ales and lagers | K8: Strong spicy, floral, grapefruit character | L8: Centennial | N8: 0 | O8: 0 | P8: 0 | Q8: 0 | R8: 0 | S8: 0 | T8: 0 | U8: 0 | V8: 0 | W8: 0 | X8: 0 | Y8: 0
A9: Centennial | B9: P | C9: 9,5 - 11,5 | E9: 9.4 | F9: 3,5 - 4,5 | G9: 28 - 30 | H9: BA | I9: General purpose bittering, aroma. Derived from 3/4 Brewer's Gold and contributions of Fuggle, East Kent Golding and others | J9: American ales and Wheats | K9: Floral, citrus aroma, spicy, clean bittering flavor | L9: Cascade, Chinook, Columbus, Galena, Eroica, Nugget, Bullion | N9: 3 | O9: 0.034 | P9: 0.031 | Q9: 0.029 | R9: 0.026 | S9: 0.024 | T9: 0.022 | U9: 0.02 | V9: 0.018 | W9: 0.017 | X9: 0.015 | Y9: 0.014
A10: Challenger | B10: P | C10: 6,5 - 9,0 | E10: 6 | F10: 3,2 - 4,2 | G10: 20 - 25 | N10: 6 | O10: 0.065 | P10: 0.059 | Q10: 0.054 | R10: 0.049 | S10: 0.045 | T10: 0.041 | U10: 0.038 | V10: 0.035 | W10: 0.032 | X10: 0.029 | Y10: 0.026
A11: Chinook | B11: B / P | C11: 12,0 - 14,0 | D11: 11.3 | E11: 12.8 | F11: 3,0 - 4,0 | G11: 29 - 34 | H11: Ba | I11: Strong versatile bittering hop, but also acceptable aroma | J11: Ales, porters, stouts | K11: Heavy and spicy aroma. Distinct, medium intensity spice and pine characteristics with subtle notes of grapefruit | L11: Columbus, Northern Brewer, Galena, Eroica, Nugget, Bullion | N11: 9 | O11: 0.092 | P11: 0.084 | Q11: 0.077 | R11: 0.07 | S11: 0.064 | T11: 0.059 | U11: 0.054 | V11: 0.049 | W11: 0.045 | X11: 0.041 | Y11: 0.037
A12: Citra | B12: P | C12: 9,0 - 13,0 | E12: 12.2 | F12: 3,5 - 4,5 | G12: 22 - 24 | H12: A | I12: Special aroma hops. Comprised of Hallertau Mittelfrüh, US Tettnang, Brewer's Gold and East Kent Golding. Released in 2007 | J12: IPAs, strong American and Belgian Ales | K12: Strong citrus and tropical tones of grapefruit, melon, lime, gooseberry, passion fruit and lychee | L12: Fuggles, Willamette, Goldings | N12: 12 | O12: 0.116 | P12: 0.106 | Q12: 0.097 | R12: 0.088 | S12: 0.081 | T12: 0.074 | U12: 0.068 | V12: 0.062 | W12: 0.056 | X12: 0.052 | Y12: 0.047
A13: Columbus | B13: P | C13: 14,0 - 16,0 | E13: 15 | F13: 4,0 - 5,0 | G13: 30 - 35 | H13: B | I13: High alpha bittering hops. Engineered Centennial Substitute, a descendant of Nugget | J13: Pale Ale | K13: Pungent, black pepper, licorice characteristics with subtle citrus overtones | L13: Chinook, Northern Brewer, Nugget, Galena U.K. Target | N13: 15 | O13: 0.137 | P13: 0.125 | Q13: 0.114 | R13: 0.105 | S13: 0.096 | T13: 0.087 | U13: 0.08 | V13: 0.073 | W13: 0.067 | X13: 0.061 | Y13: 0.056
A14: Crystal | B14: P | C14: 3,5 - 5,5 | E14: 3.7 | F14: 4,5 - 6,7 | G14: 20 - 26 | H14: A | I14: Aroma and finishing hops | J14: IPAs and Lagers | K14: Clean, mild, floral, pleasant and slightly spicy | L14: Hallertauer, Mount Hood, Hersbrucker | N14: 18 | O14: 0.156 | P14: 0.142 | Q14: 0.13 | R14: 0.119 | S14: 0.109 | T14: 0.099 | U14: 0.091 | V14: 0.083 | W14: 0.076 | X14: 0.069 | Y14: 0.063
A15: East Kent Golding | B15: B / P | C15: 4,0 - 6,0 | D15: 5.93 | E15: 5.2 | F15: 1,9 - 3,0 | G15: 25 - 30 | H15: BA | I15: UK origin. The Goldings are the traditional Old English hop. Used for bittering, aroma nd dry hopping. | J15: English style Ales, Belgian-Style Ales, Stouts, Porters, most Lagers. | K15: Gentle, fragrant, and pleasant. | L15: Goldings, Sovereign, Progress | N15: 21 | O15: 0.173 | P15: 0.158 | Q15: 0.144 | R15: 0.132 | S15: 0.12 | T15: 0.11 | U15: 0.101 | V15: 0.092 | W15: 0.084 | X15: 0.077 | Y15: 0.07
A16: Equinox | C16: 14,4 - 15,6 | F16: 4,6 - 5,1 | G16: 31,7 - 38,0 | H16: Ab | I16: Pronounced aroma and notably high oil content | J16: All beers | K16: Citrus, Fruity. Noted for an indescribably unique berry-and-fresh-pepper character | N16: 24 | O16: 0.187 | P16: 0.171 | Q16: 0.157 | R16: 0.143 | S16: 0.131 | T16: 0.12 | U16: 0.109 | V16: 0.1 | W16: 0.091 | X16: 0.083 | Y16: 0.076
A17: First Gold | B17: P | C17: 5,6 - 9,3 | E17: 7.5 | F17: 2,3 - 4,1 | G17: 32 - 34 | H17: BA | I17: The variety is very suitable both as a general kettle hop and also for late and dry hopping in all types of beer | J17: All beers | K17: Produces a well-balanced bitterness and a fruity, slightly spicy note in ales. An orangey quality has been observed in many beers brewed using this variety. | L17: Boadicea, Northdown, Challenger | N17: 27 | O17: 0.201 | P17: 0.183 | Q17: 0.168 | R17: 0.153 | S17: 0.14 | T17: 0.128 | U17: 0.117 | V17: 0.107 | W17: 0.098 | X17: 0.089 | Y17: 0.082
A18: Fuggles | B18: B / P | C18: 3,5 - 6,5 | D18: 6.4 | E18: 4.6 | F18: 2,0 - 4,0 | G18: 27 - 33 | H18: BA | I18: General purpose bittering/aroma. Selected in 1861 by Richard Fuggle | J18: English Ales, Dark Lagers | K18: Mild wood, soft, grassy, floral aroma | L18: East Kent Goldings, Williamette | N18: 30 | O18: 0.212 | P18: 0.194 | Q18: 0.177 | R18: 0.162 | S18: 0.148 | T18: 0.135 | U18: 0.124 | V18: 0.113 | W18: 0.103 | X18: 0.094 | Y18: 0.086
A19: Galena | B19: P | C19: 12,0 - 14,0 | E19: 15.2 | F19: 7,0 - 9,0 | G19: 37 - 42 | H19: B | I19: General bittering hops. Strong, clean, balanced bittering. | J19: All beers | K19: Spicy, blackcurrant and citrus (grapefruit) tones | L19: Brewer's Gold, Eroica, Northern Brewer, Nugget, Columbus, Chinook | N19: 33 | O19: 0.223 | P19: 0.203 | Q19: 0.186 | R19: 0.17 | S19: 0.155 | T19: 0.142 | U19: 0.13 | V19: 0.119 | W19: 0.108 | X19: 0.099 | Y19: 0.091
A20: Goldings | C20: 4,0 - 6,0 | F20: 2,0 - 3,0 | G20: 20 - 25 | H20: BA | I20: Bittering, aroma and finishing. East Kent Golding | J20: British ales, bitters, porters and stouts. | K20: Mild and delicate with sweet floral characteristics | L20: East Kent Goldings, Fuggles, Willamette, Styrian Golding | N20: 36 | O20: 0.232 | P20: 0.212 | Q20: 0.194 | R20: 0.177 | S20: 0.162 | T20: 0.148 | U20: 0.135 | V20: 0.124 | W20: 0.113 | X20: 0.103 | Y20: 0.094
A21: Hallertau Hersbrucker | B21: P | C21: 2,0 - 5,0 | E21: 3 | F21: 2,5 - 6,0 | G21: 18 - 25 | H21: A | I21: Very good aroma hop | J21: Lager, Pilsner, Bock, Weizen Bock, Wheat, Belgian-Style Ales, Kölsch, Munich Helles | K21: A mild aroma and a low co-humulone content | L21: Strisselspalt, Hallertauter Mittelfruh | N21: 39 | O21: 0.24 | P21: 0.219 | Q21: 0.2 | R21: 0.183 | S21: 0.167 | T21: 0.153 | U21: 0.14 | V21: 0.128 | W21: 0.117 | X21: 0.107 | Y21: 0.098
A22: Hallertau Mittelfrüh | B22: B / P | C22: 3,0 - 5,5 | D22: 5.2 | E22: 1.5 | F22: 3,0 - 5,0 | G22: 18 - 28 | H22: A | I22: Mittelfrüh has a traditional European aroma and is one of the Noble Hops | J22: German Pilsner, German Style Lagers | K22: A pleasant herbal, grassy and floral aroma | L22: Hersbrucker | N22: 42 | O22: 0.247 | P22: 0.226 | Q22: 0.206 | R22: 0.189 | S22: 0.172 | T22: 0.158 | U22: 0.144 | V22: 0.132 | W22: 0.12 | X22: 0.11 | Y22: 0.101
A23: Magnum | B23: B / P | C23: 11,0 - 16,0 | D23: 12.8 | E23: 14.3 | F23: 5,0 - 7,0 | G23: 21 - 29 | H23: B | I23: Bittering, no distinct aroma | J23: Ales and Lagers | K23: No distinct aroma | L23: Columbus, Horizon, Nugget, German Magnum | N23: 45 | O23: 0.253 | P23: 0.232 | Q23: 0.212 | R23: 0.194 | S23: 0.177 | T23: 0.162 | U23: 0.148 | V23: 0.135 | W23: 0.123 | X23: 0.113 | Y23: 0.103
A24: Mandarina Bavaria | B24: P | C24: 7,0 - 10,0 | E24: 7.6 | F24: 5,0 - 6,5 | G24: 31 - 35 | N24: 48 | O24: 0.259 | P24: 0.237 | Q24: 0.216 | R24: 0.198 | S24: 0.181 | T24: 0.165 | U24: 0.151 | V24: 0.138 | W24: 0.126 | X24: 0.115 | Y24: 0.105
A25: Mosaic | B25: P | C25: 11,5 - 13,5 | E25: 11.7 | F25: 3,2 - 3,9 | G25: 24 - 26 | H25: A | I25: An excellent aroma variety. Daughter of Simcoe | J25: IPAs | K25: A complex array of tropical fruit, citrus, berry, herbal, earthy and pine characteristics | N25: 51 | O25: 0.264 | P25: 0.241 | Q25: 0.221 | R25: 0.202 | S25: 0.184 | T25: 0.169 | U25: 0.154 | V25: 0.141 | W25: 0.129 | X25: 0.118 | Y25: 0.108
A26: Mount Hood | B26: P | C26: 4,0 - 8,0 | E26: 5.2 | F26: 5,0 - 7,5 | G26: 22 - 27
A27: Northern Brewer | B27: B / P | C27: 7,0 - 10,0 | D27: 9.9 | E27: 9.9 | F27: 3,5 - 5,0 | G27: 27 - 33 | H27: BA | I27: A true dual purpose hop variety | J27: Ales | K27: Medium intensity, pine and mint characteristics | L27: Chinook, US Northern Brewer, Galena | N27: 54 | O27: 0.269 | P27: 0.246 | Q27: 0.224 | R27: 0.205 | S27: 0.188 | T27: 0.171 | U27: 0.157 | V27: 0.143 | W27: 0.131 | X27: 0.12 | Y27: 0.109
A28: Nugget | B28: P | C28: 12,0 - 14,5 | E28: 13.2 | F28: 4,0 - 6,0 | G28: 22 - 26 | H28: Ba | I28: Bittering, but gaining acceptance as a dual purpose variety | J28: Barley Wine | K28: Mild and pleasant with spicy, herbal tones | L28: Columbus, Galena, Magnum | N28: 57 | O28: 0.273 | P28: 0.249 | Q28: 0.228 | R28: 0.208 | S28: 0.19 | T28: 0.174 | U28: 0.159 | V28: 0.145 | W28: 0.133 | X28: 0.121 | Y28: 0.111
A29: Perle | B29: B / P | C29: 6,0 - 10,0 | D29: 9.1 | E29: 4 | F29: 2,5 - 5,0 | G29: 28 - 32 | H29: BA | I29: Bred from English Northern Brewer. Often used as a dual purpose hop in a variety of applications | J29: Stout | K29: Slightly spicy with herbal and floral characteristics | L29: Northern Brewer, German Northern Brewer, German Perle | N29: 60 | O29: 0.276 | P29: 0.252 | Q29: 0.231 | R29: 0.211 | S29: 0.193 | T29: 0.176 | U29: 0.161 | V29: 0.147 | W29: 0.135 | X29: 0.123 | Y29: 0.112
A30: Saaz | B30: B / P | C30: 3,0 - 4,5 | D30: 2.2 | E30: 3.5 | F30: 3,0 - 4,5 | G30: 24 - 28 | H30: A | I30: The classic "noble" aroma hop with long and strong traditions, associated with the renowned pilsner lager | J30: Lagers | K30: Very mild, with pleasant earthy, herbal and floral overtones | L30: US Saaz, Sterling, Polish Lublin | N30: 70 | O30: 0.285 | P30: 0.261 | Q30: 0.238 | R30: 0.218 | S30: 0.199 | T30: 0.182 | U30: 0.166 | V30: 0.152 | W30: 0.139 | X30: 0.127 | Y30: 0.116
A31: Simcoe | B31: P | C31: 12,0 - 14,0 | E31: 12.6 | F31: 4,0 - 5,0 | G31: 15 - 20 | H31: BA | I31: Known as a bittering hop with a good aroma. Dual Purpose | J31: IPAs | K31: Unique passionfruit, pine, earth and citrus characteristics | L31: Magnum, Summit | N31: 80 | O31: 0.291 | P31: 0.266 | Q31: 0.243 | R31: 0.222 | S31: 0.203 | T31: 0.186 | U31: 0.17 | V31: 0.155 | W31: 0.142 | X31: 0.13 | Y31: 0.119
A32: Sorachi Ace | C32: 11,5 - 14,5 | F32: 6,0 - 7,5 | G32: 25 - 28 | N32: 90 | O32: 0.295 | P32: 0.27 | Q32: 0.247 | R32: 0.226 | S32: 0.206 | T32: 0.188 | U32: 0.172 | V32: 0.157 | W32: 0.144 | X32: 0.132 | Y32: 0.12
A33: Styrian Golding | B33: B / P | C33: 2,8 - 5,5 | D33: 3.2 | E33: 3.5 | F33: 2,0 - 3,0 | G33: 25 - 30 | H33: A | I33: A world-renowned aroma hop with widespread usage in both ale and lager brewing | J33: Belgian-style Ales | K33: Very mild, noble hop flavor | L33: Fuggle, Styrian Bobek | N33: 120 | O33: 0.301 | P33: 0.275 | Q33: 0.252 | R33: 0.23 | S33: 0.21 | T33: 0.192 | U33: 0.176 | V33: 0.161 | W33: 0.147 | X33: 0.134 | Y33: 0.123
A34: Summit | B34: P | C34: 15,0 - 17,0 | E34: 15.6 | F34: 5,0 - 6,5 | G34: 29 - 32 | H34: Ba | I34: Mainly used as a bittering hop, but does have earthy aromatic characteristics and subtle hints of citrus. | J34: American ales and lagers | K34: Specific aroma descriptors include pepper, incense, anise, orange, pink grapefruit and tangerine.
A35: Target | B35: B / P | C35: 8,5 - 13,5 | D35: 7.8 | E35: 9.2 | F35: 4,0 - 5,7 | G35: 37 | H35: B | I35: An excellent bittering hop that tends to be too harsh for aroma purposes late in the boil | J35: Ale | K35: An intense English hop aroma with distinct spicy, floral, sage and citrus characteristics | L35: Fuggle, Willamette
A36: Tettnanger | B36: B / P | C36: 3,0 - 6,0 | D36: 4.8 | E36: 3.5 | F36: 3,0 - 5,0 | G36: 22 - 29 | H36: A | I36: Traditional noble aroma hop | J36: Belgian-style Ales | K36: Mild and pleasant with balanced earthy, herbal and floral aroma impressions | L36: Saaz, Hersbrucker, Spalt, Select | N36: To calculate IBUs, the formula is simple: | U36: IBUs = decimal alpha acid utilization * mg/l of added alpha acids
A37: Tradition | B37: P | C37: 5,0 - 7,0 | E37: 5.5 | F37: 4,0 - 5,0 | G37: 26 - 29 | H37: A | I37: Aroma Hop. Imparts beer with a harmonic bitterness | J37: Bock | K37: Medium intense floral and herbal (grassy) tones | L37: Liberty, Hallertau Mittelfrüh
A38: Willamette | B38: P | C38: 4,0 - 6,0 | E38: 4.5 | F38: 3,0 - 4,5 | G38: 30 - 35 | H38: A | I38: A quality aroma hop with low alpha content. Triploid seedling of the English Fuggle variety | J38: English-style Ale | K38: Mild and pleasant, with slightly spicy and floral tones | L38: Fuggle, Glacier, Tettnanger, Styrian Golding | N38: To calculate the concentration of alpha acids you add to the wort: | U38: (mg/l of added alpha acids = decimal AA rating * grams hops * 1000) / volume of finished beer in liters
A42: https://ychhops.com/varieties
A44: Humlesorter i Blomster | B44: =COUNTIF(B3:B38,"*B*") -> 13
A45: Humlesorter i Pellets | B45: =COUNTIF(B3:B38,"*P*") -> 32

Sheet Humle X-ref.
A1: HUMLE | B1: Forslag fra 'hjemmebryg.things-4-you' | C1: Forslag fra Humle arket (samlet fra forskellige sites)
A2: Admiral | B2: Rakau, Pilgrim | C2: =IFERROR(IF(VLOOKUP(A2,Humle!$A$4:$L$38,12,FALSE)=0,"",VLOOKUP(A2,Humle!$A$4:$L$38,12,FALSE)),"") -> 
A3: Ahtanum | B3: Amarillo, Cascade, Centennial | C3: =IFERROR(IF(VLOOKUP(A3,Humle!$A$4:$L$38,12,FALSE)=0,"",VLOOKUP(A3,Humle!$A$4:$L$38,12,FALSE)),"") -> 
A4: Amarillo | B4: Ahtanum, Cascade, Centennial | C4: =IFERROR(IF(VLOOKUP(A4,Humle!$A$4:$L$38,12,FALSE)=0,"",VLOOKUP(A4,Humle!$A$4:$L$38,12,FALSE)),"") -> Cascade, Centennial, Simcoe
A5: Aramis | B5: Challenger, Ahtanum | C5: =IFERROR(IF(VLOOKUP(A5,Humle!$A$4:$L$38,12,FALSE)=0,"",VLOOKUP(A5,Humle!$A$4:$L$38,12,FALSE)),"") -> 
A6: Boadicea | B6: Challenger, Sovereign, Golding | C6: =IFERROR(IF(VLOOKUP(A6,Humle!$A$4:$L$38,12,FALSE)=0,"",VLOOKUP(A6,Humle!$A$4:$L$38,12,FALSE)),"") -> 
A7: Bobek | B7: Cascade | C7: =IFERROR(IF(VLOOKUP(A7,Humle!$A$4:$L$38,12,FALSE)=0,"",VLOOKUP(A7,Humle!$A$4:$L$38,12,FALSE)),"") -> 
A8: Bouclier | B8: Tetnanger, Spalt Select, Tradition | C8: =IFERROR(IF(VLOOKUP(A8,Humle!$A$4:$L$38,12,FALSE)=0,"",VLOOKUP(A8,Humle!$A$4:$L$38,12,FALSE)),"") -> 
A9: Bramling Cross | B9: Willamette | C9: =IFERROR(IF(VLOOKUP(A9,Humle!$A$4:$L$38,12,FALSE)=0,"",VLOOKUP(A9,Humle!$A$4:$L$38,12,FALSE)),"") -> 
A10: Bravo | B10: Nugget, Simcoe | C10: =IFERROR(IF(VLOOKUP(A10,Humle!$A$4:$L$38,12,FALSE)=0,"",VLOOKUP(A10,Humle!$A$4:$L$38,12,FALSE)),"") -> 
A11: Brewers Gold | B11: Northern Brewer, North Down, Pioneer | C11: =IFERROR(IF(VLOOKUP(A11,Humle!$A$4:$L$38,12,FALSE)=0,"",VLOOKUP(A11,Humle!$A$4:$L$38,12,FALSE)),"") -> 
A12: Bullion | B12: Northern Brewer, Brewers Gold, Columbus, Tomahawk | C12: =IFERROR(IF(VLOOKUP(A12,Humle!$A$4:$L$38,12,FALSE)=0,"",VLOOKUP(A12,Humle!$A$4:$L$38,12,FALSE)),"") -> 
A13: Calypso | B13: Cascade, Belma | C13: =IFERROR(IF(VLOOKUP(A13,Humle!$A$4:$L$38,12,FALSE)=0,"",VLOOKUP(A13,Humle!$A$4:$L$38,12,FALSE)),"") -> Cascade, Belma
A14: Cascade | B14: Palisade, Ahtanum, Amarillo, Centennial | C14: =IFERROR(IF(VLOOKUP(A14,Humle!$A$4:$L$38,12,FALSE)=0,"",VLOOKUP(A14,Humle!$A$4:$L$38,12,FALSE)),"") -> Centennial
A15: Centennial | B15: Cascade, Chinook, Columbus, Tomahawk | C15: =IFERROR(IF(VLOOKUP(A15,Humle!$A$4:$L$38,12,FALSE)=0,"",VLOOKUP(A15,Humle!$A$4:$L$38,12,FALSE)),"") -> Cascade, Chinook, Columbus, Galena, Eroica, Nugget, Bullion
A16: Challenger | B16: Northern Brewer, First Gold, Northdown | C16: =IFERROR(IF(VLOOKUP(A16,Humle!$A$4:$L$38,12,FALSE)=0,"",VLOOKUP(A16,Humle!$A$4:$L$38,12,FALSE)),"") -> 
A17: Chinook | B17: Columbus, Tomahawk, Nugget, Simcoe | C17: =IFERROR(IF(VLOOKUP(A17,Humle!$A$4:$L$38,12,FALSE)=0,"",VLOOKUP(A17,Humle!$A$4:$L$38,12,FALSE)),"") -> Columbus, Northern Brewer, Galena, Eroica, Nugget, Bullion
A18: Citra | B18: Fuggle, Willamette, Goldings | C18: =IFERROR(IF(VLOOKUP(A18,Humle!$A$4:$L$38,12,FALSE)=0,"",VLOOKUP(A18,Humle!$A$4:$L$38,12,FALSE)),"") -> Fuggles, Willamette, Goldings
A19: Cluster | B19: Willamette, Galena | C19: =IFERROR(IF(VLOOKUP(A19,Humle!$A$4:$L$38,12,FALSE)=0,"",VLOOKUP(A19,Humle!$A$4:$L$38,12,FALSE)),"") -> 
A20: Columbus | B20: Tomahawk, Nugget, Simcoe, Chinook | C20: =IFERROR(IF(VLOOKUP(A20,Humle!$A$4:$L$38,12,FALSE)=0,"",VLOOKUP(A20,Humle!$A$4:$L$38,12,FALSE)),"") -> Chinook, Northern Brewer, Nugget, Galena U.K. Target
A21: Crystal | B21: Liberty, Mount Hood | C21: =IFERROR(IF(VLOOKUP(A21,Humle!$A$4:$L$38,12,FALSE)=0,"",VLOOKUP(A21,Humle!$A$4:$L$38,12,FALSE)),"") -> Hallertauer, Mount Hood, Hersbrucker
A22: Delta | B22: Fuggle, Willamette | C22: =IFERROR(IF(VLOOKUP(A22,Humle!$A$4:$L$38,12,FALSE)=0,"",VLOOKUP(A22,Humle!$A$4:$L$38,12,FALSE)),"") -> 
A23: East Kent Gold | B23: Progress, Sovereign, Golding | C23: =IFERROR(IF(VLOOKUP(A23,Humle!$A$4:$L$38,12,FALSE)=0,"",VLOOKUP(A23,Humle!$A$4:$L$38,12,FALSE)),"") -> 
A24: Endeavour | B24: Northern Brewer | C24: =IFERROR(IF(VLOOKUP(A24,Humle!$A$4:$L$38,12,FALSE)=0,"",VLOOKUP(A24,Humle!$A$4:$L$38,12,FALSE)),"") -> 
A25: First Gold | B25: Challenger, Northern Brewer, Northdown, Boadicea | C25: =IFERROR(IF(VLOOKUP(A25,Humle!$A$4:$L$38,12,FALSE)=0,"",VLOOKUP(A25,Humle!$A$4:$L$38,12,FALSE)),"") -> Boadicea, Northdown, Challenger
A26: Fuggle | B26: Styrian Golding, Willamette, Progress, Sovereign, Golding | C26: =IFERROR(IF(VLOOKUP(A26,Humle!$A$4:$L$38,12,FALSE)=0,"",VLOOKUP(A26,Humle!$A$4:$L$38,12,FALSE)),"") -> 
A27: Galaxy | B27: Cascade, Amarillo, Citra | C27: =IFERROR(IF(VLOOKUP(A27,Humle!$A$4:$L$38,12,FALSE)=0,"",VLOOKUP(A27,Humle!$A$4:$L$38,12,FALSE)),"") -> 
A28: Galena | B28: Nugget, Target | C28: =IFERROR(IF(VLOOKUP(A28,Humle!$A$4:$L$38,12,FALSE)=0,"",VLOOKUP(A28,Humle!$A$4:$L$38,12,FALSE)),"") -> Brewer's Gold, Eroica, Northern Brewer, Nugget, Columbus, Chinook
A29: Golding | B29: East Kent Golding, Progress | C29: =IFERROR(IF(VLOOKUP(A29,Humle!$A$4:$L$38,12,FALSE)=0,"",VLOOKUP(A29,Humle!$A$4:$L$38,12,FALSE)),"") -> 
A30: Green Bullet | B30: Centennial | C30: =IFERROR(IF(VLOOKUP(A30,Humle!$A$4:$L$38,12,FALSE)=0,"",VLOOKUP(A30,Humle!$A$4:$L$38,12,FALSE)),"") -> 
A31: Hallertauer Mittlefrüh | B31: Hersbrucker | C31: =IFERROR(IF(VLOOKUP(A31,Humle!$A$4:$L$38,12,FALSE)=0,"",VLOOKUP(A31,Humle!$A$4:$L$38,12,FALSE)),"") -> 
A32: Hersbrucker | B32: Strisselspalt, Hallertauer Mittlefrüh | C32: =IFERROR(IF(VLOOKUP(A32,Humle!$A$4:$L$38,12,FALSE)=0,"",VLOOKUP(A32,Humle!$A$4:$L$38,12,FALSE)),"") -> 
A33: Horizon | B33: Magnum | C33: =IFERROR(IF(VLOOKUP(A33,Humle!$A$4:$L$38,12,FALSE)=0,"",VLOOKUP(A33,Humle!$A$4:$L$38,12,FALSE)),"") -> 
A34: Junga | B34: Nugget, Target, Galena | C34: =IFERROR(IF(VLOOKUP(A34,Humle!$A$4:$L$38,12,FALSE)=0,"",VLOOKUP(A34,Humle!$A$4:$L$38,12,FALSE)),"") -> 
A35: Kazbek | B35: Saaz, Sterling | C35: =IFERROR(IF(VLOOKUP(A35,Humle!$A$4:$L$38,12,FALSE)=0,"",VLOOKUP(A35,Humle!$A$4:$L$38,12,FALSE)),"") -> 
A36: Liberty | B36: Crystal, Mount Hood, Traditional | C36: =IFERROR(IF(VLOOKUP(A36,Humle!$A$4:$L$38,12,FALSE)=0,"",VLOOKUP(A36,Humle!$A$4:$L$38,12,FALSE)),"") -> 
A37: Lubelski | B37: Styrian Golding, Saaz | C37: =IFERROR(IF(VLOOKUP(A37,Humle!$A$4:$L$38,12,FALSE)=0,"",VLOOKUP(A37,Humle!$A$4:$L$38,12,FALSE)),"") -> 
A38: Magnum | B38: Nugget, Columbus, Tomahawk, Pilgrim, Target | C38: =IFERROR(IF(VLOOKUP(A38,Humle!$A$4:$L$38,12,FALSE)=0,"",VLOOKUP(A38,Humle!$A$4:$L$38,12,FALSE)),"") -> Columbus, Horizon, Nugget, German Magnum
A39: Marynka | B39: Northern Brewer | C39: =IFERROR(IF(VLOOKUP(A39,Humle!$A$4:$L$38,12,FALSE)=0,"",VLOOKUP(A39,Humle!$A$4:$L$38,12,FALSE)),"") -> 
A40: Millenium | B40: Nugget, Columbus, Tomahawk | C40: =IFERROR(IF(VLOOKUP(A40,Humle!$A$4:$L$38,12,FALSE)=0,"",VLOOKUP(A40,Humle!$A$4:$L$38,12,FALSE)),"") -> 
A41: Mosaic | B41: Nugget, Simcoe | C41: =IFERROR(IF(VLOOKUP(A41,Humle!$A$4:$L$38,12,FALSE)=0,"",VLOOKUP(A41,Humle!$A$4:$L$38,12,FALSE)),"") -> 
A42: Mount Hood | B42: Hersbrucker, Strisselspalt, Crystal | C42: =IFERROR(IF(VLOOKUP(A42,Humle!$A$4:$L$38,12,FALSE)=0,"",VLOOKUP(A42,Humle!$A$4:$L$38,12,FALSE)),"") -> 
A43: Newport | B43: Nugget, Galena, Magnum | C43: =IFERROR(IF(VLOOKUP(A43,Humle!$A$4:$L$38,12,FALSE)=0,"",VLOOKUP(A43,Humle!$A$4:$L$38,12,FALSE)),"") -> 
A44: Northdown | B44: Challenger, Northern Brewer, First Gold | C44: =IFERROR(IF(VLOOKUP(A44,Humle!$A$4:$L$38,12,FALSE)=0,"",VLOOKUP(A44,Humle!$A$4:$L$38,12,FALSE)),"") -> 
A45: Northern Brewer | B45: Northdown, Challenger, Brewers Gold, First Gold, Perle | C45: =IFERROR(IF(VLOOKUP(A45,Humle!$A$4:$L$38,12,FALSE)=0,"",VLOOKUP(A45,Humle!$A$4:$L$38,12,FALSE)),"") -> Chinook, US Northern Brewer, Galena
A46: Nugget | B46: Target, Galena, Magnum, Columbus, Tomahawk, Chinook, Simcoe | C46: =IFERROR(IF(VLOOKUP(A46,Humle!$A$4:$L$38,12,FALSE)=0,"",VLOOKUP(A46,Humle!$A$4:$L$38,12,FALSE)),"") -> Columbus, Galena, Magnum
A47: Pacifica | B47: Hersbrucker, Cluster | C47: =IFERROR(IF(VLOOKUP(A47,Humle!$A$4:$L$38,12,FALSE)=0,"",VLOOKUP(A47,Humle!$A$4:$L$38,12,FALSE)),"") -> 
A48: Palisade | B48: Cascade | C48: =IFERROR(IF(VLOOKUP(A48,Humle!$A$4:$L$38,12,FALSE)=0,"",VLOOKUP(A48,Humle!$A$4:$L$38,12,FALSE)),"") -> 
A49: Perle | B49: North Down, Northern Brewer, First Gold | C49: =IFERROR(IF(VLOOKUP(A49,Humle!$A$4:$L$38,12,FALSE)=0,"",VLOOKUP(A49,Humle!$A$4:$L$38,12,FALSE)),"") -> Northern Brewer, German Northern Brewer, German Perle
A50: Phoenix | B50: Challenger | C50: =IFERROR(IF(VLOOKUP(A50,Humle!$A$4:$L$38,12,FALSE)=0,"",VLOOKUP(A50,Humle!$A$4:$L$38,12,FALSE)),"") -> 
A51: Pilgrim | B51: Admiral, Target | C51: =IFERROR(IF(VLOOKUP(A51,Humle!$A$4:$L$38,12,FALSE)=0,"",VLOOKUP(A51,Humle!$A$4:$L$38,12,FALSE)),"") -> 
A52: Pioneer | B52: Brewers Gold, East Kent Goldings | C52: =IFERROR(IF(VLOOKUP(A52,Humle!$A$4:$L$38,12,FALSE)=0,"",VLOOKUP(A52,Humle!$A$4:$L$38,12,FALSE)),"") -> 
A53: Premiant | B53: Crystal, Mount Hood, Traditional | C53: =IFERROR(IF(VLOOKUP(A53,Humle!$A$4:$L$38,12,FALSE)=0,"",VLOOKUP(A53,Humle!$A$4:$L$38,12,FALSE)),"") -> 
A54: Progress | B54: East Kent Goldings | C54: =IFERROR(IF(VLOOKUP(A54,Humle!$A$4:$L$38,12,FALSE)=0,"",VLOOKUP(A54,Humle!$A$4:$L$38,12,FALSE)),"") -> 
A55: Rakau | B55: Amarillo, Admiral, Summit | C55: =IFERROR(IF(VLOOKUP(A55,Humle!$A$4:$L$38,12,FALSE)=0,"",VLOOKUP(A55,Humle!$A$4:$L$38,12,FALSE)),"") -> 
A56: Riwaka | B56: Saaz, Sterling | C56: =IFERROR(IF(VLOOKUP(A56,Humle!$A$4:$L$38,12,FALSE)=0,"",VLOOKUP(A56,Humle!$A$4:$L$38,12,FALSE)),"") -> 
A57: Santiam | B57: Tettnanger, Spalt Select | C57: =IFERROR(IF(VLOOKUP(A57,Humle!$A$4:$L$38,12,FALSE)=0,"",VLOOKUP(A57,Humle!$A$4:$L$38,12,FALSE)),"") -> 
A58: Savinjski Golding | B58: Tettnanger, Fuggle, Saaz | C58: =IFERROR(IF(VLOOKUP(A58,Humle!$A$4:$L$38,12,FALSE)=0,"",VLOOKUP(A58,Humle!$A$4:$L$38,12,FALSE)),"") -> 
A59: Simcoe | B59: Columbus, Tomahawk, Nugget, Summit, Chinook | C59: =IFERROR(IF(VLOOKUP(A59,Humle!$A$4:$L$38,12,FALSE)=0,"",VLOOKUP(A59,Humle!$A$4:$L$38,12,FALSE)),"") -> Magnum, Summit
A60: Sladek | B60: Crystal, Mount Hood, Traditional | C60: =IFERROR(IF(VLOOKUP(A60,Humle!$A$4:$L$38,12,FALSE)=0,"",VLOOKUP(A60,Humle!$A$4:$L$38,12,FALSE)),"") -> 
A61: Sonnet | B61: Golding | C61: =IFERROR(IF(VLOOKUP(A61,Humle!$A$4:$L$38,12,FALSE)=0,"",VLOOKUP(A61,Humle!$A$4:$L$38,12,FALSE)),"") -> 
A62: Sorachi ACE | B62: Columbus, Tomahawk, Summit, Warrior, Chinook | C62: =IFERROR(IF(VLOOKUP(A62,Humle!$A$4:$L$38,12,FALSE)=0,"",VLOOKUP(A62,Humle!$A$4:$L$38,12,FALSE)),"") -> 
A63: Southern Cross | B63: Northern Brewer, Chinook | C63: =IFERROR(IF(VLOOKUP(A63,Humle!$A$4:$L$38,12,FALSE)=0,"",VLOOKUP(A63,Humle!$A$4:$L$38,12,FALSE)),"") -> 
A64: Sovereign | B64: Golding | C64: =IFERROR(IF(VLOOKUP(A64,Humle!$A$4:$L$38,12,FALSE)=0,"",VLOOKUP(A64,Humle!$A$4:$L$38,12,FALSE)),"") -> 
A65: Spalt Select | B65: Tetnanger, Saaz | C65: =IFERROR(IF(VLOOKUP(A65,Humle!$A$4:$L$38,12,FALSE)=0,"",VLOOKUP(A65,Humle!$A$4:$L$38,12,FALSE)),"") -> 
A66: Sterling | B66: Saaz | C66: =IFERROR(IF(VLOOKUP(A66,Humle!$A$4:$L$38,12,FALSE)=0,"",VLOOKUP(A66,Humle!$A$4:$L$38,12,FALSE)),"") -> 
A67: Sticklebract | B67: Northern Brewer | C67: =IFERROR(IF(VLOOKUP(A67,Humle!$A$4:$L$38,12,FALSE)=0,"",VLOOKUP(A67,Humle!$A$4:$L$38,12,FALSE)),"") -> 
A68: Strisselspalt | B68: Hersbrucker | C68: =IFERROR(IF(VLOOKUP(A68,Humle!$A$4:$L$38,12,FALSE)=0,"",VLOOKUP(A68,Humle!$A$4:$L$38,12,FALSE)),"") -> 
A69: Styrian Golding | B69: Spalt Select, Tradition | C69: =IFERROR(IF(VLOOKUP(A69,Humle!$A$4:$L$38,12,FALSE)=0,"",VLOOKUP(A69,Humle!$A$4:$L$38,12,FALSE)),"") -> Fuggle, Styrian Bobek
A70: Summit | B70: Columbus, Tommahawk, Simcoe, Chinook, Nugget | C70: =IFERROR(IF(VLOOKUP(A70,Humle!$A$4:$L$38,12,FALSE)=0,"",VLOOKUP(A70,Humle!$A$4:$L$38,12,FALSE)),"") -> 
A71: Sussex | B71: Fuggle | C71: =IFERROR(IF(VLOOKUP(A71,Humle!$A$4:$L$38,12,FALSE)=0,"",VLOOKUP(A71,Humle!$A$4:$L$38,12,FALSE)),"") -> 
A72: Sybilla | B72: Nugget, Challenger, Northern Brewer, Progress, Perle | C72: =IFERROR(IF(VLOOKUP(A72,Humle!$A$4:$L$38,12,FALSE)=0,"",VLOOKUP(A72,Humle!$A$4:$L$38,12,FALSE)),"") -> 
A73: Saaz | B73: Tettnanger, Lubelski | C73: =IFERROR(IF(VLOOKUP(A73,Humle!$A$4:$L$38,12,FALSE)=0,"",VLOOKUP(A73,Humle!$A$4:$L$38,12,FALSE)),"") -> US Saaz, Sterling, Polish Lublin
A74: Target | B74: Magnum, Pilgrim | C74: =IFERROR(IF(VLOOKUP(A74,Humle!$A$4:$L$38,12,FALSE)=0,"",VLOOKUP(A74,Humle!$A$4:$L$38,12,FALSE)),"") -> Fuggle, Willamette
A75: Tettnanger | B75: Spalt Select, Saaz | C75: =IFERROR(IF(VLOOKUP(A75,Humle!$A$4:$L$38,12,FALSE)=0,"",VLOOKUP(A75,Humle!$A$4:$L$38,12,FALSE)),"") -> Saaz, Hersbrucker, Spalt, Select
A76: Tomahawk | B76: Columbus, Nugget, Simcoe, Chinook | C76: =IFERROR(IF(VLOOKUP(A76,Humle!$A$4:$L$38,12,FALSE)=0,"",VLOOKUP(A76,Humle!$A$4:$L$38,12,FALSE)),"") -> 
A77: Topaz | B77: Columbus, Tomahawk, Summit | C77: =IFERROR(IF(VLOOKUP(A77,Humle!$A$4:$L$38,12,FALSE)=0,"",VLOOKUP(A77,Humle!$A$4:$L$38,12,FALSE)),"") -> 
A78: Tradition | B78: Hersbrucker | C78: =IFERROR(IF(VLOOKUP(A78,Humle!$A$4:$L$38,12,FALSE)=0,"",VLOOKUP(A78,Humle!$A$4:$L$38,12,FALSE)),"") -> Liberty, Hallertau Mittelfrüh
A79: Vanguard | B79: Hersbrucker, Liberty, Mount Hood | C79: =IFERROR(IF(VLOOKUP(A79,Humle!$A$4:$L$38,12,FALSE)=0,"",VLOOKUP(A79,Humle!$A$4:$L$38,12,FALSE)),"") -> 
A80: Warrior | B80: Nugget, Columbus, Magnum | C80: =IFERROR(IF(VLOOKUP(A80,Humle!$A$4:$L$38,12,FALSE)=0,"",VLOOKUP(A80,Humle!$A$4:$L$38,12,FALSE)),"") -> 
A81: WGV | B81: Challenger, Sovereign, Golding | C81: =IFERROR(IF(VLOOKUP(A81,Humle!$A$4:$L$38,12,FALSE)=0,"",VLOOKUP(A81,Humle!$A$4:$L$38,12,FALSE)),"") -> 
A82: Willamette | B82: Bramling Cross, Fuggle, Progress, Sovereign, golding | C82: =IFERROR(IF(VLOOKUP(A82,Humle!$A$4:$L$38,12,FALSE)=0,"",VLOOKUP(A82,Humle!$A$4:$L$38,12,FALSE)),"") -> Fuggle, Glacier, Tettnanger, Styrian Golding
A83: Åpollo | B83: Columbus, Tomahawk, Magnum | C83: =IFERROR(IF(VLOOKUP(A83,Humle!$A$4:$L$38,12,FALSE)=0,"",VLOOKUP(A83,Humle!$A$4:$L$38,12,FALSE)),"") -> 

Sheet Tilsætninger
A1: Tilsætninger | B1: EBC | C1: EBC Avg. | D1: Udbytte
A2: Sukker | B2: 0 | C2: 0 | D2: 440
A3: Rørsukker | B3: 20 - 30 | C3: 25 | D3: 420
A4: Farin | B4: 50 - 75 | C4: 65 | D4: 420
A5: Muscovado Sukker | B5: 80 - 120 | C5: 100 | D5: 400
A6: Mørk Kandis | B6: 80 - 120 | C6: 80 | D6: 375
A7: Lys Kandis | B7: 0 | C7: 0 | D7: 375
A8: Dansk Honning | B8: 40 | C8: 40 | D8: 375
A9: Appelsinskal | B9: 0 | C9: 0 | D9: 0
A10: Koriander | B10: 0 | C10: 0 | D10: 0
A11: Stjerneanis | B11: 0 | C11: 0 | D11: 0
A12: Kanel | B12: 0 | C12: 0 | D12: 0
A13: Lakrids | B13: 0 | C13: 100 | D13: 0 | E13: Estimat
A14: Lakridsrod | B14: 0 | C14: 0 | D14: 0
A15: Chili Flakes | B15: 0 | C15: 0 | D15: 0
A16: Ege Chips | B16: 0 | C16: 0 | D16: 0
A17: Ekstra lys spraymalt | B17: 8 | C17: 8 | D17: 420 | E17: Estimat
A18: Hvede spraymalt | B18: 8 | C18: 8 | D18: 420 | E18: Estimat
A19: Lys spraymalt | B19: 12 | C19: 12 | D19: 420 | E19: Estimat
A20: Medium spraymalt | B20: 18 | C20: 18 | D20: 420 | E20: Estimat
A21: Mørk spraymalt | B21: 57 | C21: 57 | D21: 420 | E21: Estimat
A22: Vanilie | B22: 0 | C22: 0 | D22: 0
A23: Ekstra mørk spraymalt | B23: 95 | C23: 95 | D23: 420 | E23: Estimat
A24: Klar Urt | B24: 0 | C24: 0 | D24: 0

Sheet Gær
A1: Gær Navn | B1: Beskrivelse | C1: Flocculation | D1: Attenuation % | E1: Attenuation Avg. | F1: Temp. Range °C | G1: Alc. Tolerance % | I1: Temp.(°C) | J1: CO2
I2: 0 | J2: 1.71
A3: - Brewolution Abbey Ale | B3: Den har en fantastisk og kraftig frugtaroma, balanceret perfekt med en mild og let krydret aroma, og komplekse og lækre krydrede phenoler. | C3: Medium - High | D3: 73 - 77 | E3: 75 | F3: 18 - 25 | G3: 8 | I3: 1 | J3: 1.66
A4: Brewolution American Ale | B4: Denne gær giver en usædvanlig ren smag, ideel til at humlekarakteren kommer tydelig frem. Citrus og fyrresmag i humle vil blive fremhævet. | C4: High | D4: 77 - 85 | E4: 81 | F4: 18 - 23 | G4: 10 | I4: 2 | J4: 1.61
A5: Brewolution Belgian Strong Ale | B5: Meget karakterfuld ølgær med krydrede, frugtige og pebrede noter. | C5: Medium | D5: 85 - 90 | E5: 90 | F5: 26 - 32 | G5: 12 | I5: 3 | J5: 1.56
A6: Brewolution British Ale | B6: Gæren har en neutral gæraroma for at sikre, den fulde karakter af malt og humle er fremtrædende i hver øl. | C6: Very High | D6: 77 - 82 | E6: 80 | F6: 16 - 22 | G6: 12 | I6: 4 | J6: 1.51
A7: Brewolution Dark Ale | B7: Fremmer krop og smag. Gæren giver en fyldig mørk frugt variation. | C7: High | D7: 70 - 75 | E7: 73 | F7: 18 - 22 | G7: 8 | I7: 5 | J7: 1.46
A8: Brewolution Universal Lager | B8: Denne gær giver en blød, delikat og velafbalanceret øl, med en tør og ren smag. | C8: High | D8: 72 - 76 | E8: 77 | F8: 10 - 15 | G8: 8 | I8: 6 | J8: 1.39
A9: Brewolution Wheat Beer | B9: Giver fine velafbalancerede estere med krydrede aromaer. Klassiske banan estere | C9: Low | D9: 70 - 75 | E9: 73 | F9: 18 - 30 | G9: 7.5 | I9: 7 | J9: 1.32
A10: - Mangrove Jack's Bohemian Lager M84 | B10: Denne gær giver en blød, delikat og velafbalanceret øl, med en tør og ren smag. | C10: High | D10: 72 - 76 | E10: 77 | F10: 10 - 15 | G10: 8 | I10: 8 | J10: 1.28
A11: Mangrove Jack's Californian Lager M54 | B11: Producer en ren og klar pilsneraroma, uden de frygtede bismage. Gæren er perfekt til de fleste undergærede øltyper. | C11: Medium - High | D11: 77 - 82 | E11: 80 | F11: 18 - 20 | G11: 9 | I11: 9 | J11: 1.24
A12: - Mangrove Jack's Belgian Abbey Ale M47 | B12: Den har en fantastisk og kraftig frugtaroma, balanceret perfekt med en mild og let krydret aroma, og komplekse og lækre krydrede phenoler. | C12: Medium - High | D12: 73 - 77 | E12: 75 | F12: 18 - 25 | G12: 8 | I12: 10 | J12: 1.2
A13: - Mangrove Jack's Bavarian Wheat M20 | B13: Giver fine velafbalancerede estere med krydrede aromaer. Klassiske banan estere | C13: Low | D13: 70 - 75 | E13: 73 | F13: 18 - 30 | G13: 7.5 | I13: 11 | J13: 1.17
A14: Mangrove Jack's Liberty Bell Ale M36 | B14: Ren, neutral og rund I smagen, let pæreagtig aroma, med lidt jordbær eller kiwi blandet i. Rene klare maltaromaer, og med en evne til at fremhæve humlearomaerne | C14: High | D14: 74 - 78 | E14: 76 | F14: 18 - 23 | G14: 9 | I14: 12 | J14: 1.13
A15: - Mangrove Jack´s French Saison M29 | B15: Meget karakterfuld ølgær med krydrede, frugtige og pebrede noter. | C15: Medium | D15: 85 - 90 | E15: 90 | F15: 26 - 32 | G15: 12 | I15: 13 | J15: 1.09
A16: - Mangrove Jack´s New World Strong Ale M42 | B16: Gæren har en neutral gæraroma for at sikre, den fulde karakter af malt og humle er fremtrædende i hver øl. Giver en meget klar øl, da gærrester lægger sig fast i bunden og blander sig ikke ved uro i væsken. | C16: Very High | D16: 77 - 82 | E16: 79 | F16: 16 - 22 | G16: 12 | I16: 14 | J16: 1.05
A17: - Mangrove Jack's Newcastle Dark Ale M03 | B17: Fremmer krop og smag. Gæren giver en fyldig mørk frugt variation. | C17: High | D17: 70 - 75 | E17: 73 | F17: 18 - 22 | G17: 8 | I17: 15 | J17: 1.02
A18: Mangrove Jack's US West Coast M44 (500g) | B18: Denne gær giver en usædvanlig ren smag, ideel til at humlekarakteren kommer tydelig frem. Citrus og fyrresmag i humle vil blive fremhævet. | C18: High | D18: 77 - 85 | E18: 81 | F18: 18 - 23 | G18: 10 | I18: 16 | J18: 0.99
A19: - Mangrove Jack's Workhorse M10 | B19: Neutral og ren aroma, der er velegnet til alle øltyper. Imiterer lagerøl karakteristika. | C19: Medium | D19: High | E19: 75 | F19: 15 - 32 | G19: 8 | I19: 17 | J19: 0.95
A20: Wyeast XL1007 German Ale | C20: Low | D20: 73 - 77 | E20: 75 | F20: 13 - 20 | G20: 11 | I20: 18 | J20: 0.91
A21: Wyeast XL1010 American Wheat | C21: Low | D21: 74 - 78 | E21: 76 | F21: 14 - 23 | G21: 10 | I21: 19 | J21: 0.89
A22: Wyeast XL1028 London Ale | C22: Low - Medium | D22: 73 - 77 | E22: 75 | F22: 15 - 22 | G22: 11 | I22: 20 | J22: 0.88
A23: Wyeast XL1056 American Ale | B23: Well balanced. Ferments dry, finishes soft. | C23: Low - Medium | D23: 73 - 77 | E23: 75 | F23: 15 - 22 | G23: 11 | I23: 21 | J23: 0.85
A24: Wyeast XL1084 Irish Ale | C24: Medium | D24: 71 - 75 | E24: 73 | F24: 16 - 22 | G24: 12 | I24: 22 | J24: 0.83
A25: Wyeast XL1098 British Ale | C25: Medium | D25: 73 - 75 | E25: 74 | F25: 18 - 22 | G25: 10 | I25: 23 | J25: 0.81
A26: Wyeast XL1099 Whitbread Ale | C26: Medium - High | D26: 68 - 72 | E26: 70 | F26: 18 - 24 | G26: 10 | I26: 24 | J26: 0.78
A27: Wyeast XL1187 Ringwood Ale | B27: A malty, complex profile that clears well. | C27: High | D27: 68 - 72 | E27: 70 | F27: 18 - 23 | G27: 10 | I27: 25 | J27: 0.76
A28: Wyeast XL1214 Belgian Abbey | C28: Low - Medium | D28: 74 - 78 | E28: 76 | F28: 20 - 24 | G28: 12 | I28: 26 | J28: 0.74
A29: Wyeast XL1272 American Ale II | B29: Slightly nutty, soft, clean and tart finish. | C29: Medium | D29: 72 - 76 | E29: 74 | F29: 15 - 22 | G29: 10 | I29: 27 | J29: 0.73
A30: Wyeast XL1275 Thames Valley Ale | C30: Low - Medium | D30: 72 - 76 | E30: 74 | F30: 16 - 22 | G30: 10
A31: Wyeast XL1318 London Ale III | C31: High | D31: 71 - 75 | E31: 73 | F31: 18 - 23 | G31: 10
A32: Wyeast XL1332 Northwest Ale | B32: Malty, mildly fruity, good depth and complexity. | C32: High | D32: 67 - 71 | E32: 69 | F32: 18 - 24 | G32: 10
A33: Wyeast XL1335 British Ale II | C33: High | D33: 73 - 76 | E33: 74 | F33: 17 - 24 | G33: 10
A34: Wyeast XL1388 Belgian Strong Ale | C34: Low | D34: 74 - 78 | E34: 76 | F34: 18 - 27 | G34: 13
A35: Wyeast XL1450 Denny's Favorite 50 | B35: Accentuates malt, caramel, or fruit character. | C35: Low | D35: 74 - 76 | E35: 75 | F35: 15 - 21 | G35: 10
A36: Wyeast XL1469 West Yorkshire Ale | C36: High | D36: 67 - 71 | E36: 69 | F36: 18 - 22 | G36: 9
A37: Wyeast XL1728 Scottish Ale | C37: High | D37: 69 - 73 | E37: 71 | F37: 13 - 24 | G37: 12
A38: Wyeast XL1762 Belgian Abbey II | C38: Medium | D38: 73 - 77 | E38: 75 | F38: 18 - 24 | G38: 12
A39: Wyeast XL1968 London ESB Ale | C39: Very High | D39: 67 - 71 | E39: 69 | F39: 18 - 22 | G39: 9
A40: Wyeast XL2000 Budvar Lager | C40: Medium - High | D40: 71 - 75 | E40: 73 | F40: 9 - 13 | G40: 9
A41: Wyeast XL2001 Urquell Lager | C41: Medium - High | D41: 72 - 76 | E41: 74 | F41: 9 - 13 | G41: 9
A42: Wyeast XL2007 Pilsen Lager | C42: Medium | D42: 71 - 75 | E42: 73 | F42: 9 - 13 | G42: 9
A43: Wyeast XL2035 American Lager | C43: Medium | D43: 73 - 77 | E43: 75 | F43: 9 - 14 | G43: 9
A44: Wyeast XL2042 Danish Lager | C44: Low | D44: 73 - 77 | E44: 75 | F44: 8 - 13 | G44: 9
A45: Wyeast XL2112 California Lager | C45: High | D45: 67 - 71 | E45: 69 | F45: 14 - 20 | G45: 9
A46: Wyeast XL2124 Bohemian Lager | C46: Low - Medium | D46: 73 - 77 | E46: 75 | F46: 8 - 22 | G46: 9
A47: Wyeast XL2206 Bavarian Lager | C47: Medium - High | D47: 73 - 77 | E47: 75 | F47: 8 - 14 | G47: 9
A48: Wyeast XL2278 Czech Pils | C48: Medium - High | D48: 70 - 74 | E48: 72 | F48: 10 - 14 | G48: 9
A49: Wyeast XL2308 Munich Lager | C49: Medium | D49: 70 - 74 | E49: 72 | F49: 9 - 13 | G49: 9
A50: Wyeast XL2565 Kölsch | C50: Low | D50: 73 - 77 | E50: 75 | F50: 13 - 21 | G50: 10
A51: Wyeast XL2633 Octoberfest Lager Blend | C51: Low - Medium | D51: 73 - 77 | E51: 75 | F51: 9 - 14 | G51: 9
A52: Wyeast XL3056 Bavarian Wheat Blend | C52: Medium | D52: 73 - 77 | E52: 75 | F52: 18 - 23 | G52: 10
A53: Wyeast XL3068 Weihenstephan Weizen | C53: Low | D53: 73 - 77 | E53: 75 | F53: 18 - 24 | G53: 10
A54: Wyeast XL3278 Belgian Lambic Blend | C54: Variable | D54: 70 - 80 | E54: 75 | F54: 17 - 24 | G54: 11
A55: Wyeast XL3333 German Wheat | C55: High | D55: 70 - 76 | E55: 73 | F55: 17 - 24 | G55: 10
A56: Wyeast XL3463 Forbidden Fruit | C56: Low | D56: 72 - 76 | E56: 74 | F56: 17 - 24 | G56: 12
A57: Wyeast XL3522 Belgian Ardennes | C57: High | D57: 72 - 76 | E57: 74 | F57: 18 - 24 | G57: 12
A58: Wyeast XL3638 Bavarian Wheat | C58: Low | D58: 70 - 76 | E58: 73 | F58: 18 - 24 | G58: 10
A59: Wyeast XL3711 French Saison | C59: Low | D59: 77 - 83 | E59: 80 | F59: 18 - 25 | G59: 12
A60: Wyeast XL3724 Belgian Saison | C60: Low | D60: 76 - 80 | E60: 78 | F60: 21 - 35 | G60: 12
A61: Wyeast XL3763 Roeselare Ale Blend | C61: Variable | D61: 80 | E61: 80 | F61: 18 - 30 | G61: 11
A62: Wyeast XL3787 Trappist High Gravity | C62: Medium | D62: 74 - 78 | E62: 76 | F62: 18 - 25 | G62: 12
A63: Wyeast XL3942 Belgian Wheat | C63: Medium | D63: 72 - 76 | E63: 74 | F63: 18 - 23 | G63: 12
A64: Wyeast XL3944 Belgian Witbier | C64: Medium | D64: 72 - 76 | E64: 74 | F64: 16 - 24 | G64: 12
C67: https://www.wyeastlab.com/hb_yeaststrain.cfm
C69: http://mangrovejacks.com/collections/craft-series-yeasts

Sheet Typer
A1: Ref.: Beer Judge Certification Program | F1: 2015 BJCP Style Guidelines
A2: Style # | C2: Style Name | D2: Style # | F2: OG high | G2: OG low | H2: FG high | I2: FG low | J2: ABV high | K2: ABV low | L2: EBC high | M2: EBC low | N2: IBU high | O2: IBU low | P2: RBR | Q2: CO2 High | R2: CO2 Low | S2: CO2 Avg. | T2: Yeast Type | U2: Brief | W2: Style #
A4: 1 | B4: A | C4: American Light Lager | D4: 1 | E4: A | F4: 1040 | G4: 1028 | H4: 1008 | I4: 0998 | J4: 4,2 | K4: 2,8 | L4: 6 | M4: 4 | N4: 12 | O4: 8 | P4: 0.34 | Q4: 2.73 | R4: 2.57 | S4: =IF(R4="","",(R4+Q4)/2) -> 2.65 | T4: Lager | W4: 1
A5: 1 | B5: B | C5: American Lager | D5: 1 | E5: B | F5: 1050 | G5: 1040 | H5: 1010 | I5: 1004 | J5: 5,3 | K5: 4,2 | L5: 8 | M5: 4 | N5: 18 | O5: 8 | P5: 0.27 | Q5: 2.73 | R5: 2.57 | S5: =IF(R5="","",(R5+Q5)/2) -> 2.65 | T5: Lager | W5: 1
A6: 1 | B6: C | C6: Cream Ale | D6: 1 | E6: C | F6: 1055 | G6: 1042 | H6: 1012 | I6: 1006 | J6: 5,6 | K6: 4,2 | L6: 10 | M6: 5 | N6: 20 | O6: 8 | P6: 0.38 | Q6: 2.7 | R6: 2.6 | S6: 2.65 | T6: Ale | W6: 1
A7: 1 | B7: D | C7: American Wheat Beer | D7: 1 | E7: D | F7: 1055 | G7: 1040 | H7: 1013 | I7: 1008 | J7: 5,5 | K7: 4,0 | L7: 12 | M7: 6 | N7: 30 | O7: 15 | P7: 0.48 | Q7: 2.6 | R7: 2.3 | S7: 2.45 | T7: Ale | W7: 1
A8: 2 | B8: A | C8: International Pale Lager | D8: 2 | E8: A | F8: 1050 | G8: 1042 | H8: 1012 | I8: 1008 | J8: 6,0 | K8: 4,6 | L8: 12 | M8: 4 | N8: 25 | O8: 18 | P8: 0.74 | Q8: 2.5 | R8: 2.3 | S8: 2.4 | T8: Lager | W8: 2
A9: 2 | B9: B | C9: International Amber Lager | D9: 2 | E9: B | F9: 1055 | G9: 1042 | H9: 1014 | I9: 1008 | J9: 6,0 | K9: 4,6 | L9: 8 | M9: 14 | N9: 25 | O9: 8 | P9: 0.74 | Q9: 2.5 | R9: 2.3 | S9: 2.4 | T9: Lager | W9: 2
A10: 2 | B10: C | C10: International Dark Lager | D10: 2 | E10: C | F10: 1056 | G10: 1044 | H10: 1012 | I10: 1008 | J10: 6,0 | K10: 4,2 | L10: 43 | M10: 28 | N10: 20 | O10: 8 | P10: 0.74 | Q10: 2.5 | R10: 2.3 | S10: 2.4 | T10: Lager | W10: 2
A11: 3 | B11: A | C11: Czech Pale Lager | D11: 3 | E11: A | F11: 1044 | G11: 1028 | H11: 1014 | I11: 1008 | J11: 4,1 | K11: 3,0 | L11: 12 | M11: 6 | N11: 35 | O11: 20 | P11: 0.74 | Q11: 2.5 | R11: 2.3 | S11: 2.4 | T11: Lager | W11: 3
A12: 3 | B12: B | C12: Czech Premium Pale Lager | D12: 3 | E12: B | F12: 1060 | G12: 1044 | H12: 1017 | I12: 1013 | J12: 5,8 | K12: 4,2 | L12: 12 | M12: 7 | N12: 45 | O12: 30 | P12: 0.74 | Q12: 2.5 | R12: 2.3 | S12: 2.4 | T12: Lager | W12: 3
A13: 3 | B13: C | C13: Czech Amber Lager | D13: 3 | E13: C | F13: 1060 | G13: 1044 | H13: 1017 | I13: 1013 | J13: 5,8 | K13: 4,4 | L13: 32 | M13: 20 | N13: 35 | O13: 20 | P13: 0.74 | Q13: 2.5 | R13: 2.3 | S13: 2.4 | T13: Lager | W13: 3
A14: 3 | B14: D | C14: Czech Dark Lager | D14: 3 | E14: D | F14: 1060 | G14: 1044 | H14: 1017 | I14: 1013 | J14: 5,8 | K14: 4,4 | L14: 69 | M14: 28 | N14: 34 | O14: 18 | P14: 0.74 | Q14: 2.5 | R14: 2.3 | S14: 2.4 | T14: Lager | W14: 3
A15: 4 | B15: A | C15: Munich Helles | D15: 4 | E15: A | F15: 1048 | G15: 1044 | H15: 1012 | I15: 1006 | J15: 5,4 | K15: 4,7 | L15: 10 | M15: 6 | N15: 22 | O15: 16 | P15: 0.4 | Q15: 2.68 | R15: 2.26 | S15: 2.47 | T15: Lager | W15: 4
A16: 4 | B16: B | C16: Festbier | D16: 4 | E16: B | F16: 1057 | G16: 1054 | H16: 1012 | I16: 1010 | J16: 6,3 | K16: 5,8 | L16: 14 | M16: 8 | N16: 25 | O16: 18 | P16: 0.43 | Q16: 2.73 | R16: 2.57 | S16: 2.65 | T16: Lager | W16: 4
A17: 4 | B17: C | C17: Helles Bock | D17: 4 | E17: C | F17: 1072 | G17: 1064 | H17: 1018 | I17: 1011 | J17: 7,4 | K17: 6,3 | L17: 2 | M17: 12 | N17: 35 | O17: 23 | P17: 0.43 | Q17: 2.73 | R17: 2.16 | S17: 2.445 | T17: Lager | W17: 4
A18: 5 | B18: A | C18: German Leichtbier | D18: 5 | E18: A | F18: 1034 | G18: 1026 | H18: 1010 | I18: 1006 | J18: 3,6 | K18: 2,4 | L18: 10 | M18: 4 | N18: 28 | O18: 15 | P18: 0.34 | Q18: 2.7 | R18: 2.2 | S18: 2.45 | T18: Lager | W18: 5
A19: 5 | B19: B | C19: Kölsch | D19: 5 | E19: B | F19: 1050 | G19: 1044 | H19: 1011 | I19: 1007 | J19: 5,2 | K19: 4,4 | L19: 10 | M19: 7 | N19: 30 | O19: 18 | P19: 0.55 | Q19: 2.73 | R19: 2.42 | S19: 2.575 | T19: Kölsch | W19: 5
A20: 5 | B20: C | C20: German Helles Exportbier | D20: 5 | E20: C | F20: 1056 | G20: 1048 | H20: 1015 | I20: 1010 | J20: 6,0 | K20: 4,8 | L20: 14 | M20: 8 | N20: 30 | O20: 20 | P20: 0.5 | Q20: 2.57 | R20: 2.57 | S20: 2.57 | T20: Lager | W20: 5
A21: 5 | B21: D | C21: German Pils | D21: 5 | E21: D | F21: 1050 | G21: 1044 | H21: 1013 | I21: 1008 | J21: 5,2 | K21: 4,4 | L21: 10 | M21: 4 | N21: 40 | O21: 22 | P21: 0.75 | Q21: 2.52 | R21: 2.52 | S21: 2.52 | T21: Lager | W21: 5
A22: 6 | B22: A | C22: Märzen | D22: 6 | E22: A | F22: 1060 | G22: 1054 | H22: 1014 | I22: 1010 | J22: 6,3 | K22: 5,8 | L22: 14 | M22: 16 | N22: 24 | O22: 18 | P22: 0.43 | Q22: 2.73 | R22: 2.57 | S22: 2.65 | T22: Lager | W22: 6
A23: 6 | B23: B | C23: Rauchbier | D23: 6 | E23: B | F23: 1057 | G23: 1050 | H23: 1016 | I23: 1012 | J23: 8–6 | K23: 4,8 | L23: 43 | M23: 24 | N23: 30 | O23: 20 | P23: 0.45 | Q23: 2.57 | R23: 2.16 | S23: 2.365 | T23: Ale | W23: 6
A24: 6 | B24: C | C24: Dunkles Bock | D24: 6 | E24: C | F24: 1072 | G24: 1064 | H24: 1019 | I24: 1013 | J24: 7,2 | K24: 6,3 | L24: 43 | M24: 28 | N24: 27 | O24: 20 | P24: 0.34 | Q24: 2.7 | R24: 2.2 | S24: 2.45 | T24: Lager | W24: 6
A25: 7 | B25: A | C25: Vienna Lager | D25: 7 | E25: A | F25: 1055 | G25: 1048 | H25: 1014 | I25: 1010 | J25: 5,5 | K25: 4,7 | L25: 10 | M25: 18 | N25: 30 | O25: 18 | P25: 0.48 | Q25: 2.6 | R25: 2.4 | S25: 2.5 | T25: Lager | W25: 7
A26: 7 | B26: B | C26: Altbier | D26: 7 | E26: B | F26: 1052 | G26: 1044 | H26: 1014 | I26: 1008 | J26: 5,5 | K26: 4,3 | L26: 33 | M26: 22 | N26: 50 | O26: 25 | P26: 0.83 | Q26: 3.09 | R26: 2.16 | S26: 2.625 | T26: Ale | W26: 7
A27: 7 | B27: C | C27: Kellerbier | D27: 7 | E27: C | F27: 1051 | G27: 1045 | H27: 1012 | I27: 1008 | J27: 5,4 | K27: 4,7 | L27: 14 | M27: 6 | N27: 35 | O27: 20 | P27: 0.63 | Q27: 3.09 | R27: 2.16 | S27: 2.625 | T27: Ale | W27: 7
A28: 7 | B28: D | C28: Amber Kellerbier | D28: 7 | E28: D | F28: 1054 | G28: 1048 | H28: 1016 | I28: 1012 | J28: 5,4 | K28: 4,8 | L28: 14 | M28: 14 | N28: 40 | O28: 25 | P28: 0.63 | Q28: 3.09 | R28: 2.16 | S28: 2.625 | T28: Ale | W28: 7
A29: 8 | B29: A | C29: Munich Dunkel | D29: 8 | E29: A | F29: 1056 | G29: 1048 | H29: 1016 | I29: 1010 | J29: 5,6 | K29: 4,5 | L29: 55 | M29: 28 | N29: 28 | O29: 18 | P29: 0.43 | Q29: 2.66 | R29: 2.21 | S29: 2.435 | T29: Lager | W29: 8
A30: 8 | B30: B | C30: Schwarzbier | D30: 8 | E30: B | F30: 1052 | G30: 1046 | H30: 1016 | I30: 1010 | J30: 5,4 | K30: 4,4 | L30: 59 | M30: 33 | N30: 30 | O30: 20 | P30: 0.53 | Q30: 2.6 | R30: 2.2 | S30: 2.4 | T30: Lager | W30: 8
A31: 9 | B31: A | C31: Doppelbock | D31: 9 | E31: A | F31: 1112 | G31: 1072 | H31: 1024 | I31: 1016 | J31: 0,0 | K31: 7,0 | L31: 10 | M31: 12 | N31: 26 | O31: 16 | P31: 0.23 | Q31: 2.62 | R31: 2.26 | S31: 2.44 | T31: Lager | W31: 9
A32: 9 | B32: B | C32: Eisbock | D32: 9 | E32: B | F32: 1120 | G32: 1078 | H32: 1035 | I32: 1020 | J32: 4,0 | K32: 9,0 | L32: 59 | M32: 35 | N32: 35 | O32: 25 | P32: 0.28 | Q32: 2.37 | R32: 2.37 | S32: 2.37 | T32: Lager | W32: 9
A33: 9 | B33: C | C33: Baltic Porter | D33: 9 | E33: C | F33: 1090 | G33: 1060 | H33: 1024 | I33: 1016 | J33: 9,5 | K33: 6,5 | L33: 59 | M33: 33 | N33: 40 | O33: 20 | P33: 0.38 | Q33: 2.5 | R33: 1.8 | S33: 2.15 | T33: Ale | W33: 9
A34: 10 | B34: A | C34: Weizen | D34: 10 | E34: A | F34: 1052 | G34: 1044 | H34: 1014 | I34: 1010 | J34: 5,6 | K34: 4,3 | L34: 12 | M34: 4 | N34: 15 | O34: 8 | P34: 0.23 | Q34: 4.48 | R34: 3.6 | S34: 4.04 | T34: Wheat Ale | W34: 10
A35: 10 | B35: B | C35: Dunkelweizen | D35: 10 | E35: B | F35: 1056 | G35: 1044 | H35: 1014 | I35: 1010 | J35: 5,6 | K35: 4,3 | L35: 45 | M35: 28 | N35: 18 | O35: 10 | P35: 0.28 | Q35: 4.48 | R35: 3.6 | S35: 4.04 | T35: Wheat Ale | W35: 10
A36: 10 | B36: C | C36: Weizenbock | D36: 10 | E36: C | F36: 1090 | G36: 1064 | H36: 1022 | I36: 1015 | J36: 9,0 | K36: 6,5 | L36: 10 | M36: 12 | N36: 30 | O36: 15 | P36: 0.29 | Q36: 4.74 | R36: 3.71 | S36: 4.225 | T36: Wheat Ale | W36: 10
A37: 11 | B37: A | C37: Standard Bitter | D37: 11 | E37: A | F37: 1039 | G37: 1030 | H37: 1011 | I37: 1007 | J37: 3,8 | K37: 3,2 | L37: 8 | M37: 16 | N37: 35 | O37: 25 | P37: 0.81 | Q37: 1.3 | R37: 0.75 | S37: 1.025 | T37: Ale | W37: 11
A38: 11 | B38: B | C38: Best Bitter | D38: 11 | E38: B | F38: 1048 | G38: 1040 | H38: 1012 | I38: 1008 | J38: 4,6 | K38: 3,8 | L38: 12 | M38: 16 | N38: 40 | O38: 25 | P38: 0.74 | Q38: 1.3 | R38: 0.75 | S38: 1.025 | T38: Ale | W38: 11
A39: 11 | B39: C | C39: Strong Bitter | D39: 11 | E39: C | F39: 1060 | G39: 1048 | H39: 1016 | I39: 1010 | J39: 6,2 | K39: 4,6 | L39: 16 | M39: 16 | N39: 50 | O39: 30 | P39: 0.73 | Q39: 1.3 | R39: 0.75 | S39: 1.025 | T39: Ale | W39: 11
A40: 12 | B40: A | C40: British Golden Ale | D40: 12 | E40: A | F40: 1053 | G40: 1038 | H40: 1012 | I40: 1006 | J40: 5,0 | K40: 3,8 | L40: 12 | M40: 4 | N40: 45 | O40: 20 | P40: 0.47 | Q40: 2.6 | R40: 2.3 | S40: =IF(R40="","",(R40+Q40)/2) -> 2.45 | T40: Ale | W40: 12
A41: 12 | B41: B | C41: Australian Sparkling Ale | D41: 12 | E41: B | F41: 1050 | G41: 1038 | H41: 1006 | I41: 1004 | J41: 6,0 | K41: 4,5 | L41: 14 | M41: 8 | N41: 35 | O41: 20 | P41: 0.8 | Q41: 4.5 | R41: 3 | S41: 3.75 | T41: Ale | W41: 12
A42: 12 | B42: C | C42: English IPA | D42: 12 | E42: C | F42: 1075 | G42: 1050 | H42: 1018 | I42: 1010 | J42: 7,5 | K42: 5,0 | L42: 8 | M42: 12 | N42: 60 | O42: 40 | P42: 0.8 | Q42: 2.3 | R42: 1.5 | S42: 1.9 | T42: Ale | W42: 12
A43: 13 | B43: A | C43: Dark Mild | D43: 13 | E43: A | F43: 1038 | G43: 1030 | H43: 1013 | I43: 1008 | J43: 3,8 | K43: 3,0 | L43: 49 | M43: 24 | N43: 25 | O43: 10 | P43: 0.47 | Q43: 2 | R43: 1.3 | S43: 1.65 | T43: Ale | W43: 13
A44: 13 | B44: B | C44: British Brown Ale | D44: 13 | E44: B | F44: 1052 | G44: 1040 | H44: 1013 | I44: 1008 | J44: 5,4 | K44: 4,2 | L44: 43 | M44: 24 | N44: 30 | O44: 20 | P44: 0.54 | Q44: 2.3 | R44: 1.5 | S44: 1.9 | T44: Ale | W44: 13
A45: 13 | B45: C | C45: English Porter | D45: 13 | E45: C | F45: 1052 | G45: 1040 | H45: 1014 | I45: 1008 | J45: 5,4 | K45: 4,0 | L45: 59 | M45: 39 | N45: 35 | O45: 18 | P45: 0.57 | Q45: 2.5 | R45: 1.7 | S45: 2.1 | T45: Ale | W45: 13
A46: 14 | B46: A | C46: Scottish Light | D46: 14 | E46: A | F46: 1035 | G46: 1030 | H46: 1013 | I46: 1010 | J46: 3,2 | K46: 2,5 | L46: 43 | M46: 33 | N46: 20 | O46: 10 | P46: 0.4 | Q46: 1.3 | R46: 0.75 | S46: 1.025 | T46: Ale | W46: 14
A47: 14 | B47: B | C47: Scottish Heavy | D47: 14 | E47: B | F47: 1040 | G47: 1035 | H47: 1015 | I47: 1010 | J47: 3,9 | K47: 3,2 | L47: 43 | M47: 26 | N47: 20 | O47: 10 | P47: 0.42 | Q47: 1.3 | R47: 0.75 | S47: 1.025 | T47: Ale | W47: 14
A48: 14 | B48: C | C48: Scottish Export | D48: 14 | E48: C | F48: 1060 | G48: 1040 | H48: 1016 | I48: 1010 | J48: 6,0 | K48: 3,9 | L48: 43 | M48: 26 | N48: 30 | O48: 15 | P48: 0.45 | Q48: 1.3 | R48: 0.75 | S48: 1.025 | T48: Ale | W48: 14
A49: 15 | B49: A | C49: Irish Red Ale | D49: 15 | E49: A | F49: 1060 | G49: 1044 | H49: 1014 | I49: 1010 | J49: 6 | K49: 4 | L49: 18 | M49: 35 | N49: 28 | O49: 18 | P49: 0.43 | Q49: 2.3 | R49: 1.5 | S49: 1.9 | T49: Ale | W49: 15
A50: 15 | B50: B | C50: Irish Stout | D50: 15 | E50: B | F50: 1044 | G50: 1036 | H50: 1011 | I50: 1007 | J50: 4,5 | K50: 4,0 | L50: 79 | M50: 49 | N50: 45 | O50: 25 | P50: 0.43 | Q50: 2.3 | R50: 1.5 | S50: 1.9 | T50: Ale | W50: 15
A51: 15 | B51: C | C51: Irish Extra Stout | D51: 15 | E51: C | F51: 1062 | G51: 1052 | H51: 1014 | I51: 1010 | J51: 6,5 | K51: 5,5 | L51: 79 | M51: 49 | N51: 50 | O51: 35 | P51: 0.89 | Q51: 2 | R51: 1.6 | S51: 1.8 | T51: Ale | W51: 15
A52: 16 | B52: A | C52: Sweet Stout | D52: 16 | E52: A | F52: 1060 | G52: 1044 | H52: 1024 | I52: 1012 | J52: 6,0 | K52: 4,0 | L52: 79 | M52: 59 | N52: 40 | O52: 20 | P52: 0.51 | Q52: 2.4 | R52: 2 | S52: 2.2 | T52: Ale | W52: 16
A53: 16 | B53: B | C53: Oatmeal Stout | D53: 16 | E53: B | F53: 1065 | G53: 1045 | H53: 1018 | I53: 1010 | J53: 5,9 | K53: 4,2 | L53: 79 | M53: 43 | N53: 40 | O53: 25 | P53: 0.56 | Q53: 2.4 | R53: 2 | S53: 2.2 | T53: Ale | W53: 16
A54: 16 | B54: C | C54: Tropical Stout | D54: 16 | E54: C | F54: 1075 | G54: 1056 | H54: 1018 | I54: 1010 | J54: 8,0 | K54: 5,5 | L54: 79 | M54: 59 | N54: 50 | O54: 30 | P54: 0.77 | Q54: 2.6 | R54: 2.3 | S54: 2.45 | T54: Ale | W54: 16
A55: 16 | B55: D | C55: Foreign Extra Stout | D55: 16 | E55: D | F55: 1075 | G55: 1056 | H55: 1018 | I55: 1010 | J55: 8,0 | K55: 6,3 | L55: 79 | M55: 59 | N55: 70 | O55: 50 | P55: 0.77 | Q55: 2.6 | R55: 2.3 | S55: 2.45 | T55: Ale | W55: 16
A56: 17 | B56: A | C56: British Strong Ale | D56: 17 | E56: A | F56: 1080 | G56: 1055 | H56: 1022 | I56: 1015 | J56: 8,0 | K56: 5,5 | L56: 4 | M56: 16 | N56: 60 | O56: 30 | P56: 0.22 | Q56: 2.3 | R56: 1.5 | S56: 1.9 | T56: Ale | W56: 17
A57: 17 | B57: B | C57: Old Ale | D57: 17 | E57: B | F57: 1088 | G57: 1055 | H57: 1022 | I57: 1015 | J57: 9,0 | K57: 5,5 | L57: 43 | M57: 20 | N57: 60 | O57: 30 | P57: 0.58 | Q57: 2.3 | R57: 1.5 | S57: 1.9 | T57: Ale | W57: 17
A58: 17 | B58: C | C58: Wee Heavy | D58: 17 | E58: C | F58: 1130 | G58: 1070 | H58: 1040 | I58: 1018 | J58: 0,0 | K58: 6,5 | L58: 49 | M58: 28 | N58: 35 | O58: 17 | P58: 0.22 | Q58: 2.3 | R58: 1.5 | S58: 1.9 | T58: Ale | W58: 17
A59: 17 | B59: D | C59: English Barleywine | D59: 17 | E59: D | F59: 1120 | G59: 1080 | H59: 1030 | I59: 1018 | J59: 2,0 | K59: 8,0 | L59: 4 | M59: 16 | N59: 70 | O59: 35 | P59: 0.51 | Q59: 2.3 | R59: 1.3 | S59: 1.8 | T59: Ale | W59: 17
A60: 18 | B60: A | C60: Blonde Ale | D60: 18 | E60: A | F60: 1054 | G60: 1038 | H60: 1013 | I60: 1008 | J60: 5,5 | K60: 3,8 | L60: 12 | M60: 6 | N60: 28 | O60: 15 | P60: 0.47 | Q60: 2.6 | R60: 2.3 | S60: 2.45 | T60: Ale | W60: 18
A61: 18 | B61: B | C61: American Pale Ale | D61: 18 | E61: B | F61: 1060 | G61: 1045 | H61: 1015 | I61: 1010 | J61: 6,2 | K61: 4,5 | L61: 0 | M61: 10 | N61: 50 | O61: 30 | P61: 0.71 | Q61: 2.78 | R61: 2.26 | S61: 2.52 | T61: Ale | W61: 18
A62: 19 | B62: A | C62: American Amber Ale | D62: 19 | E62: A | F62: 1060 | G62: 1045 | H62: 1015 | I62: 1010 | J62: 6,2 | K62: 4,5 | L62: 33 | M62: 20 | N62: 40 | O62: 25 | P62: 0.61 | Q62: 2.78 | R62: 2.26 | S62: 2.52 | T62: Ale | W62: 19
A63: 19 | B63: B | C63: California Common | D63: 19 | E63: B | F63: 1054 | G63: 1048 | H63: 1014 | I63: 1011 | J63: 5,5 | K63: 4,5 | L63: 28 | M63: 20 | N63: 45 | O63: 30 | P63: 0.72 | Q63: 2.8 | R63: 2.4 | S63: 2.6 | T63: Lager | W63: 19
A64: 19 | B64: C | C64: American Brown Ale | D64: 19 | E64: C | F64: 1060 | G64: 1045 | H64: 1016 | I64: 1010 | J64: 6,2 | K64: 4,3 | L64: 69 | M64: 35 | N64: 30 | O64: 20 | P64: 0.56 | Q64: 2.5 | R64: 1.5 | S64: 2 | T64: Ale | W64: 19
A65: 20 | B65: A | C65: Robust Porter | D65: 20 | E65: A | F65: 1070 | G65: 1050 | H65: 1018 | I65: 1012 | J65: 6,5 | K65: 4,8 | L65: 79 | M65: 43 | N65: 50 | O65: 25 | P65: 0.65 | Q65: 2.5 | R65: 1.8 | S65: 2.15 | T65: Ale | W65: 20
A66: 20 | B66: B | C66: American Stout | D66: 20 | E66: B | F66: 1075 | G66: 1050 | H66: 1022 | I66: 1010 | J66: 7,0 | K66: 5,0 | L66: 79 | M66: 59 | N66: 75 | O66: 35 | P66: 0.85 | Q66: 2.6 | R66: 2.3 | S66: 2.45 | T66: Ale | W66: 20
A67: 20 | B67: C | C67: Imperial Stout | D67: 20 | E67: C | F67: 1115 | G67: 1075 | H67: 1030 | I67: 1018 | J67: 2,0 | K67: 8,0 | L67: 79 | M67: 59 | N67: 90 | O67: 50 | P67: 0.71 | Q67: 2.3 | R67: 1.5 | S67: 1.9 | T67: Ale | W67: 20
A68: 21 | B68: A | C68: American IPA | D68: 21 | E68: A | F68: 1070 | G68: 1056 | H68: 1014 | I68: 1008 | J68: 7,5 | K68: 5,5 | L68: 8 | M68: 12 | N68: 70 | O68: 40 | P68: 0.85 | Q68: 2.3 | R68: 1.5 | S68: 1.9 | T68: Ale | W68: 21
A69: 21 | B69: B | C69: Belgian IPA | D69: 21 | E69: B | F69: 1080 | G69: 1058 | H69: 1016 | I69: 1008 | J69: 9,5 | K69: 6,2 | L69: 10 | M69: 10 | N69: 100 | O69: 50 | P69: 0.8 | Q69: 2.3 | R69: 1.5 | S69: =IF(R69="","",(R69+Q69)/2) -> 1.9 | T69: Ale | W69: 21
A70: 21 | B70: C | C70: Black IPA | D70: 21 | E70: C | F70: 1085 | G70: 1050 | H70: 1018 | I70: 1010 | J70: 9,0 | K70: 5,5 | L70: 79 | M70: 49 | N70: 90 | O70: 50 | P70: 0.8 | Q70: 2.3 | R70: 1.5 | S70: 1.9 | T70: Ale | W70: 21
A71: 21 | B71: D | C71: Brown IPA | D71: 21 | E71: D | F71: 1070 | G71: 1056 | H71: 1016 | I71: 1008 | J71: 7,5 | K71: 5,5 | L71: 37 | M71: 22 | N71: 70 | O71: 40 | P71: 0.8 | Q71: 2.3 | R71: 1.5 | S71: 1.9 | T71: Ale | W71: 21
A72: 21 | B72: E | C72: Red IPA | D72: 21 | E72: E | F72: 1070 | G72: 1056 | H72: 1016 | I72: 1008 | J72: 7,5 | K72: 5,5 | L72: 37 | M72: 22 | N72: 70 | O72: 40 | P72: 0.8 | Q72: 2.3 | R72: 1.5 | S72: 1.9 | T72: Ale | W72: 21
A73: 21 | B73: F | C73: Rye IPA | D73: 21 | E73: F | F73: 1075 | G73: 1056 | H73: 1014 | I73: 1008 | J73: 8,0 | K73: 5,5 | L73: 8 | M73: 12 | N73: 75 | O73: 50 | P73: 0.8 | Q73: 2.3 | R73: 1.5 | S73: 1.9 | T73: Ale | W73: 21
A74: 21 | B74: G | C74: White IPA | D74: 21 | E74: G | F74: 1065 | G74: 1056 | H74: 1016 | I74: 1010 | J74: 7,0 | K74: 5,5 | L74: 16 | M74: 10 | N74: 70 | O74: 40 | P74: 0.8 | Q74: 2.3 | R74: 1.5 | S74: 1.9 | T74: Ale | W74: 21
A75: 22 | B75: A | C75: Double IPA | D75: 22 | E75: A | F75: 1085 | G75: 1065 | H75: 1018 | I75: 1008 | J75: 0,0 | K75: 7,5 | L75: 8 | M75: 12 | N75: 120 | O75: 60 | P75: 0.8 | Q75: 2.3 | R75: 1.5 | S75: 1.9 | T75: Ale | W75: 22
A76: 22 | B76: B | C76: American Strong Ale | D76: 22 | E76: B | F76: 1090 | G76: 1062 | H76: 1024 | I76: 1014 | J76: 0,0 | K76: 6,3 | L76: 18 | M76: 14 | N76: 100 | O76: 50 | P76: 0.84 | Q76: 2.3 | R76: 1.3 | S76: =IF(R76="","",(R76+Q76)/2) -> 1.8 | T76: Ale | W76: 22
A77: 22 | B77: C | C77: American Barleywine | D77: 22 | E77: C | F77: 1120 | G77: 1080 | H77: 1030 | I77: 1016 | J77: 2,0 | K77: 8,0 | L77: 37 | M77: 20 | N77: 100 | O77: 50 | P77: 0.84 | Q77: 2.3 | R77: 1.3 | S77: 1.8 | T77: Ale | W77: 22
A78: 22 | B78: D | C78: Wheatwine | D78: 22 | E78: D | F78: 1120 | G78: 1080 | H78: 1030 | I78: 1016 | J78: 2,0 | K78: 8,0 | L78: 10 | M78: 16 | N78: 60 | O78: 30 | P78: 0.84 | Q78: 2.5 | R78: 2 | S78: 2.25 | T78: Ale | W78: 22
A79: 23 | B79: A | C79: Berliner Weisse | D79: 23 | E79: A | F79: 1032 | G79: 1028 | H79: 1006 | I79: 1003 | J79: 3,8 | K79: 2,8 | L79: 6 | M79: 4 | N79: 8 | O79: 3 | P79: 0.2 | Q79: 3.45 | R79: 3.45 | S79: 3.45 | T79: Ale w. Lactic | W79: 23
A80: 23 | B80: B | C80: Flanders Red Ale | D80: 23 | E80: B | F80: 1057 | G80: 1048 | H80: 1012 | I80: 1002 | J80: 6,5 | K80: 4,6 | L80: 32 | M80: 20 | N80: 25 | O80: 10 | P80: 0.37 | Q80: 2.5 | R80: 1.9 | S80: 2.2 | T80: Ale w. Lactic | W80: 23
A81: 23 | B81: C | C81: Oud Bruin | D81: 23 | E81: C | F81: 1074 | G81: 1040 | H81: 1012 | I81: 1008 | J81: 8,0 | K81: 4,0 | L81: 43 | M81: 30 | N81: 25 | O81: 20 | P81: 0.41 | Q81: 2.5 | R81: 1.9 | S81: 2.2 | T81: Ale w. Lactic | W81: 23
A82: 23 | B82: D | C82: Lambic | D82: 23 | E82: D | F82: 1054 | G82: 1040 | H82: 1010 | I82: 1001 | J82: 6,5 | K82: 5,0 | L82: 14 | M82: 6 | N82: 10 | O82: 0 | P82: 0.12 | Q82: 4.5 | R82: 3 | S82: 3.75 | T82: Ale w. Lactic | W82: 23
A83: 23 | B83: E | C83: Gueuze | D83: 23 | E83: E | F83: 1060 | G83: 1040 | H83: 1006 | I83: 1000 | J83: 8,0 | K83: 5,0 | L83: 14 | M83: 6 | N83: 10 | O83: 0 | P83: 0.12 | Q83: 4.5 | R83: 3 | S83: 3.75 | T83: Ale w. Lactic | W83: 23
A84: 23 | B84: F | C84: Fruit Lambic | D84: 23 | E84: F | F84: 1060 | G84: 1040 | H84: 1010 | I84: 1000 | J84: 7,0 | K84: 5,0 | L84: 14 | M84: 6 | N84: 10 | O84: 0 | P84: 0.11 | Q84: 4.5 | R84: 2.6 | S84: 3.55 | T84: Ale w. Lactic | W84: 23
A85: 24 | B85: A | C85: Witbier | D85: 24 | E85: A | F85: 1052 | G85: 1044 | H85: 1012 | I85: 1008 | J85: 5,5 | K85: 4,5 | L85: 8 | M85: 4 | N85: 20 | O85: 8 | P85: 0.32 | Q85: 2.6 | R85: 2.1 | S85: 2.35 | T85: Ale | W85: 24
A86: 24 | B86: B | C86: Belgian Pale Ale | D86: 24 | E86: B | F86: 1054 | G86: 1048 | H86: 1014 | I86: 1010 | J86: 5,5 | K86: 4,8 | L86: 8 | M86: 16 | N86: 30 | O86: 20 | P86: 0.49 | Q86: 2.5 | R86: 1.9 | S86: 2.2 | T86: Ale | W86: 24
A87: 24 | B87: C | C87: Bière de Garde | D87: 24 | E87: C | F87: 1080 | G87: 1060 | H87: 1016 | I87: 1008 | J87: 8,5 | K87: 6,0 | L87: 18 | M87: 12 | N87: 28 | O87: 18 | P87: 0.35 | Q87: 2.5 | R87: 1.9 | S87: 2.2 | T87: Ale | W87: 24
A88: 25 | B88: A | C88: Belgian Blond Ale | D88: 25 | E88: A | F88: 1075 | G88: 1062 | H88: 1018 | I88: 1008 | J88: 7,5 | K88: 6,0 | L88: 14 | M88: 8 | N88: 30 | O88: 15 | P88: 0.34 | Q88: 2.4 | R88: 1.9 | S88: 2.15 | T88: Ale | W88: 25
A89: 25 | B89: B | C89: Saison (pale) (standard) | D89: 25 | E89: B | F89: 1065 | G89: 1048 | H89: 1008 | I89: 1002 | J89: 7,0 | K89: 5,0 | L89: 8 | M89: 10 | N89: 35 | O89: 20 | P89: 0.54 | Q89: 2.4 | R89: 1.9 | S89: 2.15 | T89: Ale | W89: 25
A90: 25 | B90: C | C90: Saison (dark) (standard) | D90: 25 | E90: C | F90: 1065 | G90: 1048 | H90: 1008 | I90: 1002 | J90: 7,0 | K90: 5,0 | L90: 43 | M90: 30 | N90: 35 | O90: 20 | P90: 0.54 | Q90: 2.4 | R90: 1.9 | S90: 2.15 | T90: Ale | W90: 25
A91: 25 | B91: D | C91: Saison (pale) (table) | D91: 25 | E91: D | F91: 1065 | G91: 1048 | H91: 1008 | I91: 1002 | J91: 5,0 | K91: 3,5 | L91: 8 | M91: 10 | N91: 35 | O91: 20 | P91: 0.54 | Q91: 2.4 | R91: 1.9 | S91: 2.15 | T91: Ale | W91: 25
A92: 25 | B92: E | C92: Saison (pale) (super) | D92: 25 | E92: E | F92: 1065 | G92: 1048 | H92: 1008 | I92: 1002 | J92: 9,5 | K92: 7,0 | L92: 8 | M92: 10 | N92: 35 | O92: 20 | P92: 0.54 | Q92: 2.4 | R92: 1.9 | S92: 2.15 | T92: Ale | W92: 25
A93: 25 | B93: F | C93: Belgian Golden Strong Ale | D93: 25 | E93: F | F93: 1095 | G93: 1070 | H93: 1016 | I93: 1005 | J93: 0,5 | K93: 7,5 | L93: 12 | M93: 6 | N93: 35 | O93: 22 | P93: 0.38 | Q93: 2.4 | R93: 1.9 | S93: 2.15 | T93: Ale | W93: 25
A94: 26 | B94: A | C94: Trappist Single | D94: 26 | E94: A | F94: 1054 | G94: 1044 | H94: 1010 | I94: 1004 | J94: 6,0 | K94: 4,8 | L94: 10 | M94: 6 | N94: 45 | O94: 25 | P94: 0.49 | Q94: 2.5 | R94: 1.9 | S94: 2.2 | T94: Ale | W94: 26
A95: 26 | B95: B | C95: Belgian Dubbel | D95: 26 | E95: B | F95: 1075 | G95: 1062 | H95: 1018 | I95: 1008 | J95: 7,6 | K95: 6,0 | L95: 33 | M95: 20 | N95: 25 | O95: 15 | P95: 0.3 | Q95: 2.4 | R95: 1.9 | S95: 2.15 | T95: Ale | W95: 26
A96: 26 | B96: C | C96: Belgian Tripel | D96: 26 | E96: C | F96: 1085 | G96: 1075 | H96: 1014 | I96: 1008 | J96: 9,5 | K96: 7,5 | L96: 14 | M96: 9 | N96: 40 | O96: 20 | P96: 0.41 | Q96: 2.4 | R96: 1.9 | S96: 2.15 | T96: Ale | W96: 26
A97: 26 | B97: D | C97: Belgian Dark Strong Ale | D97: 26 | E97: D | F97: 1110 | G97: 1075 | H97: 1024 | I97: 1010 | J97: 2,0 | K97: 8,0 | L97: 43 | M97: 24 | N97: 35 | O97: 20 | P97: 0.31 | Q97: 2.5 | R97: 1.9 | S97: 2.2 | T97: Ale | W97: 26
A98: 27 | B98: A | C98: Historical Beer: Gose | D98: 27 | E98: A | F98: 1056 | G98: 1036 | H98: 1010 | I98: 1006 | J98: 4,8 | K98: 4,2 | L98: 8 | M98: 6 | N98: 12 | O98: 5 | Q98: 2.5 | R98: 1.9 | S98: 2.2 | T98: Ale | W98: 27
A99: 27 | B99: B | C99: Historical Beer: Kentucky Common | D99: 27 | E99: B | F99: 1055 | G99: 1044 | H99: 1018 | I99: 1010 | J99: 5,5 | K99: 4,0 | L99: 39 | M99: 22 | N99: 30 | O99: 15 | P99: 0.48 | Q99: 2.5 | R99: 1.9 | S99: 2.2 | T99: Ale | W99: 27
A100: 27 | B100: C | C100: Historical Beer: Lichtenhainer | D100: 27 | E100: C | F100: 1040 | G100: 1032 | H100: 1008 | I100: 1004 | J100: 4,7 | K100: 3,5 | L100: 12 | M100: 6 | N100: 12 | O100: 5 | P100: - | Q100: 2.5 | R100: 1.9 | S100: 2.2 | T100: Ale | W100: 27
A101: 27 | B101: D | C101: Historical Beer: London Brown Ale | D101: 27 | E101: D | F101: 1038 | G101: 1033 | H101: 1015 | I101: 1012 | J101: 3,6 | K101: 2,8 | L101: 69 | M101: 43 | N101: 20 | O101: 15 | P101: - | Q101: 2.5 | R101: 1.9 | S101: 2.2 | T101: Ale | W101: 27
A102: 27 | B102: E | C102: Historical Beer: Piwo Grodziskie | D102: 27 | E102: E | F102: 1032 | G102: 1028 | H102: 1012 | I102: 1006 | J102: 3,3 | K102: 2,5 | L102: 12 | M102: 6 | N102: 35 | O102: 20 | P102: - | Q102: 5 | R102: 4 | S102: 4.5 | T102: Ale | W102: 27
A103: 27 | B103: F | C103: Historical Beer: Pre-Prohibition Lager | D103: 27 | E103: F | F103: 1060 | G103: 1044 | H103: 1015 | I103: 1010 | J103: 6,0 | K103: 4,5 | L103: 12 | M103: 6 | N103: 40 | O103: 25 | P103: - | Q103: 2.5 | R103: 1.9 | S103: 2.2 | T103: Lager | W103: 27
A104: 27 | B104: G | C104: Historical Beer: Pre-Prohibition Porter | D104: 27 | E104: G | F104: 1060 | G104: 1046 | H104: 1016 | I104: 1010 | J104: 6,0 | K104: 4,5 | L104: 59 | M104: 35 | N104: 30 | O104: 20 | P104: - | Q104: 2.5 | R104: 1.9 | S104: 2.2 | T104: Ale | W104: 27
A105: 27 | B105: H | C105: Historical Beer: Roggenbier | D105: 27 | E105: H | F105: 1056 | G105: 1046 | H105: 1014 | I105: 1010 | J105: 6,0 | K105: 4,5 | L105: 37 | M105: 28 | N105: 20 | O105: 10 | P105: - | Q105: 2.5 | R105: 1.9 | S105: 2.2 | T105: Ale | W105: 27
A106: 27 | B106: I | C106: Historical Beer: Sahti | D106: 27 | E106: I | F106: 1120 | G106: 1076 | H106: 1020 | I106: 1016 | J106: 1,0 | K106: 7,0 | L106: 4 | M106: 8 | N106: 15 | O106: 7 | P106: - | Q106: 2.5 | R106: 1.9 | S106: 2.2 | T106: Ale | W106: 27
A107: 28 | B107: A | C107: Brett Beer | D107: 28 | E107: A | F107: - | G107: - | H107: - | I107: - | J107: - | K107: - | L107: - | M107: - | N107: - | O107: - | P107: - | Q107: - | R107: - | S107: - | T107: - | W107: 28
A108: 28 | B108: B | C108: Mixed-Fermentation Sour Beer | D108: 28 | E108: B | F108: - | G108: - | H108: - | I108: - | J108: - | K108: - | L108: - | M108: - | N108: - | O108: - | P108: - | Q108: - | R108: - | S108: - | T108: - | W108: 28
A109: 28 | B109: C | C109: Wild Specialty Beer | D109: 28 | E109: C | F109: - | G109: - | H109: - | I109: - | J109: - | K109: - | L109: - | M109: - | N109: - | O109: - | P109: - | Q109: - | R109: - | S109: - | T109: - | W109: 28
A110: 29 | B110: A | C110: Fruit Beer | D110: 29 | E110: A | F110: - | G110: - | H110: - | I110: - | J110: - | K110: - | L110: - | M110: - | N110: - | O110: - | P110: - | Q110: 3 | R110: 2 | S110: 2.5 | T110: Ale | W110: 29
A111: 29 | B111: B | C111: Fruit and Spice Beer | D111: 29 | E111: B | F111: - | G111: - | H111: - | I111: - | J111: - | K111: - | L111: - | M111: - | N111: - | O111: - | P111: - | Q111: - | R111: - | S111: - | T111: - | W111: 29
A112: 29 | B112: C | C112: Specialty Fruit Beer | D112: 29 | E112: C | F112: - | G112: - | H112: - | I112: - | J112: - | K112: - | L112: - | M112: - | N112: - | O112: - | P112: - | Q112: - | R112: - | S112: - | T112: - | W112: 29
A113: 30 | B113: A | C113: Spice, Herb, or Vegetable Beer | D113: 30 | E113: A | F113: - | G113: - | H113: - | I113: - | J113: - | K113: - | L113: - | M113: - | N113: - | O113: - | P113: - | Q113: - | R113: - | S113: - | T113: - | W113: 30
A114: 30 | B114: B | C114: Autumn Seasonal Beer | D114: 30 | E114: B | F114: - | G114: - | H114: - | I114: - | J114: - | K114: - | L114: - | M114: - | N114: - | O114: - | P114: - | Q114: - | R114: - | S114: - | T114: - | W114: 30
A115: 30 | B115: C | C115: Christmas Beer | D115: 30 | E115: C | F115: - | G115: - | H115: - | I115: - | J115: - | K115: - | L115: - | M115: - | N115: - | O115: - | P115: - | Q115: 2.3 | R115: 1.9 | S115: =(R115+Q115)/2 -> 2.1 | T115: Ale or Lager | W115: 30
A116: 30 | B116: C | C116: Winter Seasonal Beer | D116: 30 | E116: C | F116: - | G116: - | H116: - | I116: - | J116: - | K116: - | L116: - | M116: - | N116: - | O116: - | P116: - | Q116: 2.3 | R116: 1.9 | S116: =(R116+Q116)/2 -> 2.1 | T116: Ale or Lager
A117: 31 | B117: A | C117: Alternative Grain Beer | D117: 31 | E117: A | F117: - | G117: - | H117: - | I117: - | J117: - | K117: - | L117: - | M117: - | N117: - | O117: - | P117: - | Q117: - | R117: - | S117: - | T117: - | W117: 31
A118: 31 | B118: B | C118: Alternative Sugar Beer | D118: 31 | E118: B | F118: - | G118: - | H118: - | I118: - | J118: - | K118: - | L118: - | M118: - | N118: - | O118: - | P118: - | Q118: - | R118: - | S118: - | T118: - | W118: 31
A119: 32 | B119: A | C119: Classic Style Smoked Beer | D119: 32 | E119: A | F119: - | G119: - | H119: - | I119: - | J119: - | K119: - | L119: - | M119: - | N119: - | O119: - | P119: - | Q119: - | R119: - | S119: - | T119: - | W119: 32
A120: 32 | B120: B | C120: Specialty Smoked Beer | D120: 32 | E120: B | F120: - | G120: - | H120: - | I120: - | J120: - | K120: - | L120: - | M120: - | N120: - | O120: - | P120: - | Q120: - | R120: - | S120: - | T120: - | W120: 32
A121: 33 | B121: A | C121: Wood-Aged Beer | D121: 33 | E121: A | F121: - | G121: - | H121: - | I121: - | J121: - | K121: - | L121: - | M121: - | N121: - | O121: - | P121: - | Q121: 2.57 | R121: 2.16 | S121: 2.365 | T121: Ale | W121: 33
A122: 33 | B122: B | C122: Specialty Wood-Aged Beer | D122: 33 | E122: B | F122: - | G122: - | H122: - | I122: - | J122: - | K122: - | L122: - | M122: - | N122: - | O122: - | P122: - | Q122: - | R122: - | S122: - | T122: - | W122: 33
A123: 34 | B123: A | C123: Clone Beer | D123: 34 | E123: A | F123: - | G123: - | H123: - | I123: - | J123: - | K123: - | L123: - | M123: - | N123: - | O123: - | P123: - | Q123: - | R123: - | S123: - | T123: - | W123: 34
A124: 34 | B124: B | C124: Mixed-Style Beer | D124: 34 | E124: B | F124: - | G124: - | H124: - | I124: - | J124: - | K124: - | L124: - | M124: - | N124: - | O124: - | P124: - | Q124: - | R124: - | S124: - | T124: - | W124: 34
A125: 34 | B125: C | C125: Experimental Beer | D125: 34 | E125: C | F125: - | G125: - | H125: - | I125: - | J125: - | K125: - | L125: - | M125: - | N125: - | O125: - | P125: - | Q125: - | R125: - | S125: - | T125: - | W125: 34

Sheet Indkøb
B2: Her kan man f.eks. kopiere kvittering for indkøb ind.

Sheet Links
A2: Shopping: | B2: http://brygladen.com/
B3: http://www.hjemmebryggeren.dk/
B4: http://www.albryg.dk/
B5: http://www.bryglageret.dk/
B6: https://brygforretningen.dk/
A8: Opskrifter: | B8: http://www.candisyrup.com/recipes.html
B9: http://www.castlemalting.com/CastleMaltingBeerRecipes.asp?P=94&Language=Danish
A11: Ressource Guides: | B11: https://byo.com/resources
A13: Hops | B13: http://beerlegends.com/hops
B14: https://ychhops.com/varieties
B15: http://www.castlemalting.com/CastleMaltingHops.asp?P=105&Language=Danish
B16: http://hjemmebryg.things-4-you.dk/?p=500
A18: Malt | B18: http://www.castlemalting.com/CastleMaltingMalts.asp?P=105&Language=Danish
A20: Malt Descriptions | B20: http://www.beercolor.com/malt_descriptions.htm
A22: Yeast | B22: https://www.wyeastlab.com/hb_yeaststrain.cfm
B23: http://mangrovejacks.com/collections/craft-series-yeasts
B24: https://www.whitelabs.com/beer/homebrew/listings
B25: http://www.fermentis.com/brewing/homebrewing/product-range/
A27: BU:GU / RBR | B27: http://www.madalchemist.com/chart_bitterness_corrected.html
A29: Glenn Tinseth's Website | B29: http://www.realbeer.com/hops/
A31: Beer Judge Certification Program | B31: http://bjcp.org/
